Workbook

Sheet WELCOME

Sheet Travel Data
A1: Passenger Name | B1: Type | C1: Vendor | D1: Depart | E1: Return | F1: Daily Rate | G1: Total Fare | H1: Itinerary | I1: Invoice # | J1: rand
A2: Adams/Donna | B2: Dom. Air | C2: Delta Air Lines | D2: 2000-05-15 | E2: 2000-05-20 | F2: 113.87 | G2: 600 | H2: ATLPHXATL | I2: 110125S | J2: =RAND() -> 0.5164871265
A3: Adams/Donna | B3: TRANS FEE | C3: ARC | D3: 2000-05-15 | F3: 10 | G3: 670 | H3: ARC | I3: 110125S | J3: 0.7068207263
A4: Adams/Jim | B4: Dom. Air | C4: Delta Air Lines | D4: 2000-05-15 | E4: 2000-05-20 | F4: 113.87 | G4: 10 | H4: ATLPHXATL | I4: 110124S | J4: 0.5134757436
A5: Adams/Jim | B5: TRANS FEE | C5: ARC | D5: 2000-01-27 | F5: 10 | G5: 10 | H5: ARC | I5: 109555S | J5: 0.2445100981
A6: Adams/Jim | B6: TRANS FEE | C6: ARC | D6: 2000-05-15 | F6: 10 | G6: 10 | H6: ARC | I6: 110124S | J6: 0.5435679103
A7: Atkins/Ron | B7: Dom. Air | C7: Northwest Airlines | D7: 2000-02-23 | E7: 2000-02-24 | F7: 522 | G7: 400 | H7: OKCMEMTPAMEMOKC | I7: 110175S | J7: 0.4519831626
A8: Atkins/Ron | B8: Car | C8: Hertz | D8: 2000-02-23 | E8: 2000-02-24 | F8: 82 | G8: 82 | H8: TPA | I8: 110175S | J8: 0.6495985281
A9: Atkins/Ron | B9: TRANS FEE | C9: ARC | D9: 2000-02-23 | F9: 10 | G9: 10 | H9: ARC | I9: 110175S | J9: 0.2986358806
A10: Carrey/Barry | B10: Dom. Air | C10: Delta Air Lines | D10: 2000-05-12 | E10: 2000-05-19 | F10: 78.85 | G10: 552 | H10: MGMATLDAYATLPHXATLMGM | I10: 110802S | J10: 0.8226954986
A11: Carrey/Barry | B11: TRANS FEE | C11: ARC | D11: 2000-05-12 | F11: 10 | G11: 10 | H11: ARC | I11: 110802S | J11: 0.3232651175
A12: Carrey/Pam | B12: Dom. Air | C12: Delta Air Lines | D12: 2000-05-12 | E12: 2000-05-19 | F12: 78.85 | G12: 552 | H12: MGMATLDAYATLPHXATLMGM | I12: 110803S | J12: 0.4914057202
A13: Carrey/Pam | B13: TRANS FEE | C13: ARC | D13: 2000-05-12 | F13: 10 | G13: 10 | H13: ARC | I13: 110803S | J13: 0.9049351194
A14: Chile/Juan | B14: Dom. Air | C14: America West Airlines | D14: 2000-05-11 | E14: 2000-05-18 | F14: 53.21 | G14: 372.5 | H14: FLLLASPHXFLL | I14: 110583S | J14: 0.495687261
A15: Chile/Juan | B15: TRANS FEE | C15: ARC | D15: 2000-05-11 | F15: 10 | G15: 10 | H15: ARC | I15: 110583S | J15: 0.2351955984
A16: Conelly/Doug | B16: Hotel | C16: Raintree Plaza Hotel | D16: 2000-04-17 | E16: 2000-04-20 | F16: 152 | G16: 456 | H16: DEN | I16: 111088S | J16: 0.593206718
A17: Conelly/Doug | B17: Dom. Air | C17: Delta Air Lines | D17: 2000-03-06 | E17: 2000-03-06 | F17: 253 | G17: 253 | H17: TPAATLPHL | I17: 110447S | J17: 0.7566159892
A18: Conelly/Doug | B18: Dom. Air | C18: Continental Airlines | D18: 2000-03-08 | E18: 2000-03-08 | F18: 166.5 | G18: 166.5 | H18: MDTCLETPA | I18: 110449S | J18: 0.8536941162
A19: Conelly/Doug | B19: Dom. Air | C19: USAir | D19: 2000-03-07 | E19: 2000-03-07 | F19: 148.5 | G19: 148.5 | H19: PHLMDT | I19: 110448S | J19: 0.8820092443
A20: Conelly/Doug | B20: Car | C20: Alamo | D20: 2000-04-17 | E20: 2000-04-20 | F20: 48.39 | G20: 145.17 | H20: DEN | I20: 111088S | J20: 0.8749812913
A21: Conelly/Doug | B21: Car | C21: Alamo | D21: 2000-03-07 | E21: 2000-03-08 | F21: 88 | G21: 88 | H21: MDT | I21: 110448S | J21: 0.0384967804
A22: Conelly/Doug | B22: Hotel | C22: RADISSON | D22: 2000-03-07 | E22: 2000-03-08 | F22: 79 | G22: 79 | H22: MDT | I22: 110448S | J22: 0.2923262025
A23: Conelly/Doug | B23: Hotel | C23: COURTYARD BY MARRIOTT | D23: 2000-03-06 | E23: 2000-03-07 | F23: 75 | G23: 75 | H23: PHL | I23: 110447S | J23: 0.4617176335
A24: Conelly/Doug | B24: Car | C24: Alamo | D24: 2000-03-06 | E24: 2000-03-07 | F24: 51 | G24: 51 | H24: PHL | I24: 110447S | J24: 0.5978594679
A25: Conelly/Doug | B25: TRANS FEE | C25: ARC | D25: 2000-04-17 | F25: 10 | G25: 10 | H25: ARC | I25: 111088S | J25: 0.0747133676
A26: Conelly/Doug | B26: TRANS FEE | C26: ARC | D26: 2000-03-06 | F26: 10 | G26: 10 | H26: ARC | I26: 110447S | J26: 0.4201334559
A27: Couto/Terry | B27: Hotel | C27: Holiday Inn Express | D27: 2000-01-31 | E27: 2000-02-14 | F27: 109 | G27: 1526 | H27: CLW | I27: 109640S | J27: 0.008062642321
A28: Couto/Terry | B28: Dom. Air | C28: Delta Air Lines | D28: 2000-04-30 | E28: 2000-05-02 | F28: 282 | G28: 564 | H28: TPAATLORDATLTPA | I28: 111269S | J28: 0.9066687775
A29: Couto/Terry | B29: Dom. Air | C29: Southwest Airlines | D29: 2000-03-23 | F29: 194 | G29: 194 | H29: TPAMSYTPA | I29: 110766S | J29: 0.0842056076
A30: Couto/Terry | B30: Car | C30: Hertz | D30: 2000-02-04 | E30: 2000-02-07 | F30: 38.39 | G30: 115.17 | H30: EWR | I30: 109756S | J30: 0.7663416007
A31: Couto/Terry | B31: TRANS FEE | C31: ARC | D31: 2000-04-30 | F31: 10 | G31: 10 | H31: ARC | I31: 111269S | J31: 0.285332598
A32: Couto/Terry | B32: TRANS FEE | C32: ARC | D32: 2000-03-23 | F32: 10 | G32: 10 | H32: ARC | I32: 110766S | J32: 0.6486076968
A33: Cox/Becky | B33: Dom. Air | C33: Delta Air Lines | D33: 2000-05-15 | E33: 2000-05-19 | F33: 105.92 | G33: 423.68 | H33: MGMATLPHXATLTPA | I33: 110349S | J33: 0.8942534681
A34: Cox/Becky | B34: TRANS FEE | C34: ARC | D34: 2000-05-15 | F34: 10 | G34: 10 | H34: ARC | I34: 110349S | J34: 0.8950157417
A35: Cox/Becky | B35: Dom. Air | C35: Delta Air Lines | D35: 2000-05-15 | E35: 2000-05-19 | F35: 0 | G35: 0 | H35: MGMATLPHXATLMGM | I35: 110794S | J35: 0.3611097405
A36: Cox/William G | B36: Dom. Air | C36: Delta Air Lines | D36: 2000-05-15 | E36: 2000-05-19 | F36: 105.92 | G36: 423.68 | H36: MGMATLPHXATLTPA | I36: 110348S | J36: 0.871708966
A37: Cox/William G | B37: TRANS FEE | C37: ARC | D37: 2000-05-15 | F37: 10 | G37: 10 | H37: ARC | I37: 110348S | J37: 0.9536315424
A38: Cox/William G | B38: Dom. Air | C38: Delta Air Lines | D38: 2000-05-15 | E38: 2000-05-19 | F38: 0 | G38: 0 | H38: MGMATLPHXATLMGM | I38: 110793S | J38: 0.8908098298
A39: Coyle/Marcus | B39: Dom. Air | C39: Delta Air Lines | D39: 2000-05-15 | E39: 2000-05-19 | F39: 142.34 | G39: 569.36 | H39: ATLPHXATL | I39: 110742S | J39: 0.71858577
A40: Coyle/Marcus | B40: TRANS FEE | C40: ARC | D40: 2000-05-15 | F40: 10 | G40: 10 | H40: ARC | I40: 110742S | J40: 0.6159673643
A41: Coyle/Mary | B41: Dom. Air | C41: Delta Air Lines | D41: 2000-05-15 | E41: 2000-05-19 | F41: 142.34 | G41: 569.36 | H41: ATLPHXATL | I41: 110743S | J41: 0.9420256233
A42: Coyle/Mary | B42: TRANS FEE | C42: ARC | D42: 2000-05-15 | F42: 10 | G42: 10 | H42: ARC | I42: 110743S | J42: 0.5793638205
A43: Dain/Phyllis | B43: Dom. Air | C43: United Airlines | D43: 2000-04-10 | E43: 2000-04-14 | F43: 119.75 | G43: 479 | H43: ARCATWORDTPAORDATW | I43: 110939S | J43: 0.932960036
A44: Dain/Phyllis | B44: TRANS FEE | C44: ARC | D44: 2000-04-10 | F44: 10 | G44: 10 | H44: ARC | I44: 110939S | J44: 0.4247428986
A45: Deitz/Michele | B45: Dom. Air | C45: Delta Air Lines | D45: 2000-02-15 | E45: 2000-02-16 | F45: 300 | G45: 300 | H45: STLATLTPAATLSTL | I45: 109811S | J45: 0.8541907821
A46: Deitz/Michele | B46: TRANS FEE | C46: ARC | D46: 2000-02-15 | F46: 10 | G46: 10 | H46: ARC | I46: 109811S | J46: 0.1261659868
A47: Douglas/Jay | B47: Dom. Air | C47: Delta Air Lines | D47: 2000-05-15 | E47: 2000-05-19 | F47: 142.34 | G47: 569.36 | H47: ATLPHXATL | I47: 110372S | J47: 0.4809642579
A48: Douglas/Jay | B48: Dom. Air | C48: Delta Air Lines | D48: 2000-01-27 | E48: 2000-01-28 | F48: 175.5 | G48: 175.5 | H48: ATLDTWATL | I48: 109285S | J48: 0.6501956398
A49: Douglas/Jay | B49: TRANS FEE | C49: ARC | D49: 2000-01-27 | F49: 10 | G49: 10 | H49: ARC | I49: 109285S | J49: 0.4186801978
A50: Douglas/Jay | B50: TRANS FEE | C50: ARC | D50: 2000-05-15 | F50: 10 | G50: 10 | H50: ARC | I50: 110372S | J50: 0.9533019656
A51: Douglas/Steve | B51: Dom. Air | C51: Delta Air Lines | D51: 2000-05-15 | E51: 2000-05-19 | F51: 142.34 | G51: 569.36 | H51: ATLPHXATL | I51: 110373S | J51: 0.7126968679
A52: Douglas/Steve | B52: TRANS FEE | C52: ARC | D52: 2000-05-15 | F52: 10 | G52: 10 | H52: ARC | I52: 110373S | J52: 0.3170606904
A53: Drake/Deborah | B53: Dom. Air | C53: Delta Air Lines | D53: 2000-05-15 | E53: 2000-05-19 | F53: 50.5 | G53: 202 | H53: TPADFWPHXATLTPA | I53: 109890S | J53: 0.2494768019
A54: Drake/Deborah | B54: Dom. Air | C54: ARC | D54: 2000-05-15 | E54: 2000-05-19 | F54: 2.5 | G54: 10 | H54: TPADFWPHXATLTPA | I54: 109890S | J54: 0.8118523661
A55: Dulla/Katie | B55: Dom. Air | C55: America West Airlines | D55: 2000-05-16 | E55: 2000-05-19 | F55: 123.06 | G55: 369.19 | H55: ORDPHXORD | I55: 110957S | J55: 0.2511268164
A56: Dulla/Katie | B56: TRANS FEE | C56: ARC | D56: 2000-05-16 | F56: 10 | G56: 10 | H56: ARC | I56: 110957S | J56: 0.1616784567
A57: Dulla/Michael | B57: Dom. Air | C57: America West Airlines | D57: 2000-05-16 | E57: 2000-05-19 | F57: 123.06 | G57: 369.19 | H57: ORDPHXORD | I57: 110956S | J57: 0.4646167178
A58: Dulla/Michael | B58: TRANS FEE | C58: ARC | D58: 2000-05-16 | F58: 10 | G58: 10 | H58: ARC | I58: 110956S | J58: 0.4864395377
A59: Dunaway/Mary | B59: Dom. Air | C59: Delta Air Lines | D59: 2000-05-15 | E59: 2000-05-19 | F59: 145.09 | G59: 580.36 | H59: PNSATLPHXATLPNS | I59: 110229S | J59: 0.05559594279
A60: Dunaway/Mary | B60: TRANS FEE | C60: ARC | D60: 2000-05-15 | F60: 10 | G60: 10 | H60: ARC | I60: 110229S | J60: 0.8895689331
A61: Dunaway/Roger | B61: Dom. Air | C61: Delta Air Lines | D61: 2000-05-15 | E61: 2000-05-19 | F61: 145.09 | G61: 580.36 | H61: PNSATLPHXATLPNS | I61: 110228S | J61: 0.8218731
A62: Dunaway/Roger | B62: TRANS FEE | C62: ARC | D62: 2000-05-15 | F62: 10 | G62: 10 | H62: ARC | I62: 110228S | J62: 0.8970598707
A63: Glass/Helen | B63: Dom. Air | C63: United Airlines | D63: 2000-02-15 | E63: 2000-02-16 | F63: 377 | G63: 377 | H63: IADTPAIAD | I63: 109817S | J63: 0.7418289515
A64: Glass/Helen | B64: TRANS FEE | C64: ARC | D64: 2000-02-15 | F64: 10 | G64: 10 | H64: ARC | I64: 109817S | J64: 0.1622214757
A65: Griffin/Linda | B65: Dom. Air | C65: America West Airlines | D65: 2000-05-11 | E65: 2000-05-18 | F65: 53.21 | G65: 372.5 | H65: FLLLASPHXFLL | I65: 110584S | J65: 0.4742014686
A66: Griffin/Linda | B66: TRANS FEE | C66: ARC | D66: 2000-05-11 | F66: 10 | G66: 10 | H66: ARC | I66: 110584S | J66: =RAND() -> 0.8626029426
A67: Hargett/Judy | B67: Dom. Air | C67: Delta Air Lines | D67: 2000-05-15 | E67: 2000-05-19 | F67: 142.34 | G67: 569.36 | H67: ATLPHXATL | I67: 110374S | J67: 0.4878400715
A68: Hargett/Judy | B68: TRANS FEE | C68: ARC | D68: 2000-05-15 | F68: 10 | G68: 10 | H68: ARC | I68: 110374S | J68: 0.2830946533
A69: Hawks/Tammy | B69: Dom. Air | C69: Delta Air Lines | D69: 2000-05-15 | E69: 2000-05-19 | F69: 142.34 | G69: 569.36 | H69: ATLPHXATL | I69: 110375S | J69: 0.32971727
A70: Hawks/Tammy | B70: Dom. Air | C70: Delta Air Lines | D70: 2000-01-27 | E70: 2000-01-28 | F70: 175.5 | G70: 175.5 | H70: ATLDTWATL | I70: 109286S | J70: 0.8478967353
A71: Hawks/Tammy | B71: TRANS FEE | C71: ARC | D71: 2000-05-15 | F71: 10 | G71: 10 | H71: ARC | I71: 110375S | J71: 0.9181256829
A72: Hawks/Tammy | B72: TRANS FEE | C72: ARC | D72: 2000-01-27 | F72: 10 | G72: 10 | H72: ARC | I72: 109286S | J72: 0.4825293028
A73: Hill/Joseph | B73: Dom. Air | C73: Delta Air Lines | D73: 2000-03-15 | E73: 2000-03-20 | F73: 85 | G73: 425 | H73: TPADFWRNODFWTPA | I73: 110435S | J73: 0.4579290158
A74: Hill/Joseph | B74: TRANS FEE | C74: ARC | D74: 2000-03-15 | F74: 10 | G74: 10 | H74: ARC | I74: 110435S | J74: 0.4177157734
A75: Hill/Vicki | B75: Dom. Air | C75: Continental Airlines | D75: 2000-02-13 | E75: 2000-02-18 | F75: 129.5 | G75: 647.5 | H75: TPAIAHDFWIAHTPA | I75: 109835S | J75: 0.3109273534
A76: Hill/Vicki | B76: Dom. Air | C76: Trans World Airlines | D76: 2000-03-27 | E76: 2000-03-31 | F76: 101 | G76: 404 | H76: TPASTLMCISTLTPA | I76: 110782S | J76: 0.5092255305
A77: Hill/Vicki | B77: Dom. Air | C77: Delta Air Lines | D77: 2000-03-15 | E77: 2000-03-23 | F77: 40 | G77: 320 | H77: TPADFWRNODFWTPA | I77: 110434S | J77: 0.2765400118
A78: Hill/Vicki | B78: Car | C78: Hertz | D78: 2000-02-27 | E78: 2000-03-03 | F78: 53 | G78: 265 | H78: DFW | I78: 110019S | J78: 0.1209338394
A79: Hill/Vicki | B79: Car | C79: Hertz | D79: 2000-02-27 | E79: 2000-03-03 | F79: 53 | G79: 265 | H79: DFW | I79: 110018S | J79: 0.3763540474
A80: Hill/Vicki | B80: Car | C80: Hertz | D80: 2000-02-13 | E80: 2000-02-18 | F80: 53 | G80: 265 | H80: DFW | I80: 109835S | J80: 0.01445409281
A81: Hill/Vicki | B81: Car | C81: Alamo | D81: 2000-03-27 | E81: 2000-03-31 | F81: 42.23 | G81: 168.92 | H81: MCI | I81: 110782S | J81: 0.7017373036
A82: Hill/Vicki | B82: Dom. Air | C82: Continental Airlines | D82: 2000-02-27 | E82: 2000-03-03 | F82: 15 | G82: 75 | H82: TPAIAHDFWIAHTPA | I82: 110019S | J82: 0.1666588037
A83: Hill/Vicki | B83: Hotel | C83: FAIRFIELD INN | D83: 2000-03-30 | E83: 2000-03-31 | F83: 64 | G83: 64 | H83: MCI | I83: 110782S | J83: 0.9388215511
A84: Hill/Vicki | B84: TRANS FEE | C84: ARC | D84: 2000-02-27 | F84: 10 | G84: 10 | H84: ARC | I84: 110018S | J84: 0.9260711742
A85: Hill/Vicki | B85: TRANS FEE | C85: ARC | D85: 2000-02-13 | F85: 10 | G85: 10 | H85: ARC | I85: 109835S | J85: 0.6694749342
A86: Hill/Vicki | B86: TRANS FEE | C86: ARC | D86: 2000-03-15 | F86: 10 | G86: 10 | H86: ARC | I86: 110434S | J86: 0.1474368787
A87: Hill/Vicki | B87: TRANS FEE | C87: ARC | D87: 2000-03-27 | F87: 10 | G87: 10 | H87: ARC | I87: 110782S | J87: 0.151694177
A88: Hill/Vickki | B88: Dom. Air | C88: Continental Airlines | D88: 2000-02-27 | E88: 2000-03-03 | F88: 0 | G88: 0 | H88: DFW | I88: 110019S | J88: 0.7890630731
A89: Hopson/Marie | B89: Dom. Air | C89: Delta Air Lines | D89: 2000-02-15 | E89: 2000-02-16 | F89: 749 | G89: 749 | H89: DENATLTPAATLDEN | I89: 109814S | J89: 0.5709947604
A90: Hopson/Marie | B90: TRANS FEE | C90: ARC | D90: 2000-02-15 | F90: 10 | G90: 10 | H90: ARC | I90: 109814S | J90: 0.8167873886
A91: Hosek/Sybil | B91: Dom. Air | C91: America West Airlines | D91: 2000-05-15 | E91: 2000-05-21 | F91: 50.69 | G91: 304.18 | H91: ORDPHXORD | I91: 110188S | J91: 0.2697810411
A92: Hosek/Sybil | B92: TRANS FEE | C92: ARC | D92: 2000-05-15 | F92: 10 | G92: 10 | H92: ARC | I92: 110188S | J92: 0.08165703471
A93: Jernigan/Debbie | B93: TRANS FEE | C93: ARC | D93: 2000-01-27 | F93: 10 | G93: 10 | H93: ARC | I93: 109556S | J93: 0.3260793512
A94: Jernigan/Deborah | B94: Dom. Air | C94: Delta Air Lines | D94: 2000-05-15 | E94: 2000-05-20 | F94: 113.87 | G94: 569.36 | H94: ATLPHXATL | I94: 110134S | J94: 0.7786316334
A95: Jernigan/Deborah | B95: TRANS FEE | C95: ARC | D95: 2000-05-15 | F95: 10 | G95: 10 | H95: ARC | I95: 110134S
A96: Jernigan/Tyrus | B96: Dom. Air | C96: Delta Air Lines | D96: 2000-05-15 | E96: 2000-05-20 | F96: 113.87 | G96: 569.36 | H96: ATLPHXATL | I96: 110135S
A97: Jernigan/Tyrus | B97: TRANS FEE | C97: ARC | D97: 2000-05-15 | F97: 10 | G97: 10 | H97: ARC | I97: 110135S
A98: Jiles.randall | B98: Dom. Air | C98: Southwest Airlines | D98: 2000-03-02 | F98: 388 | G98: 388 | I98: 110559S
A99: Jiles/Frances | B99: Dom. Air | C99: USAir | D99: 2000-04-14 | E99: 2000-04-16 | F99: 158.5 | G99: 317 | H99: PVDPHLJAXPHLPVD | I99: 110581S
A100: Jiles/Frances | B100: Dom. Air | C100: Southwest Airlines | D100: 2000-02-11 | F100: 238.5 | G100: 238.5 | H100: PVDTPAPVD | I100: 109723S
A101: Jiles/Frances | B101: TRANS FEE | C101: ARC | D101: 2000-02-11 | F101: 10 | G101: 10 | H101: ARC | I101: 109723S
A102: Jiles/Frances | B102: TRANS FEE | C102: ARC | D102: 2000-03-08 | F102: 10 | G102: 10 | H102: ARC | I102: 110214S
A103: Jiles/Frances | B103: TRANS FEE | C103: ARC | D103: 2000-04-14 | F103: 10 | G103: 10 | H103: ARC | I103: 110581S
A104: Jiles/Helvey | B104: Dom. Air | C104: Southwest Airlines | D104: 2000-03-03 | F104: 393 | G104: 393 | H104: TPASTLTPA | I104: 110491S
A105: Jiles/Helvey | B105: Car | C105: Hertz | D105: 2000-03-03 | E105: 2000-03-12 | F105: 34.12 | G105: 307.13 | H105: STL | I105: 110491S
A106: Jiles/Helvey | B106: TRANS FEE | C106: ARC | D106: 2000-03-03 | F106: 10 | G106: 10 | H106: ARC | I106: 110491S
A107: Jiles/Paul | B107: Dom. Air | C107: Delta Air Lines | D107: 2000-03-17 | E107: 2000-03-19 | F107: 195.25 | G107: 390.5 | H107: MSYATLCHSATLMSY | I107: 110393S
A108: Jiles/Paul | B108: TRANS FEE | C108: ARC | D108: 2000-03-17 | F108: 10 | G108: 10 | H108: ARC | I108: 110393S
A109: Jiles/Randall | B109: Hotel | C109: Marriott Lincolnshire | D109: 2000-04-06 | E109: 2000-04-09 | F109: 218 | G109: 654 | H109: MSY | I109: 110185S
A110: Jiles/Randall | B110: Dom. Air | C110: Delta Air Lines | D110: 2000-05-15 | E110: 2000-05-18 | F110: 183.01 | G110: 549.04 | H110: PVDATLPHXCVGPVD | I110: 110478S
A111: Jiles/Randall | B111: Dom. Air | C111: Delta Air Lines | D111: 2000-01-26 | E111: 2000-01-28 | F111: 236 | G111: 472 | H111: TPACVGDTWATLTPA | I111: 109246S
A112: Jiles/Randall | B112: Dom. Air | C112: United Airlines | D112: 2000-04-30 | E112: 2000-05-09 | F112: 52.22 | G112: 470 | H112: PVDORDTPAIADPVD | I112: 111140S
A113: Jiles/Randall | B113: Dom. Air | C113: Delta Air Lines | D113: 2000-02-24 | E113: 2000-02-27 | F113: 126.33 | G113: 379 | H113: TPAATLDCAPVDATLTPA | I113: 110179S
A114: Jiles/Randall | B114: Dom. Air | C114: Delta Air Lines | D114: 2000-03-31 | E114: 2000-04-02 | F114: 181.5 | G114: 363 | H114: TPAATLPVDATLTPA | I114: 110165S
A115: Jiles/Randall | B115: Dom. Air | C115: Delta Air Lines | D115: 2000-03-10 | E115: 2000-03-12 | F115: 180 | G115: 360 | H115: TPAPVDATLTPA | I115: 110168S
A116: Jiles/Randall | B116: Dom. Air | C116: Delta Air Lines | D116: 2000-03-17 | E116: 2000-03-19 | F116: 180 | G116: 360 | H116: TPAPVDATLTPA | I116: 110167S
A117: Jiles/Randall | B117: Dom. Air | C117: Delta Air Lines | D117: 2000-03-24 | E117: 2000-03-26 | F117: 180 | G117: 360 | H117: TPAPVDATLTPA | I117: 110166S
A118: Jiles/Randall | B118: Dom. Air | C118: Delta Air Lines | D118: 2000-05-12 | E118: 2000-05-22 | F118: 36 | G118: 360 | H118: TPAPVDATLTPA | I118: 110470S
A119: Jiles/Randall | B119: Dom. Air | C119: Northwest Airlines | D119: 2000-01-28 | E119: 2000-02-02 | F119: 66.2 | G119: 331 | H119: DTWTPADTW | I119: 109678S
A120: Jiles/Randall | B120: Dom. Air | C120: Delta Air Lines | D120: 2000-03-02 | E120: 2000-03-07 | F120: 56.8 | G120: 284 | H120: TPACVGPVDDCAATLTPA | I120: 110176S
A121: Jiles/Randall | B121: Dom. Air | C121: USAir | D121: 2000-03-06 | E121: 2000-03-06 | F121: 272.5 | G121: 272.5 | H121: PVDDCA | I121: 110178S
A122: Jiles/Randall | B122: Dom. Air | C122: Delta Air Lines | D122: 2000-03-03 | E122: 2000-03-05 | F122: 130.5 | G122: 261 | H122: TPAPVDATLTPA | I122: 109090S
A123: Jiles/Randall | B123: Dom. Air | C123: Southwest Airlines | D123: 2000-04-06 | F123: 194 | G123: 194 | H123: TPAMSYTPA | I123: 110185S
A124: Jiles/Randall | B124: Dom. Air | C124: Delta Air Lines | D124: 2000-01-29 | E124: 2000-01-31 | F124: 96 | G124: 192 | H124: TPAATLTPA | I124: 109245S
A125: Jiles/Randall | B125: Dom. Air | C125: Delta Air Lines | D125: 2000-04-21 | E125: 2000-04-23 | F125: 88 | G125: 176 | H125: TPAPVDATLTPA | I125: 110192S
A126: Jiles/Randall | B126: Dom. Air | C126: United Airlines | D126: 2000-06-28 | E126: 2000-06-30 | F126: 86.5 | G126: 173 | H126: TPAIADTPA | I126: 111093S
A127: Jiles/Randall | B127: Dom. Air | C127: Delta Air Lines | D127: 2000-05-05 | E127: 2000-05-07 | F127: 59 | G127: 118 | H127: TPAPVDATLTPA | I127: 111102S
A128: Jiles/Randall | B128: Car | C128: Hertz | D128: 2000-04-06 | E128: 2000-04-09 | F128: 35.09 | G128: 105.27 | H128: MSY | I128: 110185S
A129: Jiles/Randall | B129: Dom. Air | C129: USAir | D129: 2000-02-25 | E129: 2000-02-25 | F129: 104.5 | G129: 104.5 | H129: BWIPVD | I129: 110177S
A130: Jiles/Randall | B130: Dom. Air | C130: Delta Air Lines | D130: 2000-04-28 | E130: 2000-04-30 | F130: 43 | G130: 86 | H130: TPAATLPVDATLTPA | I130: 110196S
A131: Jiles/Randall | B131: Dom. Air | C131: Delta Air Lines | D131: 2000-01-27 | E131: 2000-01-28 | F131: 75 | G131: 75 | H131: TPAATLDTWATLTPA | I131: 109606S
A132: Jiles/Randall | B132: Car | C132: Hertz | D132: 2000-01-27 | E132: 2000-01-28 | F132: 63 | G132: 63 | H132: DTW | I132: 109606S
A133: Jiles/Randall | B133: TRANS FEE | C133: ARC | D133: 2000-01-26 | F133: 10 | G133: 10 | H133: ARC | I133: 109246S
A134: Jiles/Randall | B134: TRANS FEE | C134: ARC | D134: 2000-01-27 | F134: 10 | G134: 10 | H134: ARC | I134: 109619S
A135: Jiles/Randall | B135: TRANS FEE | C135: ARC | D135: 2000-01-28 | F135: 10 | G135: 10 | H135: ARC | I135: 109678S
A136: Jiles/Randall | B136: TRANS FEE | C136: ARC | D136: 2000-01-29 | F136: 10 | G136: 10 | H136: ARC | I136: 109245S
A137: Jiles/Randall | B137: TRANS FEE | C137: ARC | D137: 2000-02-24 | F137: 10 | G137: 10 | H137: ARC | I137: 110179S
A138: Jiles/Randall | B138: TRANS FEE | C138: ARC | D138: 2000-03-02 | F138: 10 | G138: 10 | H138: ARC | I138: 110176S
A139: Jiles/Randall | B139: TRANS FEE | C139: ARC | D139: 2000-03-02 | F139: 10 | G139: 10 | H139: ARC | I139: 110559S
A140: Jiles/Randall | B140: TRANS FEE | C140: ARC | D140: 2000-03-03 | F140: 10 | G140: 10 | H140: ARC | I140: 109090S
A141: Jiles/Randall | B141: TRANS FEE | C141: ARC | D141: 2000-03-10 | F141: 10 | G141: 10 | H141: ARC | I141: 110168S
A142: Jiles/Randall | B142: TRANS FEE | C142: ARC | D142: 2000-03-17 | F142: 10 | G142: 10 | H142: ARC | I142: 110167S
A143: Jiles/Randall | B143: TRANS FEE | C143: ARC | D143: 2000-03-24 | F143: 10 | G143: 10 | H143: ARC | I143: 110166S
A144: Jiles/Randall | B144: TRANS FEE | C144: ARC | D144: 2000-03-31 | F144: 10 | G144: 10 | H144: ARC | I144: 110165S
A145: Jiles/Randall | B145: TRANS FEE | C145: ARC | D145: 2000-04-06 | F145: 10 | G145: 10 | H145: ARC | I145: 110185S
A146: Jiles/RANDALL | B146: Dom. Air | C146: ARC | D146: 2000-04-21 | E146: 2000-04-23 | F146: 5 | G146: 10 | H146: TPAPVDATLTPA | I146: 110192S
A147: Jiles/Randall | B147: TRANS FEE | C147: ARC | D147: 2000-04-28 | F147: 10 | G147: 10 | H147: ARC | I147: 110187S
A148: Jiles/Randall | B148: TRANS FEE | C148: ARC | D148: 2000-04-30 | F148: 10 | G148: 10 | H148: ARC | I148: 111140S
A149: Jiles/Randall | B149: TRANS FEE | C149: ARC | D149: 2000-05-05 | F149: 10 | G149: 10 | H149: ARC | I149: 111100S
A150: Jiles/Randall | B150: TRANS FEE | C150: ARC | D150: 2000-05-12 | F150: 10 | G150: 10 | H150: ARC | I150: 110470S
A151: Jiles/Randall | B151: TRANS FEE | C151: ARC | D151: 2000-05-15 | F151: 10 | G151: 10 | H151: ARC | I151: 110478S
A152: Jiles/Randall | B152: TRANS FEE | C152: ARC | D152: 2000-06-28 | F152: 10 | G152: 10 | H152: ARC | I152: 111093S
A153: Jiles/Randall | B153: Car | C153: Hertz | D153: 2000-01-27 | E153: 2000-01-28 | F153: 0 | G153: 0 | H153: DTW | I153: 109619S
A154: Jiles/Randall | B154: Dom. Air | C154: USAir | D154: 2000-03-06 | E154: 2000-03-06 | F154: -272.5 | G154: -272.5 | H154: PVDDCA | I154: 110178R
A155: Jiles/Tyler | B155: Dom. Air | C155: Delta Air Lines | D155: 2000-02-18 | E155: 2000-02-22 | F155: 171.75 | G155: 687 | H155: PVDCVGTPAMCOPVD | I155: 110006S
A156: Jiles/Tyler | B156: Dom. Air | C156: USAir | D156: 2000-04-14 | E156: 2000-04-16 | F156: 158.5 | G156: 317 | H156: PVDPHLJAXPHLPVD | I156: 110582S
A157: Jiles/Tyler | B157: TRANS FEE | C157: ARC | D157: 2000-02-11 | F157: 10 | G157: 10 | H157: ARC | I157: 109723S
A158: Jiles/Tyler | B158: TRANS FEE | C158: ARC | D158: 2000-02-18 | F158: 10 | G158: 10 | H158: ARC | I158: 110006S
A159: Jiles/Tyler | B159: TRANS FEE | C159: ARC | D159: 2000-03-08 | F159: 10 | G159: 10 | H159: ARC | I159: 110215S
A160: Jiles/Tyler | B160: TRANS FEE | C160: ARC | D160: 2000-04-14 | F160: 10 | G160: 10 | H160: ARC | I160: 110582S
A161: JilesTyler | B161: Dom. Air | C161: Southwest Airlines | D161: 2000-02-11 | F161: 238.5 | G161: 238.5 | H161: PVDTPAPVD | I161: 109723S
A162: Kaufman/Jeff | B162: Dom. Air | C162: America West Airlines | D162: 2000-05-13 | E162: 2000-05-19 | F162: 56.33 | G162: 338 | H162: FLLLASPHXFLL | I162: 110597S
A163: Kaufman/Jeff | B163: TRANS FEE | C163: ARC | D163: 2000-05-13 | F163: 10 | G163: 10 | H163: ARC | I163: 110597S
A164: Kaufman/Tracy | B164: Dom. Air | C164: America West Airlines | D164: 2000-05-13 | E164: 2000-05-19 | F164: 56.33 | G164: 338 | H164: FLLLASPHXFLL | I164: 110598S
A165: Kaufman/Tracy | B165: TRANS FEE | C165: ARC | D165: 2000-05-13 | F165: 10 | G165: 10 | H165: ARC | I165: 110598S
A166: Komar/Gary | B166: Dom. Air | C166: America West Airlines | D166: 2000-05-15 | E166: 2000-05-21 | F166: 50.69 | G166: 304.18 | H166: ORDPHXORD | I166: 110189S
A167: Komar/Gary | B167: TRANS FEE | C167: ARC | D167: 2000-05-15 | F167: 10 | G167: 10 | H167: ARC | I167: 110189S
A168: Lawson/Robert | B168: Dom. Air | C168: Delta Air Lines | D168: 2000-02-25 | E168: 2000-02-28 | F168: 360.66 | G168: 1082 | H168: DAYCVGTPACVGDAY | I168: 110324S
A169: Lawson/Robert | B169: TRANS FEE | C169: ARC | D169: 2000-02-25 | F169: 10 | G169: 10 | H169: ARC | I169: 110324S
A170: Lipman/Rick | B170: Dom. Air | C170: Delta Air Lines | D170: 2000-05-15 | E170: 2000-05-19 | F170: 242.97 | G170: 971.88 | H170: RSWATLPHXATLRSW | I170: 110519S
A171: Lipman/Rick | B171: TRANS FEE | C171: ARC | D171: 2000-05-15 | F171: 10 | G171: 10 | H171: ARC | I171: 110519S
A172: Lostroh/Barry | B172: Dom. Air | C172: America West Airlines | D172: 2000-05-15 | E172: 2000-05-19 | F172: 79.43 | G172: 317.72 | H172: DENPHXDEN | I172: 110088S
A173: Lostroh/Barry | B173: TRANS FEE | C173: ARC | D173: 2000-05-15 | F173: 10 | G173: 10 | H173: ARC | I173: 110088S
A174: Lostroh/Joshua | B174: Dom. Air | C174: America West Airlines | D174: 2000-05-15 | E174: 2000-05-19 | F174: 79.43 | G174: 317.72 | H174: DENPHXDEN | I174: 110089S
A175: Lostroh/Joshua | B175: TRANS FEE | C175: ARC | D175: 2000-05-15 | F175: 10 | G175: 10 | H175: ARC | I175: 110089S
A176: Manning/Connie | B176: Dom. Air | C176: Delta Air Lines | D176: 2000-05-15 | E176: 2000-05-19 | F176: 109.5 | G176: 438 | H176: TPAATLPHXATLTPA | I176: 110152S
A177: Manning/Connie | B177: TRANS FEE | C177: ARC | D177: 2000-05-15 | F177: 10 | G177: 10 | H177: ARC | I177: 110152S
A178: Maxwell/Lauren | B178: Dom. Air | C178: Delta Air Lines | D178: 2000-05-15 | E178: 2000-05-19 | F178: 242.97 | G178: 971.88 | H178: RSWATLPHXATLRSW | I178: 110520S
A179: Maxwell/Lauren | B179: TRANS FEE | C179: ARC | D179: 2000-05-15 | F179: 10 | G179: 10 | H179: ARC | I179: 110520S
A180: Mcnulty/Margaret | B180: Dom. Air | C180: American Airlines | D180: 2000-05-10 | E180: 2000-05-19 | F180: 34.88 | G180: 314 | H180: ORDPHXORD | I180: 110121S
A181: Mcnulty/Margaret | B181: TRANS FEE | C181: ARC | D181: 2000-05-10 | F181: 10 | G181: 10 | H181: ARC | I181: 110121S
A182: Mcnulty/Tom | B182: Dom. Air | C182: American Airlines | D182: 2000-05-10 | E182: 2000-05-19 | F182: 34.88 | G182: 314 | H182: ORDPHXORD | I182: 110120S
A183: Mcnulty/Tom | B183: TRANS FEE | C183: ARC | D183: 2000-05-10 | F183: 10 | G183: 10 | H183: ARC | I183: 110120S
A184: Munch/Rick | B184: Dom. Air | C184: Delta Air Lines | D184: 2000-05-16 | E184: 2000-05-19 | F184: 182.01 | G184: 546.04 | H184: IADPHXATLIAD | I184: 110775S
A185: Munch/Rick | B185: TRANS FEE | C185: ARC | D185: 2000-05-16 | F185: 10 | G185: 10 | H185: ARC | I185: 110775S
A186: Munch/William | B186: Dom. Air | C186: Delta Air Lines | D186: 2000-05-16 | E186: 2000-05-19 | F186: 182.01 | G186: 546.04 | H186: IADPHXATLIAD | I186: 110776S
A187: Munch/William | B187: TRANS FEE | C187: ARC | D187: 2000-05-16 | F187: 10 | G187: 10 | H187: ARC | I187: 110776S
A188: Murphy/Niki | B188: Dom. Air | C188: Delta Air Lines | D188: 2000-02-03 | E188: 2000-02-06 | F188: 81.66 | G188: 245 | H188: TPAATLTPA | I188: 109637S
A189: Murphy/Niki | B189: Car | C189: Hertz | D189: 2000-02-03 | E189: 2000-02-06 | F189: 38.94 | G189: 116.82 | H189: ATL | I189: 109637S
A190: Murphy/Niki | B190: TRANS FEE | C190: ARC | D190: 2000-02-03 | F190: 10 | G190: 10 | H190: ARC | I190: 109637S
A191: Newberry/Dayla | B191: Dom. Air | C191: America West Airlines | D191: 2000-05-15 | E191: 2000-05-19 | F191: 79.43 | G191: 317.72 | H191: DENPHXDEN | I191: 110221S
A192: Newberry/Dayla | B192: TRANS FEE | C192: ARC | D192: 2000-05-15 | F192: 10 | G192: 10 | H192: ARC | I192: 110221S
A193: Newberry/Tye | B193: Dom. Air | C193: America West Airlines | D193: 2000-05-15 | E193: 2000-05-19 | F193: 79.43 | G193: 317.72 | H193: DENPHXDEN | I193: 110220S
A194: Newberry/Tye | B194: TRANS FEE | C194: ARC | D194: 2000-05-15 | F194: 10 | G194: 10 | H194: ARC | I194: 110220S
A195: Newell/Patricia | B195: Dom. Air | C195: America West Airlines | D195: 2000-05-14 | E195: 2000-05-20 | F195: 52.95 | G195: 317.72 | H195: DENPHXDEN | I195: 110190S
A196: Newell/Patricia | B196: Dom. Air | C196: United Airlines | D196: 2000-01-27 | E196: 2000-01-30 | F196: 99.66 | G196: 299 | H196: DENDTWDEN | I196: 109343S
A197: Newell/Patricia | B197: Car | C197: Budget | D197: 2000-01-27 | E197: 2000-01-30 | F197: 24.99 | G197: 74.97 | H197: DTW | I197: 109483S
A198: Newell/Patricia | B198: TRANS FEE | C198: ARC | D198: 2000-01-27 | F198: 10 | G198: 10 | H198: ARC | I198: 109343S
A199: Newell/Patricia | B199: TRANS FEE | C199: ARC | D199: 2000-05-14 | F199: 10 | G199: 10 | H199: ARC | I199: 110190S
A200: Newell/Steve | B200: Dom. Air | C200: America West Airlines | D200: 2000-05-14 | E200: 2000-05-20 | F200: 52.95 | G200: 317.72 | H200: DENPHXDEN | I200: 110191S
... 96 more rows

Sheet First Quarter
B3: First Quarter Sales
C4: January | D4: February | E4: March | F4: Total Sales
B5: New Mexico | C5: 1345 | D5: 2345 | E5: 4567 | F5: =SUM(C5:E5) -> 8257
B6: Washington | C6: 3333 | D6: 3456 | E6: 6443 | F6: =SUM(C6:E6) -> 13232
B7: Oregon | C7: 2356 | D7: 7665 | E7: 9999 | F7: =SUM(C7:E7) -> 20020
B8: Colorado | C8: 4000 | D8: 4444 | E8: 5555 | F8: =SUM(C8:E8) -> 13999

Sheet Manager List
A1: First Name | B1: Last Name | C1: Hire Date | D1: SS # | E1: Department | F1: Position | G1: Annual Salary | H1: Perf Rating | I1: Mgmt Level
A2: elizabeth | B2: ridenhauer | C2: 1997-04-29 | D2: 459306733 | E2: Corporate Manager | F2: Vice President | G2: 65000 | H2: 5 | I2: 1
A3: elizabeth | B3: ridenhauer | C3: 1997-04-29 | D3: 459306733 | E3: Corporate Manager | F3: Vice President | G3: 65000 | H3: 5 | I3: 1
A4: alice | B4: wortman | C4: 1998-04-03 | D4: 707942310 | E4: Corporate Manager | F4: Marketing Manager | G4: 85000 | H4: 4 | I4: 2
A5: tyrone | B5: anderson | C5: 1995-12-02 | D5: 146902472 | E5: Corporate Staff | F5: Division Manager | G5: 42000 | H5: 3 | I5: 3
A6: stuart | B6: klein | C6: 1999-05-28 | D6: 345005582 | E6: Corporate Staff | F6: Accounting Staff | G6: 55000 | H6: 4 | I6: 2
A7: catherine | B7: forest | C7: 2000-06-14 | D7: 368370245 | E7: Corporate Manager | F7: Director of Advertising | G7: 46000 | H7: 3 | I7: 2
A8: mechell | B8: clese | C8: 1995-05-09 | D8: 456080278 | E8: Corporate Staff | F8: Copy Writer | G8: 58000 | H8: 3 | I8: 4
A9: kate | B9: jones | C9: 2000-07-25 | D9: 481349363 | E9: Corporate Staff | F9: Accounting Staff | G9: 45000 | H9: 2 | I9: 3
A10: ellen | B10: spinnaker | C10: 1993-04-07 | D10: 570286844 | E10: Corporate Staff | F10: Circulation Manager | G10: 70000 | H10: 4 | I10: 3
A11: will | B11: mullen | C11: 1999-06-08 | D11: 611048942 | E11: Corporate Staff | F11: Division Manager | G11: 53500 | H11: 4 | I11: 3
A12: brad | B12: turner | C12: 1997-09-17 | D12: 345035237 | E12: Management Staff | F12: Accounting Staff | G12: 65000 | H12: 3 | I12: 3
A13: mark | B13: macdowell | C13: 2000-05-06 | D13: 820015532 | E13: Management Staff | F13: Web Manager | G13: 55000 | H13: 2 | I13: 3
A14: william | B14: martin | C14: 1952-07-01 | D14: 469440032 | E14: Retail | F14: Product Manager | G14: 55500 | H14: 2 | I14: 3
A15: jim | B15: kirney | C15: 1995-10-28 | D15: 618035383 | E15: Retail | F15: Product Manager | G15: 47500 | H15: 3 | I15: 3
A16: michelle | B16: campbell | C16: 1998-05-05 | D16: 681302482 | E16: Management Staff | F16: Accounting Staff | G16: 42000 | H16: 3 | I16: 2
A17: ty | B17: simmons | C17: 1999-05-14 | D17: 679694534 | E17: Retail | F17: Product Manager | G17: 57500 | H17: 3 | I17: 3
A18: dennis | B18: denton | C18: 1987-07-04 | D18: 692241314 | E18: Section Manager | F18: Director of Training | G18: 45000 | H18: 4 | I18: 3
A19: michael | B19: gapner | C19: 1961-08-20 | D19: 706670481 | E19: Management Staff | F19: Payroll Manager | G19: 48000 | H19: 3 | I19: 3
A20: eileen | B20: wilson | C20: 1995-07-29 | D20: 682110774 | E20: Retail | F20: Product Manager | G20: 48000 | H20: 4 | I20: 3
A21: george | B21: fernandez | C21: 1997-03-30 | D21: 781041004 | E21: Corporate Manager | F21: Office Manager | G21: 48000 | H21: 5 | I21: 2
A22: james | B22: bruce | C22: 2000-05-29 | D22: 248944357 | E22: Section Manager | F22: Dir. Of Shipping | G22: 55000 | H22: 1 | I22: 3
A23: marcia | B23: smith | C23: 1995-01-14 | D23: 931026545 | E23: Corporate Manager | F23: General Sales Manager | G23: 42000 | H23: 2 | I23: 2

Sheet BLANK (4)

Sheet ENTER EDIT (7)
B2: This is text
B3: 772
B4: 38540
B5: 2005-07-07
B7: 1900-01-01
B9: Januayr

Sheet KEYBOARD

Sheet FORMATTING (17)
B3: First Quarter Sales
C4: January | D4: February | E4: March | F4: Total | G4: Comments
B5: Oregon | C5: 34566 | D5: 2345 | E5: 5000 | F5: =SUM(C5:E5) -> 41911
B6: California | C6: 3333 | D6: 4000 | E6: 7000 | F6: =SUM(C6:E6) -> 14333
B7: Washington | C7: 2356 | D7: 7665 | E7: 9999 | F7: =SUM(C7:E7) -> 20020
B8: Texas | C8: 3333 | D8: 4444 | E8: 5555 | F8: =SUM(C8:E8) -> 13332

Sheet DATES (4)
B1: Static | C1: Dynamic
A2: Current Date
A4: Current Time

Sheet INTRO FORMULAS (11)
C2: January | D2: February | E2: Total
B3: Product A | C3: 12 | D3: 6
B4: Product B | C4: 9 | D4: 14
B5: Product C | C5: 18 | D5: 2
B7: Note:
B8: Product A
B9: Price
B10: Revenue
C14: +
C15: -
C16: *
C17: /

Sheet RANGE NAMES (5)
A1: Tax Rate | B1: 0.0825
A3: Price | B3: Shipping | C3: Total
A4: 12 | B4: 2
A5: 15 | B5: 3
A6: 18 | B6: 4
A7: 25 | B7: 5

Sheet 1ST QTR
B3: First Quarter Sales
C4: January | D4: February | E4: March | F4: Total Sales
B5: Arizona | C5: 1345 | D5: 2345 | E5: 4567 | F5: =SUM(C5:E5) -> 8257
B6: Texas | C6: 3333 | D6: 3456 | E6: 6443 | F6: =SUM(C6:E6) -> 13232
B7: Oregon | C7: 2356 | D7: 7665 | E7: 9999 | F7: =SUM(C7:E7) -> 20020
B8: Colorado | C8: 4000 | D8: 4444 | E8: 5555 | F8: =SUM(C8:E8) -> 13999

Sheet 2ND QTR
B3: Second Quarter Sales
C4: April | D4: May | E4: June | F4: Total Sales
B5: Arizona | C5: 2690 | D5: 4690 | E5: 9134 | F5: =SUM(C5:E5) -> 16514
B6: Texas | C6: 5774 | D6: 16912 | E6: 12886 | F6: =SUM(C6:E6) -> 35572
B7: Oregon | C7: 4712 | D7: 5330 | E7: 19998 | F7: =SUM(C7:E7) -> 30040
B8: Colorado | C8: 3421 | D8: 5402 | E8: 6324 | F8: =SUM(C8:E8) -> 15147

Sheet 3RD QTR
B3: Third Quarter Sales
C4: July | D4: August | E4: September | F4: Total Sales
B5: Arizona | C5: 6347 | D5: 542 | E5: 6733 | F5: =SUM(C5:E5) -> 13622
B6: Texas | C6: 2736 | D6: 8763 | E6: 5741 | F6: =SUM(C6:E6) -> 17240
B7: Oregon | C7: 453 | D7: 6426 | E7: 67353 | F7: =SUM(C7:E7) -> 74232
B8: Colorado | C8: 5321 | D8: 6742 | E8: 8964 | F8: =SUM(C8:E8) -> 21027

Sheet 4th QTR
B3: Fourth Quarter Sales
C4: October | D4: November | E4: December | F4: Total Sales
B5: Arizona | C5: 546 | D5: 7642 | E5: 32256 | F5: =SUM(C5:E5) -> 40444
B6: Texas | C6: 7542 | D6: 653 | E6: 8624 | F6: =SUM(C6:E6) -> 16819
B7: Oregon | C7: 2356 | D7: 6422 | E7: 9635 | F7: =SUM(C7:E7) -> 18413
B8: Colorado | C8: 12345 | D8: 5732 | E8: 8532 | F8: =SUM(C8:E8) -> 26609

Sheet ANNUAL SUMMARY (16)
B3: Year End Summary
C4: 1st QTR | D4: 2nd QTR | E4: 3rd QTR | F4: 4th QTR | G4: Total | H4: Total Check
B5: Arizona
B6: Texas
B7: Oregon
B8: Colorado

Sheet FUNCTIONS (15)
A1: Company | B1: FName | C1: LName | D1: Title | E1: QTR 1 | F1: QTR 2 | G1: QTR 3 | H1: QTR 4 | I1: Yearly Total
A2: JJ Pharma | B2: Jaime | C2: Swindell | D2: Engineer | E2: 3200 | F2: 4391 | G2: 4549 | H2: 4707 | I2: =SUM(E2:H2) -> 16847
A3: HI Labs | B3: Mani | C3: Brannon | D3: Manager | E3: 3452 | F3: 5674 | G3: 7698 | H3: 9722 | I3: 26546
A4: Jet Propulsion | B4: Vicki | C4: Foust | D4: VP Sales | E4: 5467 | F4: 3245 | G4: 4532 | H4: 5819 | I4: 19063
A5: Sesame Athletic | B5: Ontario | C5: Palisi | D5: Exec. Director | E5: 4568 | F5: 3444 | G5: 2198 | H5: 2756 | I5: 12966
A6: Kellogstar | B6: Manitoba | C6: Poe | D6: Sales Rep | E6: 9830 | F6: 4829 | G6: 3202 | H6: 2003 | I6: 19864
A7: Tables Inc. | B7: Alberta | C7: Russo | D7: HR Director | E7: 1256 | F7: 2356 | G7: 4555 | H7: 5603 | I7: 13770
A8: WallyWorld | B8: British Columbia | C8: Thomas | D8: Buyer | E8: 2343 | F8: 6432 | G8: 2523 | H8: 3059 | I8: 14357
A9: Fabric USA | B9: Scott | C9: Schnelker | D9: Designer | E9: 7897 | F9: 3245 | G9: 5093 | H9: 1469 | I9: =SUM(E9:H9) -> 17704
C11: Total Revenue:
C12: Average Revenue:
C13: Largest Amount:
C14: Smallest Amount:

Sheet IF FUNCTION (16)
B3: First Quarter Sales
C4: January | D4: February | E4: March | F4: Total Sales | G4: Bonus
B5: Oregon | C5: 4523 | D5: 6789 | E5: 8567 | F5: =SUM(C5:E5) -> 19879
B6: Texas | C6: 3333 | D6: 3456 | E6: 6443 | F6: =SUM(C6:E6) -> 13232
B7: New Mexico | C7: 2356 | D7: 3452 | E7: 9999 | F7: =SUM(C7:E7) -> 15807
B8: Colorado | C8: 4000 | D8: 4444 | E8: 5555 | F8: =SUM(C8:E8) -> 13999

Sheet ORIENTATION (18)
B2: January | C2: February | D2: March | E2: April | F2: May
B3: 1 | C3: 2 | D3: 1 | E3: 4 | F3: 5

Sheet CONDITIONAL FORMATTING (6)
A1: Passenger Name | B1: Type | C1: Vendor | D1: Depart | E1: Return | F1: Daily Rate | G1: Total Fare | H1: Itinerary | I1: Invoice # | J1: rand
A2: Adams/Donna | B2: Dom. Air | C2: Delta Air Lines | D2: 2000-05-15 | E2: 2000-05-20 | F2: 113.87 | G2: 600 | H2: ATLPHXATL | I2: 110125S | J2: =RAND() -> 0.841738054
A3: Adams/Donna | B3: TRANS FEE | C3: ARC | D3: 2000-05-15 | F3: 10 | G3: 670 | H3: ARC | I3: 110125S | J3: 0.7127650663
A4: Adams/Jim | B4: Dom. Air | C4: Delta Air Lines | D4: 2000-05-15 | E4: 2000-05-20 | F4: 113.87 | G4: 10 | H4: ATLPHXATL | I4: 110124S | J4: 0.1867551051
A5: Adams/Jim | B5: TRANS FEE | C5: ARC | D5: 2000-01-27 | F5: 10 | G5: 10 | H5: ARC | I5: 109555S | J5: 0.2728493363
A6: Adams/Jim | B6: TRANS FEE | C6: ARC | D6: 2000-05-15 | F6: 10 | G6: 10 | H6: ARC | I6: 110124S | J6: 0.03296838442
A7: Atkins/Ron | B7: Dom. Air | C7: Northwest Airlines | D7: 2000-02-23 | E7: 2000-02-24 | F7: 522 | G7: 400 | H7: OKCMEMTPAMEMOKC | I7: 110175S | J7: 0.6883856771
A8: Atkins/Ron | B8: Car | C8: Hertz | D8: 2000-02-23 | E8: 2000-02-24 | F8: 82 | G8: 82 | H8: TPA | I8: 110175S | J8: 0.06611198458
A9: Atkins/Ron | B9: TRANS FEE | C9: ARC | D9: 2000-02-23 | F9: 10 | G9: 10 | H9: ARC | I9: 110175S | J9: 0.1229981982
A10: Carrey/Barry | B10: Dom. Air | C10: Delta Air Lines | D10: 2000-05-12 | E10: 2000-05-19 | F10: 78.85 | G10: 552 | H10: MGMATLDAYATLPHXATLMGM | I10: 110802S | J10: 0.05382275966
A11: Carrey/Barry | B11: TRANS FEE | C11: ARC | D11: 2000-05-12 | F11: 10 | G11: 10 | H11: ARC | I11: 110802S | J11: 0.08310056346
A12: Carrey/Pam | B12: Dom. Air | C12: Delta Air Lines | D12: 2000-05-12 | E12: 2000-05-19 | F12: 78.85 | G12: 552 | H12: MGMATLDAYATLPHXATLMGM | I12: 110803S | J12: 0.1105878349
A13: Carrey/Pam | B13: TRANS FEE | C13: ARC | D13: 2000-05-12 | F13: 10 | G13: 10 | H13: ARC | I13: 110803S | J13: 0.2719161142
A14: Chile/Juan | B14: Dom. Air | C14: America West Airlines | D14: 2000-05-11 | E14: 2000-05-18 | F14: 53.21 | G14: 372.5 | H14: FLLLASPHXFLL | I14: 110583S | J14: 0.212337694
A15: Chile/Juan | B15: TRANS FEE | C15: ARC | D15: 2000-05-11 | F15: 10 | G15: 10 | H15: ARC | I15: 110583S | J15: 0.04773667528
A16: Conelly/Doug | B16: Hotel | C16: Raintree Plaza Hotel | D16: 2000-04-17 | E16: 2000-04-20 | F16: 152 | G16: 456 | H16: DEN | I16: 111088S | J16: 0.1579719616
A17: Conelly/Doug | B17: Dom. Air | C17: Delta Air Lines | D17: 2000-03-06 | E17: 2000-03-06 | F17: 253 | G17: 253 | H17: TPAATLPHL | I17: 110447S | J17: 0.4171081472
A18: Conelly/Doug | B18: Dom. Air | C18: Continental Airlines | D18: 2000-03-08 | E18: 2000-03-08 | F18: 166.5 | G18: 166.5 | H18: MDTCLETPA | I18: 110449S | J18: 0.93973076
A19: Conelly/Doug | B19: Dom. Air | C19: USAir | D19: 2000-03-07 | E19: 2000-03-07 | F19: 148.5 | G19: 148.5 | H19: PHLMDT | I19: 110448S | J19: 0.2733908313
A20: Conelly/Doug | B20: Car | C20: Alamo | D20: 2000-04-17 | E20: 2000-04-20 | F20: 48.39 | G20: 145.17 | H20: DEN | I20: 111088S | J20: 0.93966254
A21: Conelly/Doug | B21: Car | C21: Alamo | D21: 2000-03-07 | E21: 2000-03-08 | F21: 88 | G21: 88 | H21: MDT | I21: 110448S | J21: 0.9408806252
A22: Conelly/Doug | B22: Hotel | C22: RADISSON | D22: 2000-03-07 | E22: 2000-03-08 | F22: 79 | G22: 79 | H22: MDT | I22: 110448S | J22: 0.02728332893
A23: Conelly/Doug | B23: Hotel | C23: COURTYARD BY MARRIOTT | D23: 2000-03-06 | E23: 2000-03-07 | F23: 75 | G23: 75 | H23: PHL | I23: 110447S | J23: 0.7044093238
A24: Conelly/Doug | B24: Car | C24: Alamo | D24: 2000-03-06 | E24: 2000-03-07 | F24: 51 | G24: 51 | H24: PHL | I24: 110447S | J24: 0.87959908
A25: Conelly/Doug | B25: TRANS FEE | C25: ARC | D25: 2000-04-17 | F25: 10 | G25: 10 | H25: ARC | I25: 111088S | J25: 0.1252340885
A26: Conelly/Doug | B26: TRANS FEE | C26: ARC | D26: 2000-03-06 | F26: 10 | G26: 10 | H26: ARC | I26: 110447S | J26: 0.2518230951
A27: Couto/Terry | B27: Hotel | C27: Holiday Inn Express | D27: 2000-01-31 | E27: 2000-02-14 | F27: 109 | G27: 1526 | H27: CLW | I27: 109640S | J27: 0.4936384372
A28: Couto/Terry | B28: Dom. Air | C28: Delta Air Lines | D28: 2000-04-30 | E28: 2000-05-02 | F28: 282 | G28: 564 | H28: TPAATLORDATLTPA | I28: 111269S | J28: 0.2555157906
A29: Couto/Terry | B29: Dom. Air | C29: Southwest Airlines | D29: 2000-03-23 | F29: 194 | G29: 194 | H29: TPAMSYTPA | I29: 110766S | J29: 0.2457314447
A30: Couto/Terry | B30: Car | C30: Hertz | D30: 2000-02-04 | E30: 2000-02-07 | F30: 38.39 | G30: 115.17 | H30: EWR | I30: 109756S | J30: 0.002401644799
A31: Couto/Terry | B31: TRANS FEE | C31: ARC | D31: 2000-04-30 | F31: 10 | G31: 10 | H31: ARC | I31: 111269S | J31: 0.3445813155
A32: Couto/Terry | B32: TRANS FEE | C32: ARC | D32: 2000-03-23 | F32: 10 | G32: 10 | H32: ARC | I32: 110766S | J32: 0.0760397439
A33: Cox/Becky | B33: Dom. Air | C33: Delta Air Lines | D33: 2000-05-15 | E33: 2000-05-19 | F33: 105.92 | G33: 423.68 | H33: MGMATLPHXATLTPA | I33: 110349S | J33: 0.3733663459
A34: Cox/Becky | B34: TRANS FEE | C34: ARC | D34: 2000-05-15 | F34: 10 | G34: 10 | H34: ARC | I34: 110349S | J34: 0.717453612
A35: Cox/Becky | B35: Dom. Air | C35: Delta Air Lines | D35: 2000-05-15 | E35: 2000-05-19 | F35: 0 | G35: 0 | H35: MGMATLPHXATLMGM | I35: 110794S | J35: 0.3014341598
A36: Cox/William G | B36: Dom. Air | C36: Delta Air Lines | D36: 2000-05-15 | E36: 2000-05-19 | F36: 105.92 | G36: 423.68 | H36: MGMATLPHXATLTPA | I36: 110348S | J36: 0.8686716182
A37: Cox/William G | B37: TRANS FEE | C37: ARC | D37: 2000-05-15 | F37: 10 | G37: 10 | H37: ARC | I37: 110348S | J37: 0.09447206119
A38: Cox/William G | B38: Dom. Air | C38: Delta Air Lines | D38: 2000-05-15 | E38: 2000-05-19 | F38: 0 | G38: 0 | H38: MGMATLPHXATLMGM | I38: 110793S | J38: 0.673474621
A39: Coyle/Marcus | B39: Dom. Air | C39: Delta Air Lines | D39: 2000-05-15 | E39: 2000-05-19 | F39: 142.34 | G39: 569.36 | H39: ATLPHXATL | I39: 110742S | J39: 0.3897078408
A40: Coyle/Marcus | B40: TRANS FEE | C40: ARC | D40: 2000-05-15 | F40: 10 | G40: 10 | H40: ARC | I40: 110742S | J40: 0.5329431473
A41: Coyle/Mary | B41: Dom. Air | C41: Delta Air Lines | D41: 2000-05-15 | E41: 2000-05-19 | F41: 142.34 | G41: 569.36 | H41: ATLPHXATL | I41: 110743S | J41: 0.9221750236
A42: Coyle/Mary | B42: TRANS FEE | C42: ARC | D42: 2000-05-15 | F42: 10 | G42: 10 | H42: ARC | I42: 110743S | J42: 0.1533016143
A43: Dain/Phyllis | B43: Dom. Air | C43: United Airlines | D43: 2000-04-10 | E43: 2000-04-14 | F43: 119.75 | G43: 479 | H43: ARCATWORDTPAORDATW | I43: 110939S | J43: 0.7054191376
A44: Dain/Phyllis | B44: TRANS FEE | C44: ARC | D44: 2000-04-10 | F44: 10 | G44: 10 | H44: ARC | I44: 110939S | J44: 0.3014608186
A45: Deitz/Michele | B45: Dom. Air | C45: Delta Air Lines | D45: 2000-02-15 | E45: 2000-02-16 | F45: 300 | G45: 300 | H45: STLATLTPAATLSTL | I45: 109811S | J45: 0.6638466497
A46: Deitz/Michele | B46: TRANS FEE | C46: ARC | D46: 2000-02-15 | F46: 10 | G46: 10 | H46: ARC | I46: 109811S | J46: 0.3933750451
A47: Douglas/Jay | B47: Dom. Air | C47: Delta Air Lines | D47: 2000-05-15 | E47: 2000-05-19 | F47: 142.34 | G47: 569.36 | H47: ATLPHXATL | I47: 110372S | J47: 0.3148931556
A48: Douglas/Jay | B48: Dom. Air | C48: Delta Air Lines | D48: 2000-01-27 | E48: 2000-01-28 | F48: 175.5 | G48: 175.5 | H48: ATLDTWATL | I48: 109285S | J48: 0.1625680875
A49: Douglas/Jay | B49: TRANS FEE | C49: ARC | D49: 2000-01-27 | F49: 10 | G49: 10 | H49: ARC | I49: 109285S | J49: 0.2406091688
A50: Douglas/Jay | B50: TRANS FEE | C50: ARC | D50: 2000-05-15 | F50: 10 | G50: 10 | H50: ARC | I50: 110372S | J50: 0.9398903848
A51: Douglas/Steve | B51: Dom. Air | C51: Delta Air Lines | D51: 2000-05-15 | E51: 2000-05-19 | F51: 142.34 | G51: 569.36 | H51: ATLPHXATL | I51: 110373S | J51: 0.709631157
A52: Douglas/Steve | B52: TRANS FEE | C52: ARC | D52: 2000-05-15 | F52: 10 | G52: 10 | H52: ARC | I52: 110373S | J52: 0.7023893955
A53: Drake/Deborah | B53: Dom. Air | C53: Delta Air Lines | D53: 2000-05-15 | E53: 2000-05-19 | F53: 50.5 | G53: 202 | H53: TPADFWPHXATLTPA | I53: 109890S | J53: 0.709182639
A54: Drake/Deborah | B54: Dom. Air | C54: ARC | D54: 2000-05-15 | E54: 2000-05-19 | F54: 2.5 | G54: 10 | H54: TPADFWPHXATLTPA | I54: 109890S | J54: 0.7524269411
A55: Dulla/Katie | B55: Dom. Air | C55: America West Airlines | D55: 2000-05-16 | E55: 2000-05-19 | F55: 123.06 | G55: 369.19 | H55: ORDPHXORD | I55: 110957S | J55: 0.8000207189
A56: Dulla/Katie | B56: TRANS FEE | C56: ARC | D56: 2000-05-16 | F56: 10 | G56: 10 | H56: ARC | I56: 110957S | J56: 0.2610941747
A57: Dulla/Michael | B57: Dom. Air | C57: America West Airlines | D57: 2000-05-16 | E57: 2000-05-19 | F57: 123.06 | G57: 369.19 | H57: ORDPHXORD | I57: 110956S | J57: 0.08979210574
A58: Dulla/Michael | B58: TRANS FEE | C58: ARC | D58: 2000-05-16 | F58: 10 | G58: 10 | H58: ARC | I58: 110956S | J58: 0.5967375858
A59: Dunaway/Mary | B59: Dom. Air | C59: Delta Air Lines | D59: 2000-05-15 | E59: 2000-05-19 | F59: 145.09 | G59: 580.36 | H59: PNSATLPHXATLPNS | I59: 110229S | J59: 0.7020486505
A60: Dunaway/Mary | B60: TRANS FEE | C60: ARC | D60: 2000-05-15 | F60: 10 | G60: 10 | H60: ARC | I60: 110229S | J60: 0.5789733231
A61: Dunaway/Roger | B61: Dom. Air | C61: Delta Air Lines | D61: 2000-05-15 | E61: 2000-05-19 | F61: 145.09 | G61: 580.36 | H61: PNSATLPHXATLPNS | I61: 110228S | J61: 0.6136437553
A62: Dunaway/Roger | B62: TRANS FEE | C62: ARC | D62: 2000-05-15 | F62: 10 | G62: 10 | H62: ARC | I62: 110228S | J62: 0.3696585781
A63: Glass/Helen | B63: Dom. Air | C63: United Airlines | D63: 2000-02-15 | E63: 2000-02-16 | F63: 377 | G63: 377 | H63: IADTPAIAD | I63: 109817S | J63: 0.4975090885
A64: Glass/Helen | B64: TRANS FEE | C64: ARC | D64: 2000-02-15 | F64: 10 | G64: 10 | H64: ARC | I64: 109817S | J64: 0.2563827596
A65: Griffin/Linda | B65: Dom. Air | C65: America West Airlines | D65: 2000-05-11 | E65: 2000-05-18 | F65: 53.21 | G65: 372.5 | H65: FLLLASPHXFLL | I65: 110584S | J65: 0.001741272341
A66: Griffin/Linda | B66: TRANS FEE | C66: ARC | D66: 2000-05-11 | F66: 10 | G66: 10 | H66: ARC | I66: 110584S | J66: =RAND() -> 0.7803896571
A67: Hargett/Judy | B67: Dom. Air | C67: Delta Air Lines | D67: 2000-05-15 | E67: 2000-05-19 | F67: 142.34 | G67: 569.36 | H67: ATLPHXATL | I67: 110374S | J67: 0.5167102501
A68: Hargett/Judy | B68: TRANS FEE | C68: ARC | D68: 2000-05-15 | F68: 10 | G68: 10 | H68: ARC | I68: 110374S | J68: 0.6378173185
A69: Hawks/Tammy | B69: Dom. Air | C69: Delta Air Lines | D69: 2000-05-15 | E69: 2000-05-19 | F69: 142.34 | G69: 569.36 | H69: ATLPHXATL | I69: 110375S | J69: 0.7182821387
A70: Hawks/Tammy | B70: Dom. Air | C70: Delta Air Lines | D70: 2000-01-27 | E70: 2000-01-28 | F70: 175.5 | G70: 175.5 | H70: ATLDTWATL | I70: 109286S | J70: 0.2949738546
A71: Hawks/Tammy | B71: TRANS FEE | C71: ARC | D71: 2000-05-15 | F71: 10 | G71: 10 | H71: ARC | I71: 110375S | J71: 0.1513177632
A72: Hawks/Tammy | B72: TRANS FEE | C72: ARC | D72: 2000-01-27 | F72: 10 | G72: 10 | H72: ARC | I72: 109286S | J72: 0.8015229639
A73: Hill/Joseph | B73: Dom. Air | C73: Delta Air Lines | D73: 2000-03-15 | E73: 2000-03-20 | F73: 85 | G73: 425 | H73: TPADFWRNODFWTPA | I73: 110435S | J73: 0.5053625491
A74: Hill/Joseph | B74: TRANS FEE | C74: ARC | D74: 2000-03-15 | F74: 10 | G74: 10 | H74: ARC | I74: 110435S | J74: 0.5386528678
A75: Hill/Vicki | B75: Dom. Air | C75: Continental Airlines | D75: 2000-02-13 | E75: 2000-02-18 | F75: 129.5 | G75: 647.5 | H75: TPAIAHDFWIAHTPA | I75: 109835S | J75: 0.2595327807
A76: Hill/Vicki | B76: Dom. Air | C76: Trans World Airlines | D76: 2000-03-27 | E76: 2000-03-31 | F76: 101 | G76: 404 | H76: TPASTLMCISTLTPA | I76: 110782S | J76: 0.3694973378
A77: Hill/Vicki | B77: Dom. Air | C77: Delta Air Lines | D77: 2000-03-15 | E77: 2000-03-23 | F77: 40 | G77: 320 | H77: TPADFWRNODFWTPA | I77: 110434S | J77: 0.1842793221
A78: Hill/Vicki | B78: Car | C78: Hertz | D78: 2000-02-27 | E78: 2000-03-03 | F78: 53 | G78: 265 | H78: DFW | I78: 110019S | J78: 0.1545475163
A79: Hill/Vicki | B79: Car | C79: Hertz | D79: 2000-02-27 | E79: 2000-03-03 | F79: 53 | G79: 265 | H79: DFW | I79: 110018S | J79: 0.7023695862
A80: Hill/Vicki | B80: Car | C80: Hertz | D80: 2000-02-13 | E80: 2000-02-18 | F80: 53 | G80: 265 | H80: DFW | I80: 109835S | J80: 0.7565278977
A81: Hill/Vicki | B81: Car | C81: Alamo | D81: 2000-03-27 | E81: 2000-03-31 | F81: 42.23 | G81: 168.92 | H81: MCI | I81: 110782S | J81: 0.1340575193
A82: Hill/Vicki | B82: Dom. Air | C82: Continental Airlines | D82: 2000-02-27 | E82: 2000-03-03 | F82: 15 | G82: 75 | H82: TPAIAHDFWIAHTPA | I82: 110019S | J82: 0.1062941145
A83: Hill/Vicki | B83: Hotel | C83: FAIRFIELD INN | D83: 2000-03-30 | E83: 2000-03-31 | F83: 64 | G83: 64 | H83: MCI | I83: 110782S | J83: 0.1086409738
A84: Hill/Vicki | B84: TRANS FEE | C84: ARC | D84: 2000-02-27 | F84: 10 | G84: 10 | H84: ARC | I84: 110018S | J84: 0.1551283681
A85: Hill/Vicki | B85: TRANS FEE | C85: ARC | D85: 2000-02-13 | F85: 10 | G85: 10 | H85: ARC | I85: 109835S | J85: 0.04028781579
A86: Hill/Vicki | B86: TRANS FEE | C86: ARC | D86: 2000-03-15 | F86: 10 | G86: 10 | H86: ARC | I86: 110434S | J86: 0.1021268007
A87: Hill/Vicki | B87: TRANS FEE | C87: ARC | D87: 2000-03-27 | F87: 10 | G87: 10 | H87: ARC | I87: 110782S | J87: 0.976054268
A88: Hill/Vickki | B88: Dom. Air | C88: Continental Airlines | D88: 2000-02-27 | E88: 2000-03-03 | F88: 0 | G88: 0 | H88: DFW | I88: 110019S | J88: 0.02103047449
A89: Hopson/Marie | B89: Dom. Air | C89: Delta Air Lines | D89: 2000-02-15 | E89: 2000-02-16 | F89: 749 | G89: 749 | H89: DENATLTPAATLDEN | I89: 109814S | J89: 0.006473984832
A90: Hopson/Marie | B90: TRANS FEE | C90: ARC | D90: 2000-02-15 | F90: 10 | G90: 10 | H90: ARC | I90: 109814S | J90: 0.7117442002
A91: Hosek/Sybil | B91: Dom. Air | C91: America West Airlines | D91: 2000-05-15 | E91: 2000-05-21 | F91: 50.69 | G91: 304.18 | H91: ORDPHXORD | I91: 110188S | J91: 0.4937044662
A92: Hosek/Sybil | B92: TRANS FEE | C92: ARC | D92: 2000-05-15 | F92: 10 | G92: 10 | H92: ARC | I92: 110188S | J92: 0.1558830678
A93: Jernigan/Debbie | B93: TRANS FEE | C93: ARC | D93: 2000-01-27 | F93: 10 | G93: 10 | H93: ARC | I93: 109556S | J93: 0.806998144
A94: Jernigan/Deborah | B94: Dom. Air | C94: Delta Air Lines | D94: 2000-05-15 | E94: 2000-05-20 | F94: 113.87 | G94: 569.36 | H94: ATLPHXATL | I94: 110134S | J94: 0.2710764973
A95: Jernigan/Deborah | B95: TRANS FEE | C95: ARC | D95: 2000-05-15 | F95: 10 | G95: 10 | H95: ARC | I95: 110134S
A96: Jernigan/Tyrus | B96: Dom. Air | C96: Delta Air Lines | D96: 2000-05-15 | E96: 2000-05-20 | F96: 113.87 | G96: 569.36 | H96: ATLPHXATL | I96: 110135S
A97: Jernigan/Tyrus | B97: TRANS FEE | C97: ARC | D97: 2000-05-15 | F97: 10 | G97: 10 | H97: ARC | I97: 110135S
A98: Jiles.randall | B98: Dom. Air | C98: Southwest Airlines | D98: 2000-03-02 | F98: 388 | G98: 388 | I98: 110559S
A99: Jiles/Frances | B99: Dom. Air | C99: USAir | D99: 2000-04-14 | E99: 2000-04-16 | F99: 158.5 | G99: 317 | H99: PVDPHLJAXPHLPVD | I99: 110581S
A100: Jiles/Frances | B100: Dom. Air | C100: Southwest Airlines | D100: 2000-02-11 | F100: 238.5 | G100: 238.5 | H100: PVDTPAPVD | I100: 109723S
A101: Jiles/Frances | B101: TRANS FEE | C101: ARC | D101: 2000-02-11 | F101: 10 | G101: 10 | H101: ARC | I101: 109723S
A102: Jiles/Frances | B102: TRANS FEE | C102: ARC | D102: 2000-03-08 | F102: 10 | G102: 10 | H102: ARC | I102: 110214S
A103: Jiles/Frances | B103: TRANS FEE | C103: ARC | D103: 2000-04-14 | F103: 10 | G103: 10 | H103: ARC | I103: 110581S
A104: Jiles/Helvey | B104: Dom. Air | C104: Southwest Airlines | D104: 2000-03-03 | F104: 393 | G104: 393 | H104: TPASTLTPA | I104: 110491S
A105: Jiles/Helvey | B105: Car | C105: Hertz | D105: 2000-03-03 | E105: 2000-03-12 | F105: 34.12 | G105: 307.13 | H105: STL | I105: 110491S
A106: Jiles/Helvey | B106: TRANS FEE | C106: ARC | D106: 2000-03-03 | F106: 10 | G106: 10 | H106: ARC | I106: 110491S
A107: Jiles/Paul | B107: Dom. Air | C107: Delta Air Lines | D107: 2000-03-17 | E107: 2000-03-19 | F107: 195.25 | G107: 390.5 | H107: MSYATLCHSATLMSY | I107: 110393S
A108: Jiles/Paul | B108: TRANS FEE | C108: ARC | D108: 2000-03-17 | F108: 10 | G108: 10 | H108: ARC | I108: 110393S
A109: Jiles/Randall | B109: Hotel | C109: Marriott Lincolnshire | D109: 2000-04-06 | E109: 2000-04-09 | F109: 218 | G109: 654 | H109: MSY | I109: 110185S
A110: Jiles/Randall | B110: Dom. Air | C110: Delta Air Lines | D110: 2000-05-15 | E110: 2000-05-18 | F110: 183.01 | G110: 549.04 | H110: PVDATLPHXCVGPVD | I110: 110478S
A111: Jiles/Randall | B111: Dom. Air | C111: Delta Air Lines | D111: 2000-01-26 | E111: 2000-01-28 | F111: 236 | G111: 472 | H111: TPACVGDTWATLTPA | I111: 109246S
A112: Jiles/Randall | B112: Dom. Air | C112: United Airlines | D112: 2000-04-30 | E112: 2000-05-09 | F112: 52.22 | G112: 470 | H112: PVDORDTPAIADPVD | I112: 111140S
A113: Jiles/Randall | B113: Dom. Air | C113: Delta Air Lines | D113: 2000-02-24 | E113: 2000-02-27 | F113: 126.33 | G113: 379 | H113: TPAATLDCAPVDATLTPA | I113: 110179S
A114: Jiles/Randall | B114: Dom. Air | C114: Delta Air Lines | D114: 2000-03-31 | E114: 2000-04-02 | F114: 181.5 | G114: 363 | H114: TPAATLPVDATLTPA | I114: 110165S
A115: Jiles/Randall | B115: Dom. Air | C115: Delta Air Lines | D115: 2000-03-10 | E115: 2000-03-12 | F115: 180 | G115: 360 | H115: TPAPVDATLTPA | I115: 110168S
A116: Jiles/Randall | B116: Dom. Air | C116: Delta Air Lines | D116: 2000-03-17 | E116: 2000-03-19 | F116: 180 | G116: 360 | H116: TPAPVDATLTPA | I116: 110167S
A117: Jiles/Randall | B117: Dom. Air | C117: Delta Air Lines | D117: 2000-03-24 | E117: 2000-03-26 | F117: 180 | G117: 360 | H117: TPAPVDATLTPA | I117: 110166S
A118: Jiles/Randall | B118: Dom. Air | C118: Delta Air Lines | D118: 2000-05-12 | E118: 2000-05-22 | F118: 36 | G118: 360 | H118: TPAPVDATLTPA | I118: 110470S
A119: Jiles/Randall | B119: Dom. Air | C119: Northwest Airlines | D119: 2000-01-28 | E119: 2000-02-02 | F119: 66.2 | G119: 331 | H119: DTWTPADTW | I119: 109678S
A120: Jiles/Randall | B120: Dom. Air | C120: Delta Air Lines | D120: 2000-03-02 | E120: 2000-03-07 | F120: 56.8 | G120: 284 | H120: TPACVGPVDDCAATLTPA | I120: 110176S
A121: Jiles/Randall | B121: Dom. Air | C121: USAir | D121: 2000-03-06 | E121: 2000-03-06 | F121: 272.5 | G121: 272.5 | H121: PVDDCA | I121: 110178S
A122: Jiles/Randall | B122: Dom. Air | C122: Delta Air Lines | D122: 2000-03-03 | E122: 2000-03-05 | F122: 130.5 | G122: 261 | H122: TPAPVDATLTPA | I122: 109090S
A123: Jiles/Randall | B123: Dom. Air | C123: Southwest Airlines | D123: 2000-04-06 | F123: 194 | G123: 194 | H123: TPAMSYTPA | I123: 110185S
A124: Jiles/Randall | B124: Dom. Air | C124: Delta Air Lines | D124: 2000-01-29 | E124: 2000-01-31 | F124: 96 | G124: 192 | H124: TPAATLTPA | I124: 109245S
A125: Jiles/Randall | B125: Dom. Air | C125: Delta Air Lines | D125: 2000-04-21 | E125: 2000-04-23 | F125: 88 | G125: 176 | H125: TPAPVDATLTPA | I125: 110192S
A126: Jiles/Randall | B126: Dom. Air | C126: United Airlines | D126: 2000-06-28 | E126: 2000-06-30 | F126: 86.5 | G126: 173 | H126: TPAIADTPA | I126: 111093S
A127: Jiles/Randall | B127: Dom. Air | C127: Delta Air Lines | D127: 2000-05-05 | E127: 2000-05-07 | F127: 59 | G127: 118 | H127: TPAPVDATLTPA | I127: 111102S
A128: Jiles/Randall | B128: Car | C128: Hertz | D128: 2000-04-06 | E128: 2000-04-09 | F128: 35.09 | G128: 105.27 | H128: MSY | I128: 110185S
A129: Jiles/Randall | B129: Dom. Air | C129: USAir | D129: 2000-02-25 | E129: 2000-02-25 | F129: 104.5 | G129: 104.5 | H129: BWIPVD | I129: 110177S
A130: Jiles/Randall | B130: Dom. Air | C130: Delta Air Lines | D130: 2000-04-28 | E130: 2000-04-30 | F130: 43 | G130: 86 | H130: TPAATLPVDATLTPA | I130: 110196S
A131: Jiles/Randall | B131: Dom. Air | C131: Delta Air Lines | D131: 2000-01-27 | E131: 2000-01-28 | F131: 75 | G131: 75 | H131: TPAATLDTWATLTPA | I131: 109606S
A132: Jiles/Randall | B132: Car | C132: Hertz | D132: 2000-01-27 | E132: 2000-01-28 | F132: 63 | G132: 63 | H132: DTW | I132: 109606S
A133: Jiles/Randall | B133: TRANS FEE | C133: ARC | D133: 2000-01-26 | F133: 10 | G133: 10 | H133: ARC | I133: 109246S
A134: Jiles/Randall | B134: TRANS FEE | C134: ARC | D134: 2000-01-27 | F134: 10 | G134: 10 | H134: ARC | I134: 109619S
A135: Jiles/Randall | B135: TRANS FEE | C135: ARC | D135: 2000-01-28 | F135: 10 | G135: 10 | H135: ARC | I135: 109678S
A136: Jiles/Randall | B136: TRANS FEE | C136: ARC | D136: 2000-01-29 | F136: 10 | G136: 10 | H136: ARC | I136: 109245S
A137: Jiles/Randall | B137: TRANS FEE | C137: ARC | D137: 2000-02-24 | F137: 10 | G137: 10 | H137: ARC | I137: 110179S
A138: Jiles/Randall | B138: TRANS FEE | C138: ARC | D138: 2000-03-02 | F138: 10 | G138: 10 | H138: ARC | I138: 110176S
A139: Jiles/Randall | B139: TRANS FEE | C139: ARC | D139: 2000-03-02 | F139: 10 | G139: 10 | H139: ARC | I139: 110559S
A140: Jiles/Randall | B140: TRANS FEE | C140: ARC | D140: 2000-03-03 | F140: 10 | G140: 10 | H140: ARC | I140: 109090S
A141: Jiles/Randall | B141: TRANS FEE | C141: ARC | D141: 2000-03-10 | F141: 10 | G141: 10 | H141: ARC | I141: 110168S
A142: Jiles/Randall | B142: TRANS FEE | C142: ARC | D142: 2000-03-17 | F142: 10 | G142: 10 | H142: ARC | I142: 110167S
A143: Jiles/Randall | B143: TRANS FEE | C143: ARC | D143: 2000-03-24 | F143: 10 | G143: 10 | H143: ARC | I143: 110166S
A144: Jiles/Randall | B144: TRANS FEE | C144: ARC | D144: 2000-03-31 | F144: 10 | G144: 10 | H144: ARC | I144: 110165S
A145: Jiles/Randall | B145: TRANS FEE | C145: ARC | D145: 2000-04-06 | F145: 10 | G145: 10 | H145: ARC | I145: 110185S
A146: Jiles/RANDALL | B146: Dom. Air | C146: ARC | D146: 2000-04-21 | E146: 2000-04-23 | F146: 5 | G146: 10 | H146: TPAPVDATLTPA | I146: 110192S
A147: Jiles/Randall | B147: TRANS FEE | C147: ARC | D147: 2000-04-28 | F147: 10 | G147: 10 | H147: ARC | I147: 110187S
A148: Jiles/Randall | B148: TRANS FEE | C148: ARC | D148: 2000-04-30 | F148: 10 | G148: 10 | H148: ARC | I148: 111140S
A149: Jiles/Randall | B149: TRANS FEE | C149: ARC | D149: 2000-05-05 | F149: 10 | G149: 10 | H149: ARC | I149: 111100S
A150: Jiles/Randall | B150: TRANS FEE | C150: ARC | D150: 2000-05-12 | F150: 10 | G150: 10 | H150: ARC | I150: 110470S
A151: Jiles/Randall | B151: TRANS FEE | C151: ARC | D151: 2000-05-15 | F151: 10 | G151: 10 | H151: ARC | I151: 110478S
A152: Jiles/Randall | B152: TRANS FEE | C152: ARC | D152: 2000-06-28 | F152: 10 | G152: 10 | H152: ARC | I152: 111093S
A153: Jiles/Randall | B153: Car | C153: Hertz | D153: 2000-01-27 | E153: 2000-01-28 | F153: 0 | G153: 0 | H153: DTW | I153: 109619S
A154: Jiles/Randall | B154: Dom. Air | C154: USAir | D154: 2000-03-06 | E154: 2000-03-06 | F154: -272.5 | G154: -272.5 | H154: PVDDCA | I154: 110178R
A155: Jiles/Tyler | B155: Dom. Air | C155: Delta Air Lines | D155: 2000-02-18 | E155: 2000-02-22 | F155: 171.75 | G155: 687 | H155: PVDCVGTPAMCOPVD | I155: 110006S
A156: Jiles/Tyler | B156: Dom. Air | C156: USAir | D156: 2000-04-14 | E156: 2000-04-16 | F156: 158.5 | G156: 317 | H156: PVDPHLJAXPHLPVD | I156: 110582S
A157: Jiles/Tyler | B157: TRANS FEE | C157: ARC | D157: 2000-02-11 | F157: 10 | G157: 10 | H157: ARC | I157: 109723S
A158: Jiles/Tyler | B158: TRANS FEE | C158: ARC | D158: 2000-02-18 | F158: 10 | G158: 10 | H158: ARC | I158: 110006S
A159: Jiles/Tyler | B159: TRANS FEE | C159: ARC | D159: 2000-03-08 | F159: 10 | G159: 10 | H159: ARC | I159: 110215S
A160: Jiles/Tyler | B160: TRANS FEE | C160: ARC | D160: 2000-04-14 | F160: 10 | G160: 10 | H160: ARC | I160: 110582S
A161: JilesTyler | B161: Dom. Air | C161: Southwest Airlines | D161: 2000-02-11 | F161: 238.5 | G161: 238.5 | H161: PVDTPAPVD | I161: 109723S
A162: Kaufman/Jeff | B162: Dom. Air | C162: America West Airlines | D162: 2000-05-13 | E162: 2000-05-19 | F162: 56.33 | G162: 338 | H162: FLLLASPHXFLL | I162: 110597S
A163: Kaufman/Jeff | B163: TRANS FEE | C163: ARC | D163: 2000-05-13 | F163: 10 | G163: 10 | H163: ARC | I163: 110597S
A164: Kaufman/Tracy | B164: Dom. Air | C164: America West Airlines | D164: 2000-05-13 | E164: 2000-05-19 | F164: 56.33 | G164: 338 | H164: FLLLASPHXFLL | I164: 110598S
A165: Kaufman/Tracy | B165: TRANS FEE | C165: ARC | D165: 2000-05-13 | F165: 10 | G165: 10 | H165: ARC | I165: 110598S
A166: Komar/Gary | B166: Dom. Air | C166: America West Airlines | D166: 2000-05-15 | E166: 2000-05-21 | F166: 50.69 | G166: 304.18 | H166: ORDPHXORD | I166: 110189S
A167: Komar/Gary | B167: TRANS FEE | C167: ARC | D167: 2000-05-15 | F167: 10 | G167: 10 | H167: ARC | I167: 110189S
A168: Lawson/Robert | B168: Dom. Air | C168: Delta Air Lines | D168: 2000-02-25 | E168: 2000-02-28 | F168: 360.66 | G168: 1082 | H168: DAYCVGTPACVGDAY | I168: 110324S
A169: Lawson/Robert | B169: TRANS FEE | C169: ARC | D169: 2000-02-25 | F169: 10 | G169: 10 | H169: ARC | I169: 110324S
A170: Lipman/Rick | B170: Dom. Air | C170: Delta Air Lines | D170: 2000-05-15 | E170: 2000-05-19 | F170: 242.97 | G170: 971.88 | H170: RSWATLPHXATLRSW | I170: 110519S
A171: Lipman/Rick | B171: TRANS FEE | C171: ARC | D171: 2000-05-15 | F171: 10 | G171: 10 | H171: ARC | I171: 110519S
A172: Lostroh/Barry | B172: Dom. Air | C172: America West Airlines | D172: 2000-05-15 | E172: 2000-05-19 | F172: 79.43 | G172: 317.72 | H172: DENPHXDEN | I172: 110088S
A173: Lostroh/Barry | B173: TRANS FEE | C173: ARC | D173: 2000-05-15 | F173: 10 | G173: 10 | H173: ARC | I173: 110088S
A174: Lostroh/Joshua | B174: Dom. Air | C174: America West Airlines | D174: 2000-05-15 | E174: 2000-05-19 | F174: 79.43 | G174: 317.72 | H174: DENPHXDEN | I174: 110089S
A175: Lostroh/Joshua | B175: TRANS FEE | C175: ARC | D175: 2000-05-15 | F175: 10 | G175: 10 | H175: ARC | I175: 110089S
A176: Manning/Connie | B176: Dom. Air | C176: Delta Air Lines | D176: 2000-05-15 | E176: 2000-05-19 | F176: 109.5 | G176: 438 | H176: TPAATLPHXATLTPA | I176: 110152S
A177: Manning/Connie | B177: TRANS FEE | C177: ARC | D177: 2000-05-15 | F177: 10 | G177: 10 | H177: ARC | I177: 110152S
A178: Maxwell/Lauren | B178: Dom. Air | C178: Delta Air Lines | D178: 2000-05-15 | E178: 2000-05-19 | F178: 242.97 | G178: 971.88 | H178: RSWATLPHXATLRSW | I178: 110520S
A179: Maxwell/Lauren | B179: TRANS FEE | C179: ARC | D179: 2000-05-15 | F179: 10 | G179: 10 | H179: ARC | I179: 110520S
A180: Mcnulty/Margaret | B180: Dom. Air | C180: American Airlines | D180: 2000-05-10 | E180: 2000-05-19 | F180: 34.88 | G180: 314 | H180: ORDPHXORD | I180: 110121S
A181: Mcnulty/Margaret | B181: TRANS FEE | C181: ARC | D181: 2000-05-10 | F181: 10 | G181: 10 | H181: ARC | I181: 110121S
A182: Mcnulty/Tom | B182: Dom. Air | C182: American Airlines | D182: 2000-05-10 | E182: 2000-05-19 | F182: 34.88 | G182: 314 | H182: ORDPHXORD | I182: 110120S
A183: Mcnulty/Tom | B183: TRANS FEE | C183: ARC | D183: 2000-05-10 | F183: 10 | G183: 10 | H183: ARC | I183: 110120S
A184: Munch/Rick | B184: Dom. Air | C184: Delta Air Lines | D184: 2000-05-16 | E184: 2000-05-19 | F184: 182.01 | G184: 546.04 | H184: IADPHXATLIAD | I184: 110775S
A185: Munch/Rick | B185: TRANS FEE | C185: ARC | D185: 2000-05-16 | F185: 10 | G185: 10 | H185: ARC | I185: 110775S
A186: Munch/William | B186: Dom. Air | C186: Delta Air Lines | D186: 2000-05-16 | E186: 2000-05-19 | F186: 182.01 | G186: 546.04 | H186: IADPHXATLIAD | I186: 110776S
A187: Munch/William | B187: TRANS FEE | C187: ARC | D187: 2000-05-16 | F187: 10 | G187: 10 | H187: ARC | I187: 110776S
A188: Murphy/Niki | B188: Dom. Air | C188: Delta Air Lines | D188: 2000-02-03 | E188: 2000-02-06 | F188: 81.66 | G188: 245 | H188: TPAATLTPA | I188: 109637S
A189: Murphy/Niki | B189: Car | C189: Hertz | D189: 2000-02-03 | E189: 2000-02-06 | F189: 38.94 | G189: 116.82 | H189: ATL | I189: 109637S
A190: Murphy/Niki | B190: TRANS FEE | C190: ARC | D190: 2000-02-03 | F190: 10 | G190: 10 | H190: ARC | I190: 109637S
A191: Newberry/Dayla | B191: Dom. Air | C191: America West Airlines | D191: 2000-05-15 | E191: 2000-05-19 | F191: 79.43 | G191: 317.72 | H191: DENPHXDEN | I191: 110221S
A192: Newberry/Dayla | B192: TRANS FEE | C192: ARC | D192: 2000-05-15 | F192: 10 | G192: 10 | H192: ARC | I192: 110221S
A193: Newberry/Tye | B193: Dom. Air | C193: America West Airlines | D193: 2000-05-15 | E193: 2000-05-19 | F193: 79.43 | G193: 317.72 | H193: DENPHXDEN | I193: 110220S
A194: Newberry/Tye | B194: TRANS FEE | C194: ARC | D194: 2000-05-15 | F194: 10 | G194: 10 | H194: ARC | I194: 110220S
A195: Newell/Patricia | B195: Dom. Air | C195: America West Airlines | D195: 2000-05-14 | E195: 2000-05-20 | F195: 52.95 | G195: 317.72 | H195: DENPHXDEN | I195: 110190S
A196: Newell/Patricia | B196: Dom. Air | C196: United Airlines | D196: 2000-01-27 | E196: 2000-01-30 | F196: 99.66 | G196: 299 | H196: DENDTWDEN | I196: 109343S
A197: Newell/Patricia | B197: Car | C197: Budget | D197: 2000-01-27 | E197: 2000-01-30 | F197: 24.99 | G197: 74.97 | H197: DTW | I197: 109483S
A198: Newell/Patricia | B198: TRANS FEE | C198: ARC | D198: 2000-01-27 | F198: 10 | G198: 10 | H198: ARC | I198: 109343S
A199: Newell/Patricia | B199: TRANS FEE | C199: ARC | D199: 2000-05-14 | F199: 10 | G199: 10 | H199: ARC | I199: 110190S
A200: Newell/Steve | B200: Dom. Air | C200: America West Airlines | D200: 2000-05-14 | E200: 2000-05-20 | F200: 52.95 | G200: 317.72 | H200: DENPHXDEN | I200: 110191S
... 96 more rows

Sheet DATA BARS (6)
B3: First Quarter Sales
C4: January | D4: February | E4: March | F4: Total Sales
B5: New Mexico | C5: 1345 | D5: 2345 | E5: 4567 | F5: =SUM(C5:E5) -> 8257
B6: Washington | C6: 3333 | D6: 3456 | E6: 6443 | F6: =SUM(C6:E6) -> 13232
B7: Oregon | C7: 2356 | D7: 7665 | E7: 9999 | F7: =SUM(C7:E7) -> 20020
B8: Colorado | C8: 4000 | D8: 4444 | E8: 5555 | F8: =SUM(C8:E8) -> 13999

Sheet TABLE (8)
A1: First Name | B1: Last Name | C1: Hire Date | D1: SS # | E1: Department | F1: Position | G1: Annual Salary | H1: Perf Rating | I1: Mgmt Level
A2: elizabeth | B2: ridenhauer | C2: 1997-04-29 | D2: 459306733 | E2: Corporate Manager | F2: Vice President | G2: 65000 | H2: 5 | I2: 1
A3: elizabeth | B3: ridenhauer | C3: 1997-04-29 | D3: 459306733 | E3: Corporate Manager | F3: Vice President | G3: 65000 | H3: 5 | I3: 1
A4: alice | B4: wortman | C4: 1998-04-03 | D4: 707942310 | E4: Corporate Manager | F4: Marketing Manager | G4: 85000 | H4: 4 | I4: 2
A5: tyrone | B5: anderson | C5: 1995-12-02 | D5: 146902472 | E5: Corporate Staff | F5: Division Manager | G5: 42000 | H5: 3 | I5: 3
A6: stuart | B6: klein | C6: 1999-05-28 | D6: 345005582 | E6: Corporate Staff | F6: Accounting Staff | G6: 55000 | H6: 4 | I6: 2
A7: catherine | B7: forest | C7: 2000-06-14 | D7: 368370245 | E7: Corporate Manager | F7: Director of Advertising | G7: 46000 | H7: 3 | I7: 2
A8: mechell | B8: clese | C8: 1995-05-09 | D8: 456080278 | E8: Corporate Staff | F8: Copy Writer | G8: 58000 | H8: 3 | I8: 4
A9: kate | B9: jones | C9: 2000-07-25 | D9: 481349363 | E9: Corporate Staff | F9: Accounting Staff | G9: 45000 | H9: 2 | I9: 3
A10: ellen | B10: spinnaker | C10: 1993-04-07 | D10: 570286844 | E10: Corporate Staff | F10: Circulation Manager | G10: 70000 | H10: 4 | I10: 3
A11: will | B11: mullen | C11: 1999-06-08 | D11: 611048942 | E11: Corporate Staff | F11: Division Manager | G11: 53500 | H11: 4 | I11: 3
A12: brad | B12: turner | C12: 1997-09-17 | D12: 345035237 | E12: Management Staff | F12: Accounting Staff | G12: 65000 | H12: 3 | I12: 3
A13: mark | B13: macdowell | C13: 2000-05-06 | D13: 820015532 | E13: Management Staff | F13: Web Manager | G13: 55000 | H13: 2 | I13: 3
A14: william | B14: martin | C14: 1952-07-01 | D14: 469440032 | E14: Retail | F14: Product Manager | G14: 55500 | H14: 2 | I14: 3
A15: jim | B15: kirney | C15: 1995-10-28 | D15: 618035383 | E15: Retail | F15: Product Manager | G15: 47500 | H15: 3 | I15: 3
A16: michelle | B16: campbell | C16: 1998-05-05 | D16: 681302482 | E16: Management Staff | F16: Accounting Staff | G16: 42000 | H16: 3 | I16: 2
A17: ty | B17: simmons | C17: 1999-05-14 | D17: 679694534 | E17: Retail | F17: Product Manager | G17: 57500 | H17: 3 | I17: 3
A18: dennis | B18: denton | C18: 1987-07-04 | D18: 692241314 | E18: Section Manager | F18: Director of Training | G18: 45000 | H18: 4 | I18: 3
A19: michael | B19: gapner | C19: 1961-08-20 | D19: 706670481 | E19: Management Staff | F19: Payroll Manager | G19: 48000 | H19: 3 | I19: 3
A20: eileen | B20: wilson | C20: 1995-07-29 | D20: 682110774 | E20: Retail | F20: Product Manager | G20: 48000 | H20: 4 | I20: 3
A21: george | B21: fernandez | C21: 1997-03-30 | D21: 781041004 | E21: Corporate Manager | F21: Office Manager | G21: 48000 | H21: 5 | I21: 2
A22: james | B22: bruce | C22: 2000-05-29 | D22: 248944357 | E22: Section Manager | F22: Dir. Of Shipping | G22: 55000 | H22: 1 | I22: 3
A23: marcia | B23: smith | C23: 1995-01-14 | D23: 931026545 | E23: Corporate Manager | F23: General Sales Manager | G23: 42000 | H23: 2 | I23: 2

Sheet LINK PP (33)
B3: First Quarter Sales
C4: January | D4: February | E4: March | F4: Total Sales
B5: New Mexico | C5: 1345 | D5: 2345 | E5: 4567 | F5: =SUM(C5:E5) -> 8257
B6: Oregon | C6: 3333 | D6: 3456 | E6: 6443 | F6: =SUM(C6:E6) -> 13232
B7: Washington | C7: 2356 | D7: 7665 | E7: 9999 | F7: =SUM(C7:E7) -> 20020
B8: Colorado | C8: 4000 | D8: 4444 | E8: 5555 | F8: =SUM(C8:E8) -> 13999

Sheet TEXT 2 COLUMNS WORDS
A1: First Name | B1: Last Name | C1: Hire Date | D1: SS # | E1: Department | F1: Position | G1: Annual Salary | H1: Perf Rating | I1: Mgmt Level
A2: elizabeth,ridenhauer,35549,459306733,Corporate Manager,Vice President,65000,5,1
A3: alice,wortman,35888,707942310,Corporate Manager,Marketing Manager,85000,4,2
A4: tyrone,anderson,35035,146902472,Corporate Staff,Division Manager,42000,3,3
A5: stuart,klein,36308,345005582,Corporate Staff,Accounting Staff,55000,4,2
A6: catherine,forest,36691,368370245,Corporate Manager,Director of Advertising,46000,3,2
A7: mechell,clese,34828,456080278,Corporate Staff,Copy Writer,58000,3,4
A8: kate,jones,36732,481349363,Corporate Staff,Accounting Staff,45000,2,3
A9: ellen,spinnaker,34066,570286844,Corporate Staff,Circulation Manager,70000,4,3
A10: will,mullen,36319,611048942,Corporate Staff,Division Manager,53500,4,3
A11: brad,turner,35690,345035237,Management Staff,Accounting Staff,65000,3,3
A12: mark,macdowell,36652,820015532,Management Staff,Web Manager,55000,2,3
A13: william,martin,19176,469440032,Retail,Product Manager,55500,2,3
A14: jim,kirney,35000,618035383,Retail,Product Manager,47500,3,3
A15: michelle,campbell,35920,681302482,Management Staff,Accounting Staff,42000,3,2
A16: ty ,simmons,36294,679694534,Retail,Product Manager,57500,3,3
A17: dennis,denton,31962,692241314,Section Manager,Director of Training,45000,4,3
A18: michael,gapner,22513,706670481,Management Staff,Payroll Manager,48000,3,3
A19: eileen,wilson,34909,682110774,Retail,Product Manager,48000,4,3
A20: george,fernandez,35519,781041004,Corporate Manager,Office Manager,48000,5,2
A21: james,bruce,36675,248944357,Section Manager,Dir. Of Shipping,55000,1,3
A22: marcia,smith,34713,931026545,Corporate Manager,General Sales Manager,42000,2,2

Sheet TEXT 2 COLUMNS (12)
A1: Employee
A2: anderson,tyrone | D2: 123456789
A3: bruce,james | D3: 987654321
A4: klein,stuart | D4: 654123789
A5: turner,brad
A6: forest,catherine
A7: clese,mechell
A8: ridenhauer,elizabeth
A9: martin,william
A10: jones,kate
A11: spinnaker,ellen
A12: mullen,will
A13: kirney,jim
A14: simmons,ty
A15: campbell,michelle
A16: wilson,eileen
A17: denton,dennis
A18: gapner,michael
A19: wortman,alice
A20: fernandez,george
A21: macdowell,mark
A22: smith,marcia

Sheet TEXT (14)
A1: First Name | B1: Last Name | C1: Hire Date | D1: SS # | E1: Department | F1: Position | G1: Annual Salary | H1: Perf Rating | I1: Mgmt Level
A2: tyrone | B2: anderson | C2: 1995-12-02 | D2: 146902472 | E2: Corporate Staff | F2: Division Manager | G2: 42000 | H2: 3 | I2: 3
A3: james | B3: bruce | C3: 2000-05-29 | D3: 248944357 | E3: Section Manager | F3: Dir. Of Shipping | G3: 55000 | H3: 1 | I3: 3
A4: stuart | B4: klein | C4: 1999-05-28 | D4: 345005582 | E4: Corporate Staff | F4: Accounting Staff | G4: 55000 | H4: 4 | I4: 2
A5: brad | B5: turner | C5: 1997-09-17 | D5: 345035237 | E5: Management Staff | F5: Accounting Staff | G5: 65000 | H5: 3 | I5: 3
A6: catherine | B6: forest | C6: 2000-06-14 | D6: 368370245 | E6: Corporate Manager | F6: Director of Advertising | G6: 46000 | H6: 3 | I6: 2
A7: mechell | B7: clese | C7: 1995-05-09 | D7: 456080278 | E7: Corporate Staff | F7: Copy Writer | G7: 58000 | H7: 3 | I7: 4
A8: elizabeth | B8: ridenhauer | C8: 1997-04-29 | D8: 459306733 | E8: Corporate Manager | F8: Vice President | G8: 65000 | H8: 5 | I8: 1
A9: william | B9: martin | C9: 1952-07-01 | D9: 469440032 | E9: Retail | F9: Product Manager | G9: 55500 | H9: 2 | I9: 3
A10: kate | B10: jones | C10: 2000-07-25 | D10: 481349363 | E10: Corporate Staff | F10: Accounting Staff | G10: 45000 | H10: 2 | I10: 3
A11: ellen | B11: spinnaker | C11: 1993-04-07 | D11: 570286844 | E11: Corporate Staff | F11: Circulation Manager | G11: 70000 | H11: 4 | I11: 3
A12: will | B12: mullen | C12: 1999-06-08 | D12: 611048942 | E12: Corporate Staff | F12: Division Manager | G12: 53500 | H12: 4 | I12: 3
A13: jim | B13: kirney | C13: 1995-10-28 | D13: 618035383 | E13: Retail | F13: Product Manager | G13: 47500 | H13: 3 | I13: 3
A14: ty | B14: simmons | C14: 1999-05-14 | D14: 679694534 | E14: Retail | F14: Product Manager | G14: 57500 | H14: 3 | I14: 3
A15: michelle | B15: campbell | C15: 1998-05-05 | D15: 681302482 | E15: Management Staff | F15: Accounting Staff | G15: 42000 | H15: 3 | I15: 2
A16: eileen | B16: wilson | C16: 1995-07-29 | D16: 682110774 | E16: Retail | F16: Product Manager | G16: 48000 | H16: 4 | I16: 3
A17: dennis | B17: denton | C17: 1987-07-04 | D17: 692241314 | E17: Section Manager | F17: Director of Training | G17: 45000 | H17: 4 | I17: 3
A18: michael | B18: gapner | C18: 1961-08-20 | D18: 706670481 | E18: Management Staff | F18: Payroll Manager | G18: 48000 | H18: 3 | I18: 3
A19: alice | B19: wortman | C19: 1998-04-03 | D19: 707942310 | E19: Corporate Manager | F19: Marketing Manager | G19: 85000 | H19: 4 | I19: 2
A20: george | B20: fernandez | C20: 1997-03-30 | D20: 781041004 | E20: Corporate Manager | F20: Office Manager | G20: 48000 | H20: 5 | I20: 2
A21: mark | B21: macdowell | C21: 2000-05-06 | D21: 820015532 | E21: Management Staff | F21: Web Manager | G21: 55000 | H21: 2 | I21: 3
A22: marcia | B22: smith | C22: 1995-01-14 | D22: 931026545 | E22: Corporate Manager | F22: General Sales Manager | G22: 42000 | H22: 2 | I22: 2

Sheet CONCATENATE (14)
A1: Batch # | B1: Prefix | C1: Date | D1: Sequence
B2: 00683 | C2: 11302010 | D2: 001
B3: 00683 | C3: 11302010 | D3: 002
B4: 00683 | C4: 11302010 | D4: 003
B5: 00683 | C5: 11302010 | D5: 004
B6: 00683 | C6: 11302010 | D6: 005
B7: 00683 | C7: 11302010 | D7: 006
B8: 00683 | C8: 11302010 | D8: 007
B9: 00683 | C9: 11302010 | D9: 008
B10: 00683 | C10: 11302010 | D10: 009
B11: 00683 | C11: 11302010 | D11: 010
B12: 00683 | C12: 11302010 | D12: 011
B13: 00683 | C13: 11302010 | D13: 012
B14: 00683 | C14: 11302010 | D14: 013

Sheet DUPLICATES
A1: First Name | B1: Last Name | C1: Hire Date | D1: SS # | E1: Department | F1: Position | G1: Annual Salary | H1: Perf Rating | I1: Mgmt Level
A2: catherine | B2: forest | C2: 2000-06-14 | D2: 368370245 | E2: Corporate Manager | F2: Director of Advertising | G2: 46000 | H2: 3 | I2: 2
A3: catherine | B3: forest | C3: 2000-06-14 | D3: 368370245 | E3: Corporate Manager | F3: Director of Advertising | G3: 46000 | H3: 3 | I3: 2
A4: elizabeth | B4: ridenhauer | C4: 1997-04-29 | D4: 459306733 | E4: Corporate Manager | F4: Vice President | G4: 65000 | H4: 5 | I4: 1
A5: marty | B5: feldmand | C5: 1987-07-08 | D5: 692241318 | E5: Corporate Manager | F5: Product Manager | G5: 47500 | H5: 4 | I5: 3
A6: alice | B6: wortman | C6: 1998-04-03 | D6: 707942310 | E6: Corporate Manager | F6: Marketing Manager | G6: 85000 | H6: 4 | I6: 2
A7: george | B7: fernandez | C7: 1997-03-30 | D7: 781041004 | E7: Corporate Manager | F7: Office Manager | G7: 48000 | H7: 5 | I7: 2
A8: marcia | B8: smith | C8: 1995-01-14 | D8: 931026545 | E8: Corporate Manager | F8: General Sales Manager | G8: 42000 | H8: 2 | I8: 2
A9: tyrone | B9: anderson | C9: 1995-12-02 | D9: 146902472 | E9: Corporate Staff | F9: Division Manager | G9: 42000 | H9: 3 | I9: 3
A10: stuart | B10: klein | C10: 1999-05-28 | D10: 345005582 | E10: Corporate Staff | F10: Accounting Staff | G10: 55000 | H10: 4 | I10: 2
A11: mechell | B11: clese | C11: 1995-05-09 | D11: 456080278 | E11: Corporate Staff | F11: Copy Writer | G11: 58000 | H11: 3 | I11: 4
A12: kate | B12: jones | C12: 2000-07-25 | D12: 481349363 | E12: Corporate Staff | F12: Accounting Staff | G12: 45000 | H12: 2 | I12: 3
A13: ellen | B13: spinnaker | C13: 1993-04-07 | D13: 570286844 | E13: Corporate Staff | F13: Circulation Manager | G13: 70000 | H13: 4 | I13: 3
A14: will | B14: mullen | C14: 1999-06-08 | D14: 611048942 | E14: Corporate Staff | F14: Division Manager | G14: 53500 | H14: 4 | I14: 3
A15: milly | B15: Johnson | C15: 1987-07-05 | D15: 692241315 | E15: Corporate Staff | F15: Product Manager | G15: 65000 | H15: 4 | I15: 3
A16: Jack | B16: phillips | C16: 1987-07-06 | D16: 692241316 | E16: Corporate Staff | F16: Product Manager | G16: 70000 | H16: 4 | I16: 3
A17: rob | B17: hambleton | C17: 1987-07-07 | D17: 692241317 | E17: Corporate Staff | F17: Product Manager | G17: 53500 | H17: 4 | I17: 3
A18: brad | B18: turner | C18: 1997-09-17 | D18: 345035237 | E18: Management Staff | F18: Accounting Staff | G18: 65000 | H18: 3 | I18: 3
A19: michelle | B19: campbell | C19: 1998-05-05 | D19: 681302482 | E19: Management Staff | F19: Accounting Staff | G19: 42000 | H19: 3 | I19: 2
A20: michael | B20: gapner | C20: 1961-08-20 | D20: 706670481 | E20: Management Staff | F20: Payroll Manager | G20: 48000 | H20: 3 | I20: 3
A21: mark | B21: macdowell | C21: 2000-05-06 | D21: 820015532 | E21: Management Staff | F21: Web Manager | G21: 55000 | H21: 2 | I21: 3
A22: william | B22: martin | C22: 1952-07-01 | D22: 469440032 | E22: Retail | F22: Product Manager | G22: 55500 | H22: 2 | I22: 3
A23: jim | B23: kirney | C23: 1995-10-28 | D23: 618035383 | E23: Retail | F23: Product Manager | G23: 47500 | H23: 3 | I23: 3
A24: ty | B24: simmons | C24: 1999-05-14 | D24: 679694534 | E24: Retail | F24: Product Manager | G24: 57500 | H24: 3 | I24: 3
A25: eileen | B25: wilson | C25: 1995-07-29 | D25: 682110774 | E25: Retail | F25: Product Manager | G25: 48000 | H25: 4 | I25: 3
A26: james | B26: bruce | C26: 2000-05-29 | D26: 248944357 | E26: Section Manager | F26: Dir. Of Shipping | G26: 55000 | H26: 1 | I26: 3
A27: dennis | B27: denton | C27: 1987-07-04 | D27: 692241314 | E27: Section Manager | F27: Director of Training | G27: 45000 | H27: 4 | I27: 3

Sheet SUBTOTALS (15)
A1: First Name | B1: Last Name | C1: Hire Date | D1: SS # | E1: Department | F1: Position | G1: Annual Salary | H1: Perf Rating | I1: Mgmt Level
A2: catherine | B2: forest | C2: 2000-06-14 | D2: 368370245 | E2: Corporate Manager | F2: Director of Advertising | G2: 46000 | H2: 3 | I2: 2
A3: elizabeth | B3: ridenhauer | C3: 1997-04-29 | D3: 459306733 | E3: Corporate Manager | F3: Vice President | G3: 65000 | H3: 5 | I3: 1
A4: marty | B4: feldmand | C4: 1987-07-08 | D4: 692241318 | E4: Corporate Manager | F4: Product Manager | G4: 47500 | H4: 4 | I4: 3
A5: alice | B5: wortman | C5: 1998-04-03 | D5: 707942310 | E5: Corporate Manager | F5: Marketing Manager | G5: 85000 | H5: 4 | I5: 2
A6: george | B6: fernandez | C6: 1997-03-30 | D6: 781041004 | E6: Corporate Manager | F6: Office Manager | G6: 48000 | H6: 5 | I6: 2
A7: marcia | B7: smith | C7: 1995-01-14 | D7: 931026545 | E7: Corporate Manager | F7: General Sales Manager | G7: 42000 | H7: 2 | I7: 2
A8: tyrone | B8: anderson | C8: 1995-12-02 | D8: 146902472 | E8: Corporate Staff | F8: Division Manager | G8: 42000 | H8: 3 | I8: 3
A9: stuart | B9: klein | C9: 1999-05-28 | D9: 345005582 | E9: Corporate Staff | F9: Accounting Staff | G9: 55000 | H9: 4 | I9: 2
A10: mechell | B10: clese | C10: 1995-05-09 | D10: 456080278 | E10: Corporate Staff | F10: Copy Writer | G10: 58000 | H10: 3 | I10: 4
A11: kate | B11: jones | C11: 2000-07-25 | D11: 481349363 | E11: Corporate Staff | F11: Accounting Staff | G11: 45000 | H11: 2 | I11: 3
A12: ellen | B12: spinnaker | C12: 1993-04-07 | D12: 570286844 | E12: Corporate Staff | F12: Circulation Manager | G12: 70000 | H12: 4 | I12: 3
A13: will | B13: mullen | C13: 1999-06-08 | D13: 611048942 | E13: Corporate Staff | F13: Division Manager | G13: 53500 | H13: 4 | I13: 3
A14: milly | B14: Johnson | C14: 1987-07-05 | D14: 692241315 | E14: Corporate Staff | F14: Product Manager | G14: 65000 | H14: 4 | I14: 3
A15: Jack | B15: phillips | C15: 1987-07-06 | D15: 692241316 | E15: Corporate Staff | F15: Product Manager | G15: 70000 | H15: 4 | I15: 3
A16: rob | B16: hambleton | C16: 1987-07-07 | D16: 692241317 | E16: Corporate Staff | F16: Product Manager | G16: 53500 | H16: 4 | I16: 3
A17: brad | B17: turner | C17: 1997-09-17 | D17: 345035237 | E17: Management Staff | F17: Accounting Staff | G17: 65000 | H17: 3 | I17: 3
A18: michelle | B18: campbell | C18: 1998-05-05 | D18: 681302482 | E18: Management Staff | F18: Accounting Staff | G18: 42000 | H18: 3 | I18: 2
A19: michael | B19: gapner | C19: 1961-08-20 | D19: 706670481 | E19: Management Staff | F19: Payroll Manager | G19: 48000 | H19: 3 | I19: 3
A20: mark | B20: macdowell | C20: 2000-05-06 | D20: 820015532 | E20: Management Staff | F20: Web Manager | G20: 55000 | H20: 2 | I20: 3
A21: william | B21: martin | C21: 1952-07-01 | D21: 469440032 | E21: Retail | F21: Product Manager | G21: 55500 | H21: 2 | I21: 3
A22: jim | B22: kirney | C22: 1995-10-28 | D22: 618035383 | E22: Retail | F22: Product Manager | G22: 47500 | H22: 3 | I22: 3
A23: ty | B23: simmons | C23: 1999-05-14 | D23: 679694534 | E23: Retail | F23: Product Manager | G23: 57500 | H23: 3 | I23: 3
A24: eileen | B24: wilson | C24: 1995-07-29 | D24: 682110774 | E24: Retail | F24: Product Manager | G24: 48000 | H24: 4 | I24: 3
A25: james | B25: bruce | C25: 2000-05-29 | D25: 248944357 | E25: Section Manager | F25: Dir. Of Shipping | G25: 55000 | H25: 1 | I25: 3
A26: dennis | B26: denton | C26: 1987-07-04 | D26: 692241314 | E26: Section Manager | F26: Director of Training | G26: 45000 | H26: 4 | I26: 3

Sheet PIVOT TABLES (16)
A1: First Name | B1: Last Name | C1: Hire Date | D1: SS # | E1: Department | F1: Position | G1: Annual Salary | H1: Perf Rating | I1: Mgmt Level
A2: tyrone | B2: anderson | C2: 1995-12-02 | D2: 146902472 | E2: Corporate Staff | F2: Division Manager | G2: 65000 | H2: 3 | I2: 3
A3: james | B3: bruce | C3: 2000-05-29 | D3: 248944357 | E3: Section Manager | F3: Dir. Of Shipping | G3: 85000 | H3: 1 | I3: 3
A4: stuart | B4: klein | C4: 1999-05-28 | D4: 345005582 | E4: Corporate Staff | F4: Accounting Staff | G4: 42000 | H4: 4 | I4: 2
A5: brad | B5: turner | C5: 1997-09-17 | D5: 345035237 | E5: Management Staff | F5: Accounting Staff | G5: 55000 | H5: 3 | I5: 3
A6: catherine | B6: forest | C6: 2000-06-14 | D6: 368370245 | E6: Corporate Manager | F6: Director of Advertising | G6: 46000 | H6: 3 | I6: 2
A7: mechell | B7: clese | C7: 1995-05-09 | D7: 456080278 | E7: Corporate Staff | F7: Copy Writer | G7: 58000 | H7: 3 | I7: 4
A8: elizabeth | B8: ridenhauer | C8: 1997-04-29 | D8: 459306733 | E8: Corporate Manager | F8: Vice President | G8: 45000 | H8: 5 | I8: 1
A9: william | B9: martin | C9: 1952-07-01 | D9: 469440032 | E9: Retail | F9: Product Manager | G9: 70000 | H9: 2 | I9: 3
A10: kate | B10: jones | C10: 2000-07-25 | D10: 481349363 | E10: Corporate Staff | F10: Accounting Staff | G10: 53500 | H10: 2 | I10: 3
A11: ellen | B11: spinnaker | C11: 1993-04-07 | D11: 570286844 | E11: Corporate Staff | F11: Circulation Manager | G11: 65000 | H11: 4 | I11: 3
A12: will | B12: mullen | C12: 1999-06-08 | D12: 611048942 | E12: Corporate Staff | F12: Division Manager | G12: 55000 | H12: 4 | I12: 3
A13: jim | B13: kirney | C13: 1995-10-28 | D13: 618035383 | E13: Retail | F13: Product Manager | G13: 55500 | H13: 3 | I13: 3
A14: ty | B14: simmons | C14: 1999-05-14 | D14: 679694534 | E14: Retail | F14: Product Manager | G14: 47500 | H14: 3 | I14: 3
A15: michelle | B15: campbell | C15: 1998-05-05 | D15: 681302482 | E15: Management Staff | F15: Accounting Staff | G15: 42000 | H15: 3 | I15: 2
A16: eileen | B16: wilson | C16: 1995-07-29 | D16: 682110774 | E16: Retail | F16: Product Manager | G16: 57500 | H16: 4 | I16: 3
A17: dennis | B17: denton | C17: 1987-07-04 | D17: 692241314 | E17: Section Manager | F17: Director of Training | G17: 45000 | H17: 4 | I17: 3
A18: milly | B18: Johnson | C18: 1987-07-05 | D18: 692241315 | E18: Corporate Staff | F18: Product Manager | G18: 48000 | H18: 4 | I18: 3
A19: Jack | B19: phillips | C19: 1987-07-06 | D19: 692241316 | E19: Corporate Staff | F19: Product Manager | G19: 48000 | H19: 4 | I19: 3
A20: rob | B20: hambleton | C20: 1987-07-07 | D20: 692241317 | E20: Corporate Staff | F20: Product Manager | G20: 48000 | H20: 4 | I20: 3
A21: marty | B21: feldmand | C21: 1987-07-08 | D21: 692241318 | E21: Corporate Manager | F21: Product Manager | G21: 55000 | H21: 4 | I21: 3
A22: michael | B22: gapner | C22: 1961-08-20 | D22: 706670481 | E22: Management Staff | F22: Payroll Manager | G22: 42000 | H22: 3 | I22: 3
A23: alice | B23: wortman | C23: 1998-04-03 | D23: 707942310 | E23: Corporate Manager | F23: Marketing Manager | G23: 85000 | H23: 4 | I23: 2
A24: george | B24: fernandez | C24: 1997-03-30 | D24: 781041004 | E24: Corporate Manager | F24: Office Manager | G24: 48000 | H24: 5 | I24: 2
A25: mark | B25: macdowell | C25: 2000-05-06 | D25: 820015532 | E25: Management Staff | F25: Web Manager | G25: 55000 | H25: 2 | I25: 3
A26: marcia | B26: smith | C26: 1995-01-14 | D26: 931026545 | E26: Corporate Manager | F26: General Sales Manager | G26: 42000 | H26: 2 | I26: 2
A34: rob | B34: hambleton | C34: 1998-04-03 | D34: 123-45-678 | E34: Training | F34: Trainer | G34: 50000 | H34: 1 | I34: 2
A35: mary | B35: hambleton | C35: 1995-07-29 | D35: 123-45-679 | E35: Training | F35: Marketing | G35: 75000 | H35: 1 | I35: 1
A36: brett | B36: favre | C36: 1961-08-20 | D36: 123-45-680 | E36: Training | F36: Motivational Speaker | G36: 250000 | H36: 2 | I36: 3

Sheet Grades
A1: Student | B1: Subject | C1: Quarter | D1: Grade
A2: Blake Campbell | B2: Spelling | C2: 1 | D2: 89
A3: Hunter Johnson | B3: Spelling | C3: 1 | D3: 79
A4: Mara Johnson | B4: Spelling | C4: 1 | D4: 96
A5: Emile Sanchez | B5: Spelling | C5: 1 | D5: 87
A6: Jeremy Smith | B6: Spelling | C6: 1 | D6: 92
A7: Blake Campbell | B7: Spelling | C7: 2 | D7: 91
A8: Hunter Johnson | B8: Spelling | C8: 2 | D8: 82
A9: Mara Johnson | B9: Spelling | C9: 2 | D9: 94
A10: Emile Sanchez | B10: Spelling | C10: 2 | D10: 84
A11: Jeremy Smith | B11: Spelling | C11: 2 | D11: 94
A12: Blake Campbell | B12: Spelling | C12: 3 | D12: 84
A13: Hunter Johnson | B13: Spelling | C13: 3 | D13: 75
A14: Mara Johnson | B14: Spelling | C14: 3 | D14: 92
A15: Emile Sanchez | B15: Spelling | C15: 3 | D15: 83
A16: Jeremy Smith | B16: Spelling | C16: 3 | D16: 96
A17: Blake Campbell | B17: Spelling | C17: 4
A18: Hunter Johnson | B18: Spelling | C18: 4
A19: Mara Johnson | B19: Spelling | C19: 4
A20: Emile Sanchez | B20: Spelling | C20: 4
A21: Jeremy Smith | B21: Spelling | C21: 4
A22: Blake Campbell | B22: Reading | C22: 1 | D22: 93
A23: Hunter Johnson | B23: Reading | C23: 1 | D23: 91
A24: Mara Johnson | B24: Reading | C24: 1 | D24: 78
A25: Emile Sanchez | B25: Reading | C25: 1 | D25: 85
A26: Jeremy Smith | B26: Reading | C26: 1 | D26: 90
A27: Blake Campbell | B27: Reading | C27: 2 | D27: 94
A28: Hunter Johnson | B28: Reading | C28: 2 | D28: 89
A29: Mara Johnson | B29: Reading | C29: 2 | D29: 82
A30: Emile Sanchez | B30: Reading | C30: 2 | D30: 90
A31: Jeremy Smith | B31: Reading | C31: 2 | D31: 92
A32: Blake Campbell | B32: Reading | C32: 3 | D32: 89
A33: Hunter Johnson | B33: Reading | C33: 3 | D33: 97
A34: Mara Johnson | B34: Reading | C34: 3 | D34: 88
A35: Emile Sanchez | B35: Reading | C35: 3 | D35: 81
A36: Jeremy Smith | B36: Reading | C36: 3 | D36: 86
A37: Blake Campbell | B37: Reading | C37: 4
A38: Hunter Johnson | B38: Reading | C38: 4
A39: Mara Johnson | B39: Reading | C39: 4
A40: Emile Sanchez | B40: Reading | C40: 4
A41: Jeremy Smith | B41: Reading | C41: 4
A42: Blake Campbell | B42: Vocabulary | C42: 1 | D42: 88
A43: Hunter Johnson | B43: Vocabulary | C43: 1 | D43: 90
A44: Mara Johnson | B44: Vocabulary | C44: 1 | D44: 97
A45: Emile Sanchez | B45: Vocabulary | C45: 1 | D45: 79
A46: Jeremy Smith | B46: Vocabulary | C46: 1 | D46: 88
A47: Blake Campbell | B47: Vocabulary | C47: 2 | D47: 90
A48: Hunter Johnson | B48: Vocabulary | C48: 2 | D48: 89
A49: Mara Johnson | B49: Vocabulary | C49: 2 | D49: 94
A50: Emile Sanchez | B50: Vocabulary | C50: 2 | D50: 82
A51: Jeremy Smith | B51: Vocabulary | C51: 2 | D51: 88
A52: Blake Campbell | B52: Vocabulary | C52: 3 | D52: 92
A53: Hunter Johnson | B53: Vocabulary | C53: 3 | D53: 93
A54: Mara Johnson | B54: Vocabulary | C54: 3 | D54: 72
A55: Emile Sanchez | B55: Vocabulary | C55: 3 | D55: 85
A56: Jeremy Smith | B56: Vocabulary | C56: 3 | D56: 85
A57: Blake Campbell | B57: Vocabulary | C57: 4
A58: Hunter Johnson | B58: Vocabulary | C58: 4
A59: Mara Johnson | B59: Vocabulary | C59: 4
A60: Emile Sanchez | B60: Vocabulary | C60: 4
A61: Jeremy Smith | B61: Vocabulary | C61: 4

Sheet Store 1
A1: Store One
A2: Product ID | B2: January | C2: February | D2: March
A3: ALP-701 | B3: 1861.26 | C3: 1876 | D3: 1676.34
A4: ALP-702 | B4: 1398.96 | C4: 1354.74 | D4: 1776.84
A5: ALP-704 | B5: 1656.24 | C5: 1541 | D5: 1353.4
A6: ALP-708 | B6: 1522.24 | C6: 1551.72 | D6: 1947.02
A7: ALP-715 | B7: 1737.98 | C7: 1428.44 | D7: 1890.74
A8: ALP-790 | B8: 1444.52 | C8: 1977.84 | D8: 1416.38
A9: ALP-802 | B9: 1910.84 | C9: 1764.78 | D9: 1827.76
A10: ALP-803 | B10: 1737.98 | C10: 1392.26 | D10: 1538.32
A11: ALP-811 | B11: 1573.16 | C11: 1523.58 | D11: 1665.62
A12: ALP-823 | B12: 1871.98 | C12: 1566.46 | D12: 1511.52
A13: ALP-836 | B13: 1811.68 | C13: 1488.74 | D13: 1967.12

Sheet Store 2
A1: Store Two
A2: Product ID | B2: January | C2: February | D2: March
A3: ALP-701 | B3: 1990.04 | C3: 1947.32 | D3: 2139.56
A4: ALP-703 | B4: 2114.64 | C4: 2356.72 | D4: 2200.08
A5: ALP-704 | B5: 2157.36 | C5: 1783.56 | D5: 1812.04
A6: ALP-709 | B6: 2087.94 | C6: 1986.48 | D6: 1975.8
A7: ALP-712 | B7: 2310.44 | C7: 2168.04 | D7: 2611.26
A8: ALP-715 | B8: 2166.26 | C8: 2395.88 | D8: 1790.68
A9: ALP-803 | B9: 2287.3 | C9: 1876.12 | D9: 2310.44
A10: ALP-811 | B10: 2121.76 | C10: 2506.24 | D10: 1797.8

Sheet Store 3
A1: Store Three
A2: Product ID | B2: January | C2: February | D2: March
A3: ALP-702 | B3: 1825.55 | C3: 1806.7 | D3: 2031.45
A4: ALP-703 | B4: 2106.85 | C4: 2143.1 | D4: 1886.45
A5: ALP-704 | B5: 1858.9 | C5: 1819.75 | D5: 1831.35
A6: ALP-705 | B6: 1506.55 | C6: 1770.45 | D6: 1883.55
A7: ALP-803 | B7: 1924.15 | C7: 1815.4 | D7: 2098.15
A8: ALP-811 | B8: 1766.1 | C8: 1764.65 | D8: 1483.35
A9: ALP-814 | B9: 1706.65 | C9: 1484.8 | D9: 1465.95
A10: ALP-823 | B10: 1954.6 | C10: 2148.9 | D10: 1753.05
A11: ALP-835 | B11: 2067.7 | C11: 1487.7 | D11: 1557.3
A12: ALP-836 | B12: 1747.25 | C12: 1576.15 | D12: 2159.05

Sheet CELL PROTECTION (21)
B3: First Quarter Sales
C4: January | D4: February | E4: March | F4: Total Sales
B5: New Mexico | C5: 1000 | D5: 2000 | E5: 4000 | F5: =SUM(C5:E5) -> 7000
B6: Oregon | C6: 4000 | D6: 3456 | E6: 6443 | F6: =SUM(C6:E6) -> 13899
B7: Washington | C7: 2356 | D7: 7665 | E7: 9999 | F7: =SUM(C7:E7) -> 20020
B8: Colorado | C8: 4000 | D8: 4444 | E8: 5555 | F8: =SUM(C8:E8) -> 13999

Sheet SHEET PROTECT (21)
A1: First Name | B1: Last Name | C1: Hire Date | D1: SS # | E1: Department | F1: Position | G1: Annual Salary | H1: Perf Rating | I1: Mgmt Level
A2: tyrone | B2: anderson | C2: 1995-12-02 | D2: 146902472 | E2: Corporate Staff | F2: Division Manager | G2: 42000 | H2: 3 | I2: 3
A3: james | B3: bruce | C3: 2000-05-29 | D3: 248944357 | E3: Section Manager | F3: Dir. Of Shipping | G3: 55000 | H3: 1 | I3: 3
A4: stuart | B4: klein | C4: 1999-05-28 | D4: 345005582 | E4: Corporate Staff | F4: Accounting Staff | G4: 55000 | H4: 4 | I4: 2
A5: brad | B5: turner | C5: 1997-09-17 | D5: 345035237 | E5: Management Staff | F5: Accounting Staff | G5: 65000 | H5: 3 | I5: 3
A6: catherine | B6: forest | C6: 2000-06-14 | D6: 368370245 | E6: Corporate Manager | F6: Director of Advertising | G6: 46000 | H6: 3 | I6: 2
A7: mechell | B7: clese | C7: 1995-05-09 | D7: 456080278 | E7: Corporate Staff | F7: Copy Writer | G7: 58000 | H7: 3 | I7: 4
A8: elizabeth | B8: ridenhauer | C8: 1997-04-29 | D8: 459306733 | E8: Corporate Manager | F8: Vice President | G8: 65000 | H8: 5 | I8: 1
A9: william | B9: martin | C9: 1952-07-01 | D9: 469440032 | E9: Retail | F9: Product Manager | G9: 55500 | H9: 2 | I9: 3
A10: kate | B10: jones | C10: 2000-07-25 | D10: 481349363 | E10: Corporate Staff | F10: Accounting Staff | G10: 45000 | H10: 2 | I10: 3
A11: ellen | B11: spinnaker | C11: 1993-04-07 | D11: 570286844 | E11: Corporate Staff | F11: Circulation Manager | G11: 70000 | H11: 4 | I11: 3
A12: will | B12: mullen | C12: 1999-06-08 | D12: 611048942 | E12: Corporate Staff | F12: Division Manager | G12: 53500 | H12: 4 | I12: 3
A13: jim | B13: kirney | C13: 1995-10-28 | D13: 618035383 | E13: Retail | F13: Product Manager | G13: 47500 | H13: 3 | I13: 3
A14: ty | B14: simmons | C14: 1999-05-14 | D14: 679694534 | E14: Retail | F14: Product Manager | G14: 57500 | H14: 3 | I14: 3
A15: michelle | B15: campbell | C15: 1998-05-05 | D15: 681302482 | E15: Management Staff | F15: Accounting Staff | G15: 42000 | H15: 3 | I15: 2
A16: eileen | B16: wilson | C16: 1995-07-29 | D16: 682110774 | E16: Retail | F16: Product Manager | G16: 48000 | H16: 4 | I16: 3
A17: dennis | B17: denton | C17: 1987-07-04 | D17: 692241314 | E17: Section Manager | F17: Director of Training | G17: 45000 | H17: 4 | I17: 3
A18: milly | B18: Johnson | C18: 1987-07-05 | D18: 692241315 | E18: Corporate Staff | F18: Product Manager | G18: 65000 | H18: 4 | I18: 3
A19: Jack | B19: phillips | C19: 1987-07-06 | D19: 692241316 | E19: Corporate Staff | F19: Product Manager | G19: 70000 | H19: 4 | I19: 3
A20: rob | B20: hambleton | C20: 1987-07-07 | D20: 692241317 | E20: Corporate Staff | F20: Product Manager | G20: 53500 | H20: 4 | I20: 3
A21: marty | B21: feldmand | C21: 1987-07-08 | D21: 692241318 | E21: Corporate Manager | F21: Product Manager | G21: 47500 | H21: 4 | I21: 3
A22: michael | B22: gapner | C22: 1961-08-20 | D22: 706670481 | E22: Management Staff | F22: Payroll Manager | G22: 48000 | H22: 3 | I22: 3
A23: alice | B23: wortman | C23: 1998-04-03 | D23: 707942310 | E23: Corporate Manager | F23: Marketing Manager | G23: 85000 | H23: 4 | I23: 2
A24: george | B24: fernandez | C24: 1997-03-30 | D24: 781041004 | E24: Corporate Manager | F24: Office Manager | G24: 48000 | H24: 5 | I24: 2
A25: mark | B25: macdowell | C25: 2000-05-06 | D25: 820015532 | E25: Management Staff | F25: Web Manager | G25: 55000 | H25: 2 | I25: 3
A26: marcia | B26: smith | C26: 1995-01-14 | D26: 931026545 | E26: Corporate Manager | F26: General Sales Manager | G26: 42000 | H26: 2 | I26: 2

Sheet VALIDATION (22)
A1: Time Sheet
A2: Name | B2: Time In | C2: Time Out | D2: Hours Worked | F2: 07:00:00 | G2: 12:00:00
A3: Bill Stevenson | B3: 06:46:00 | C3: 16:43:00 | F3: 07:15:00 | G3: 12:15:00
A4: Carol Miller | B4: 06:49:00 | C4: 17:15:00 | F4: 07:30:00 | G4: 12:30:00
A5: Randy Howard | C5: 15:23:00 | F5: 07:45:00 | G5: 12:45:00
A6: Amy Moore | B6: 06:45:00 | F6: 08:00:00 | G6: 13:00:00
A7: Steve Richards | F7: 08:15:00 | G7: 13:15:00
A8: Jim Stewart | F8: 08:30:00 | G8: 13:30:00
A9: Julie Reynolds | F9: 08:45:00 | G9: 13:45:00
F10: 09:00:00 | G10: 14:00:00
F11: 09:15:00 | G11: 14:15:00
F12: 09:30:00 | G12: 14:30:00
F13: 09:45:00 | G13: 14:45:00
F14: 10:00:00 | G14: 15:00:00
F15: 10:15:00 | G15: 15:15:00
F16: 10:30:00 | G16: 15:30:00
F17: 10:45:00 | G17: 15:45:00
F18: 11:00:00 | G18: 16:00:00
F19: 11:15:00 | G19: 16:15:00
F20: 11:30:00 | G20: 16:30:00
F21: 11:45:00 | G21: 16:45:00
F22: 12:00:00 | G22: 17:00:00

Sheet IF FUNCTION (23)
A1: Advertising Accounts Receivable
A2: Current Date:
A3: Invoice Number | B3: Invoice Date | C3: Customer Name | D3: Amount | E3: Invoice Due Date | F3: Invoice Age | G3: No. of Days Overdue
A4: 92334 | B4: =TODAY()-47 -> 2017-01-11 | C4: Village Reader | D4: 334
A5: 92356 | B5: =TODAY()-12 -> 2017-02-15 | C5: WHAT | D5: 152.99
A6: 92362 | B6: =TODAY()-56 -> 2017-01-02 | C6: Advertising Concepts | D6: 468.33
A7: 92379 | B7: =TODAY()-29 -> 2017-01-29 | C7: NYNEX | D7: 334
A8: 92393 | B8: =TODAY()-54 -> 2017-01-04 | C8: Advertising Concepts | D8: 50
A9: 92407 | B9: =TODAY()-15 -> 2017-02-12 | C9: Young Upstart | D9: 1500
A10: 92421 | B10: =TODAY()-89 -> 2016-11-30 | C10: Mass Appeal, Inc. | D10: 55
A16: Greater Than | B16: >
A17: Less Than | B17: <
A18: Greater Than or Equal To | B18: >=
A19: Less Than or Equal To | B19: <=
A20: Not Equal To | B20: <>
A21: Is Blank | B21: ""
A28: Invoice Statistics
A29: Age of oldest invoice (in days)
A30: Largest dollar amount
A31: Smallest dollar amount
A32: Age of newest invoice (in days)
A33: Number of invoices

Sheet VLOOKUP (24)
A2: Commission Rate | B2: 0.1
A4: Salesperson | B4: Sales | C4: Quota | D4: Commission | E4: Bonus | F4: Total
A5: Jim Bruce | B5: 6598 | C5: 3000
A6: Mark Sanders | B6: 6059 | C6: 4000
A7: Carmen Foster | B7: 4895 | C7: 5000
A10: Bonus Table
A11: Quota Level | B11: Bonus
A12: 2000 | B12: 25
A13: 3000 | B13: 50
A14: 4000 | B14: 75
A15: 5000 | B15: 100
A16: 6000 | B16: 125

Sheet PRINT MACRO (27)
B3: First Quarter Sales
C4: January | D4: February | E4: March | F4: Total Sales
B5: California | C5: 1345 | D5: 2345 | E5: 3456 | F5: =SUM(C5:E5) -> 7146
B6: Oregon | C6: 4000 | D6: 3456 | E6: 6443 | F6: =SUM(C6:E6) -> 13899
B7: Washington | C7: 2356 | D7: 7665 | E7: 9999 | F7: =SUM(C7:E7) -> 20020
B8: Indiana | C8: 4000 | D8: 4444 | E8: 5555 | F8: =SUM(C8:E8) -> 13999

Sheet PRODUCTS MACRO (30)
A1: 1 | B1: Chai | C1: 10 boxes x 20 bags | D1: 18 | E1: 39 | F1: 0 | G1: FALSE
A2: 2 | B2: Chang | C2: 24 - 12 oz bottles | D2: 19 | E2: 17 | F2: 40 | G2: FALSE
A3: 3 | B3: Aniseed Syrup | C3: 12 - 550 ml bottles | D3: 10 | E3: 13 | F3: 70 | G3: FALSE
A4: 4 | B4: Chef Anton's Cajun Seasoning | C4: 48 - 6 oz jars | D4: 22 | E4: 53 | F4: 0 | G4: FALSE
A5: 5 | B5: Chef Anton's Gumbo Mix | C5: 36 boxes | D5: 21.35 | E5: 0 | F5: 0 | G5: TRUE
A6: 6 | B6: Grandma's Boysenberry Spread | C6: 12 - 8 oz jars | D6: 25 | E6: 120 | F6: 0 | G6: FALSE
A7: 7 | B7: Uncle Bob's Organic Dried Pears | C7: 12 - 1 lb pkgs. | D7: 30 | E7: 15 | F7: 0 | G7: FALSE
A8: 8 | B8: Northwoods Cranberry Sauce | C8: 12 - 12 oz jars | D8: 40 | E8: 6 | F8: 0 | G8: FALSE
A9: 9 | B9: Mishi Kobe Niku | C9: 18 - 500 g pkgs. | D9: 97 | E9: 29 | F9: 0 | G9: TRUE
A10: 10 | B10: Ikura | C10: 12 - 200 ml jars | D10: 31 | E10: 31 | F10: 0 | G10: FALSE
A11: 11 | B11: Queso Cabrales | C11: 1 kg pkg. | D11: 21 | E11: 22 | F11: 30 | G11: FALSE
A12: 12 | B12: Queso Manchego La Pastora | C12: 10 - 500 g pkgs. | D12: 38 | E12: 86 | F12: 0 | G12: FALSE
A13: 13 | B13: Konbu | C13: 2 kg box | D13: 6 | E13: 24 | F13: 0 | G13: FALSE
A14: 14 | B14: Tofu | C14: 40 - 100 g pkgs. | D14: 23.25 | E14: 35 | F14: 0 | G14: FALSE
A15: 15 | B15: Genen Shouyu | C15: 24 - 250 ml bottles | D15: 15.5 | E15: 39 | F15: 0 | G15: FALSE
A16: 16 | B16: Pavlova | C16: 32 - 500 g boxes | D16: 17.45 | E16: 29 | F16: 0 | G16: FALSE
A17: 17 | B17: Alice Mutton | C17: 20 - 1 kg tins | D17: 39 | E17: 0 | F17: 0 | G17: TRUE
A18: 18 | B18: Carnarvon Tigers | C18: 16 kg pkg. | D18: 62.5 | E18: 42 | F18: 0 | G18: FALSE
A19: 19 | B19: Teatime Chocolate Biscuits | C19: 10 boxes x 12 pieces | D19: 9.2 | E19: 25 | F19: 0 | G19: FALSE
A20: 20 | B20: Sir Rodney's Marmalade | C20: 30 gift boxes | D20: 81 | E20: 40 | F20: 0 | G20: FALSE
A21: 21 | B21: Sir Rodney's Scones | C21: 24 pkgs. x 4 pieces | D21: 10 | E21: 3 | F21: 40 | G21: FALSE
A22: 22 | B22: Gustaf's Knäckebröd | C22: 24 - 500 g pkgs. | D22: 21 | E22: 104 | F22: 0 | G22: FALSE
A23: 23 | B23: Tunnbröd | C23: 12 - 250 g pkgs. | D23: 9 | E23: 61 | F23: 0 | G23: FALSE
A24: 24 | B24: Guaraná Fantástica | C24: 12 - 355 ml cans | D24: 4.5 | E24: 20 | F24: 0 | G24: TRUE
A25: 25 | B25: NuNuCa Nuß-Nougat-Creme | C25: 20 - 450 g glasses | D25: 14 | E25: 76 | F25: 0 | G25: FALSE
A26: 26 | B26: Gumbär Gummibärchen | C26: 100 - 250 g bags | D26: 31.23 | E26: 15 | F26: 0 | G26: FALSE
A27: 27 | B27: Schoggi Schokolade | C27: 100 - 100 g pieces | D27: 43.9 | E27: 49 | F27: 0 | G27: FALSE
A28: 28 | B28: Rössle Sauerkraut | C28: 25 - 825 g cans | D28: 45.6 | E28: 26 | F28: 0 | G28: TRUE
A29: 29 | B29: Thüringer Rostbratwurst | C29: 50 bags x 30 sausgs. | D29: 123.79 | E29: 0 | F29: 0 | G29: TRUE
A30: 30 | B30: Nord-Ost Matjeshering | C30: 10 - 200 g glasses | D30: 25.89 | E30: 10 | F30: 0 | G30: FALSE
A31: 31 | B31: Gorgonzola Telino | C31: 12 - 100 g pkgs | D31: 12.5 | E31: 0 | F31: 70 | G31: FALSE
A32: 32 | B32: Mascarpone Fabioli | C32: 24 - 200 g pkgs. | D32: 32 | E32: 9 | F32: 40 | G32: FALSE
A33: 33 | B33: Geitost | C33: 500 g | D33: 2.5 | E33: 112 | F33: 0 | G33: FALSE
A34: 34 | B34: Sasquatch Ale | C34: 24 - 12 oz bottles | D34: 14 | E34: 111 | F34: 0 | G34: FALSE
A35: 35 | B35: Steeleye Stout | C35: 24 - 12 oz bottles | D35: 18 | E35: 20 | F35: 0 | G35: FALSE
A36: 36 | B36: Inlagd Sill | C36: 24 - 250 g jars | D36: 19 | E36: 112 | F36: 0 | G36: FALSE
A37: 37 | B37: Gravad lax | C37: 12 - 500 g pkgs. | D37: 26 | E37: 11 | F37: 50 | G37: FALSE
A38: 38 | B38: Côte de Blaye | C38: 12 - 75 cl bottles | D38: 263.5 | E38: 17 | F38: 0 | G38: FALSE
A39: 39 | B39: Chartreuse verte | C39: 750 cc per bottle | D39: 18 | E39: 69 | F39: 0 | G39: FALSE
A40: 40 | B40: Boston Crab Meat | C40: 24 - 4 oz tins | D40: 18.4 | E40: 123 | F40: 0 | G40: FALSE
A41: 41 | B41: Jack's New England Clam Chowder | C41: 12 - 12 oz cans | D41: 9.65 | E41: 85 | F41: 0 | G41: FALSE
A42: 42 | B42: Singaporean Hokkien Fried Mee | C42: 32 - 1 kg pkgs. | D42: 14 | E42: 26 | F42: 0 | G42: TRUE
A43: 43 | B43: Ipoh Coffee | C43: 16 - 500 g tins | D43: 46 | E43: 17 | F43: 10 | G43: FALSE
A44: 44 | B44: Gula Malacca | C44: 20 - 2 kg bags | D44: 19.45 | E44: 27 | F44: 0 | G44: FALSE
A45: 45 | B45: Røgede sild | C45: 1k pkg. | D45: 9.5 | E45: 5 | F45: 70 | G45: FALSE
A46: 46 | B46: Spegesild | C46: 4 - 450 g glasses | D46: 12 | E46: 95 | F46: 0 | G46: FALSE
A47: 47 | B47: Zaanse koeken | C47: 10 - 4 oz boxes | D47: 9.5 | E47: 36 | F47: 0 | G47: FALSE
A48: 48 | B48: Chocolade | C48: 10 pkgs. | D48: 12.75 | E48: 15 | F48: 70 | G48: FALSE
A49: 49 | B49: Maxilaku | C49: 24 - 50 g pkgs. | D49: 20 | E49: 10 | F49: 60 | G49: FALSE
A50: 50 | B50: Valkoinen suklaa | C50: 12 - 100 g bars | D50: 16.25 | E50: 65 | F50: 0 | G50: FALSE
A51: 51 | B51: Manjimup Dried Apples | C51: 50 - 300 g pkgs. | D51: 53 | E51: 20 | F51: 0 | G51: FALSE
A52: 52 | B52: Filo Mix | C52: 16 - 2 kg boxes | D52: 7 | E52: 38 | F52: 0 | G52: FALSE
A53: 53 | B53: Perth Pasties | C53: 48 pieces | D53: 32.8 | E53: 0 | F53: 0 | G53: TRUE
A54: 54 | B54: Tourtière | C54: 16 pies | D54: 7.45 | E54: 21 | F54: 0 | G54: FALSE
A55: 55 | B55: Pâté chinois | C55: 24 boxes x 2 pies | D55: 24 | E55: 115 | F55: 0 | G55: FALSE
A56: 56 | B56: Gnocchi di nonna Alice | C56: 24 - 250 g pkgs. | D56: 38 | E56: 21 | F56: 10 | G56: FALSE
A57: 57 | B57: Ravioli Angelo | C57: 24 - 250 g pkgs. | D57: 19.5 | E57: 36 | F57: 0 | G57: FALSE
A58: 58 | B58: Escargots de Bourgogne | C58: 24 pieces | D58: 13.25 | E58: 62 | F58: 0 | G58: FALSE
A59: 59 | B59: Raclette Courdavault | C59: 5 kg pkg. | D59: 55 | E59: 79 | F59: 0 | G59: FALSE
A60: 60 | B60: Camembert Pierrot | C60: 15 - 300 g rounds | D60: 34 | E60: 19 | F60: 0 | G60: FALSE
A61: 61 | B61: Sirop d'érable | C61: 24 - 500 ml bottles | D61: 28.5 | E61: 113 | F61: 0 | G61: FALSE
A62: 62 | B62: Tarte au sucre | C62: 48 pies | D62: 49.3 | E62: 17 | F62: 0 | G62: FALSE
A63: 63 | B63: Vegie-spread | C63: 15 - 625 g jars | D63: 43.9 | E63: 24 | F63: 0 | G63: FALSE
A64: 64 | B64: Wimmers gute Semmelknödel | C64: 20 bags x 4 pieces | D64: 33.25 | E64: 22 | F64: 80 | G64: FALSE
A65: 65 | B65: Louisiana Fiery Hot Pepper Sauce | C65: 32 - 8 oz bottles | D65: 21.05 | E65: 76 | F65: 0 | G65: FALSE
A66: 66 | B66: Louisiana Hot Spiced Okra | C66: 24 - 8 oz jars | D66: 17 | E66: 4 | F66: 100 | G66: FALSE
A67: 67 | B67: Laughing Lumberjack Lager | C67: 24 - 12 oz bottles | D67: 14 | E67: 52 | F67: 0 | G67: FALSE
A68: 68 | B68: Scottish Longbreads | C68: 10 boxes x 8 pieces | D68: 12.5 | E68: 6 | F68: 10 | G68: FALSE
A69: 69 | B69: Gudbrandsdalsost | C69: 10 kg pkg. | D69: 36 | E69: 26 | F69: 0 | G69: FALSE
A70: 70 | B70: Outback Lager | C70: 24 - 355 ml bottles | D70: 15 | E70: 15 | F70: 10 | G70: FALSE
A71: 71 | B71: Fløtemysost | C71: 10 - 500 g pkgs. | D71: 21.5 | E71: 26 | F71: 0 | G71: FALSE
A72: 72 | B72: Mozzarella di Giovanni | C72: 24 - 200 g pkgs. | D72: 34.8 | E72: 14 | F72: 0 | G72: FALSE
A73: 73 | B73: Röd Kaviar | C73: 24 - 150 g jars | D73: 15 | E73: 101 | F73: 0 | G73: FALSE
A74: 74 | B74: Longlife Tofu | C74: 5 kg pkg. | D74: 10 | E74: 4 | F74: 20 | G74: FALSE
A75: 75 | B75: Rhönbräu Klosterbier | C75: 24 - 0.5 l bottles | D75: 7.75 | E75: 125 | F75: 0 | G75: FALSE
A76: 76 | B76: Lakkalikööri | C76: 500 ml | D76: 18 | E76: 57 | F76: 0 | G76: FALSE
A77: 77 | B77: Original Frankfurter grüne Soße | C77: 12 boxes | D77: 13 | E77: 32 | F77: 0 | G77: FALSE

Sheet PRODUCTS MACRO (31)
A1: 1 | B1: Chai | C1: 10 boxes x 20 bags | D1: 18 | E1: 39 | F1: 0 | G1: FALSE
A2: 2 | B2: Chang | C2: 24 - 12 oz bottles | D2: 19 | E2: 17 | F2: 40 | G2: FALSE
A3: 3 | B3: Aniseed Syrup | C3: 12 - 550 ml bottles | D3: 10 | E3: 13 | F3: 70 | G3: FALSE
A4: 4 | B4: Chef Anton's Cajun Seasoning | C4: 48 - 6 oz jars | D4: 22 | E4: 53 | F4: 0 | G4: FALSE
A5: 5 | B5: Chef Anton's Gumbo Mix | C5: 36 boxes | D5: 21.35 | E5: 0 | F5: 0 | G5: TRUE
A6: 6 | B6: Grandma's Boysenberry Spread | C6: 12 - 8 oz jars | D6: 25 | E6: 120 | F6: 0 | G6: FALSE
A7: 7 | B7: Uncle Bob's Organic Dried Pears | C7: 12 - 1 lb pkgs. | D7: 30 | E7: 15 | F7: 0 | G7: FALSE
A8: 8 | B8: Northwoods Cranberry Sauce | C8: 12 - 12 oz jars | D8: 40 | E8: 6 | F8: 0 | G8: FALSE
A9: 9 | B9: Mishi Kobe Niku | C9: 18 - 500 g pkgs. | D9: 97 | E9: 29 | F9: 0 | G9: TRUE
A10: 10 | B10: Ikura | C10: 12 - 200 ml jars | D10: 31 | E10: 31 | F10: 0 | G10: FALSE
A11: 11 | B11: Queso Cabrales | C11: 1 kg pkg. | D11: 21 | E11: 22 | F11: 30 | G11: FALSE
A12: 12 | B12: Queso Manchego La Pastora | C12: 10 - 500 g pkgs. | D12: 38 | E12: 86 | F12: 0 | G12: FALSE
A13: 13 | B13: Konbu | C13: 2 kg box | D13: 6 | E13: 24 | F13: 0 | G13: FALSE
A14: 14 | B14: Tofu | C14: 40 - 100 g pkgs. | D14: 23.25 | E14: 35 | F14: 0 | G14: FALSE
A15: 15 | B15: Genen Shouyu | C15: 24 - 250 ml bottles | D15: 15.5 | E15: 39 | F15: 0 | G15: FALSE
A16: 16 | B16: Pavlova | C16: 32 - 500 g boxes | D16: 17.45 | E16: 29 | F16: 0 | G16: FALSE
A17: 17 | B17: Alice Mutton | C17: 20 - 1 kg tins | D17: 39 | E17: 0 | F17: 0 | G17: TRUE
A18: 18 | B18: Carnarvon Tigers | C18: 16 kg pkg. | D18: 62.5 | E18: 42 | F18: 0 | G18: FALSE
A19: 19 | B19: Teatime Chocolate Biscuits | C19: 10 boxes x 12 pieces | D19: 9.2 | E19: 25 | F19: 0 | G19: FALSE
A20: 20 | B20: Sir Rodney's Marmalade | C20: 30 gift boxes | D20: 81 | E20: 40 | F20: 0 | G20: FALSE
A21: 21 | B21: Sir Rodney's Scones | C21: 24 pkgs. x 4 pieces | D21: 10 | E21: 3 | F21: 40 | G21: FALSE
A22: 22 | B22: Gustaf's Knäckebröd | C22: 24 - 500 g pkgs. | D22: 21 | E22: 104 | F22: 0 | G22: FALSE
A23: 23 | B23: Tunnbröd | C23: 12 - 250 g pkgs. | D23: 9 | E23: 61 | F23: 0 | G23: FALSE
A24: 24 | B24: Guaraná Fantástica | C24: 12 - 355 ml cans | D24: 4.5 | E24: 20 | F24: 0 | G24: TRUE
A25: 25 | B25: NuNuCa Nuß-Nougat-Creme | C25: 20 - 450 g glasses | D25: 14 | E25: 76 | F25: 0 | G25: FALSE
A26: 26 | B26: Gumbär Gummibärchen | C26: 100 - 250 g bags | D26: 31.23 | E26: 15 | F26: 0 | G26: FALSE
A27: 27 | B27: Schoggi Schokolade | C27: 100 - 100 g pieces | D27: 43.9 | E27: 49 | F27: 0 | G27: FALSE
A28: 28 | B28: Rössle Sauerkraut | C28: 25 - 825 g cans | D28: 45.6 | E28: 26 | F28: 0 | G28: TRUE
A29: 29 | B29: Thüringer Rostbratwurst | C29: 50 bags x 30 sausgs. | D29: 123.79 | E29: 0 | F29: 0 | G29: TRUE
A30: 30 | B30: Nord-Ost Matjeshering | C30: 10 - 200 g glasses | D30: 25.89 | E30: 10 | F30: 0 | G30: FALSE
A31: 31 | B31: Gorgonzola Telino | C31: 12 - 100 g pkgs | D31: 12.5 | E31: 0 | F31: 70 | G31: FALSE
A32: 32 | B32: Mascarpone Fabioli | C32: 24 - 200 g pkgs. | D32: 32 | E32: 9 | F32: 40 | G32: FALSE
A33: 33 | B33: Geitost | C33: 500 g | D33: 2.5 | E33: 112 | F33: 0 | G33: FALSE
A34: 34 | B34: Sasquatch Ale | C34: 24 - 12 oz bottles | D34: 14 | E34: 111 | F34: 0 | G34: FALSE
A35: 35 | B35: Steeleye Stout | C35: 24 - 12 oz bottles | D35: 18 | E35: 20 | F35: 0 | G35: FALSE
A36: 36 | B36: Inlagd Sill | C36: 24 - 250 g jars | D36: 19 | E36: 112 | F36: 0 | G36: FALSE
A37: 37 | B37: Gravad lax | C37: 12 - 500 g pkgs. | D37: 26 | E37: 11 | F37: 50 | G37: FALSE
A38: 38 | B38: Côte de Blaye | C38: 12 - 75 cl bottles | D38: 263.5 | E38: 17 | F38: 0 | G38: FALSE
A39: 39 | B39: Chartreuse verte | C39: 750 cc per bottle | D39: 18 | E39: 69 | F39: 0 | G39: FALSE
A40: 40 | B40: Boston Crab Meat | C40: 24 - 4 oz tins | D40: 18.4 | E40: 123 | F40: 0 | G40: FALSE
A41: 41 | B41: Jack's New England Clam Chowder | C41: 12 - 12 oz cans | D41: 9.65 | E41: 85 | F41: 0 | G41: FALSE
A42: 42 | B42: Singaporean Hokkien Fried Mee | C42: 32 - 1 kg pkgs. | D42: 14 | E42: 26 | F42: 0 | G42: TRUE
A43: 43 | B43: Ipoh Coffee | C43: 16 - 500 g tins | D43: 46 | E43: 17 | F43: 10 | G43: FALSE
A44: 44 | B44: Gula Malacca | C44: 20 - 2 kg bags | D44: 19.45 | E44: 27 | F44: 0 | G44: FALSE
A45: 45 | B45: Røgede sild | C45: 1k pkg. | D45: 9.5 | E45: 5 | F45: 70 | G45: FALSE
A46: 46 | B46: Spegesild | C46: 4 - 450 g glasses | D46: 12 | E46: 95 | F46: 0 | G46: FALSE
A47: 47 | B47: Zaanse koeken | C47: 10 - 4 oz boxes | D47: 9.5 | E47: 36 | F47: 0 | G47: FALSE
A48: 48 | B48: Chocolade | C48: 10 pkgs. | D48: 12.75 | E48: 15 | F48: 70 | G48: FALSE
A49: 49 | B49: Maxilaku | C49: 24 - 50 g pkgs. | D49: 20 | E49: 10 | F49: 60 | G49: FALSE
A50: 50 | B50: Valkoinen suklaa | C50: 12 - 100 g bars | D50: 16.25 | E50: 65 | F50: 0 | G50: FALSE
A51: 51 | B51: Manjimup Dried Apples | C51: 50 - 300 g pkgs. | D51: 53 | E51: 20 | F51: 0 | G51: FALSE
A52: 52 | B52: Filo Mix | C52: 16 - 2 kg boxes | D52: 7 | E52: 38 | F52: 0 | G52: FALSE
A53: 53 | B53: Perth Pasties | C53: 48 pieces | D53: 32.8 | E53: 0 | F53: 0 | G53: TRUE
A54: 54 | B54: Tourtière | C54: 16 pies | D54: 7.45 | E54: 21 | F54: 0 | G54: FALSE
A55: 55 | B55: Pâté chinois | C55: 24 boxes x 2 pies | D55: 24 | E55: 115 | F55: 0 | G55: FALSE
A56: 56 | B56: Gnocchi di nonna Alice | C56: 24 - 250 g pkgs. | D56: 38 | E56: 21 | F56: 10 | G56: FALSE
A57: 57 | B57: Ravioli Angelo | C57: 24 - 250 g pkgs. | D57: 19.5 | E57: 36 | F57: 0 | G57: FALSE
A58: 58 | B58: Escargots de Bourgogne | C58: 24 pieces | D58: 13.25 | E58: 62 | F58: 0 | G58: FALSE
A59: 59 | B59: Raclette Courdavault | C59: 5 kg pkg. | D59: 55 | E59: 79 | F59: 0 | G59: FALSE
A60: 60 | B60: Camembert Pierrot | C60: 15 - 300 g rounds | D60: 34 | E60: 19 | F60: 0 | G60: FALSE
A61: 61 | B61: Sirop d'érable | C61: 24 - 500 ml bottles | D61: 28.5 | E61: 113 | F61: 0 | G61: FALSE
A62: 62 | B62: Tarte au sucre | C62: 48 pies | D62: 49.3 | E62: 17 | F62: 0 | G62: FALSE
A63: 63 | B63: Vegie-spread | C63: 15 - 625 g jars | D63: 43.9 | E63: 24 | F63: 0 | G63: FALSE
A64: 64 | B64: Wimmers gute Semmelknödel | C64: 20 bags x 4 pieces | D64: 33.25 | E64: 22 | F64: 80 | G64: FALSE
A65: 65 | B65: Louisiana Fiery Hot Pepper Sauce | C65: 32 - 8 oz bottles | D65: 21.05 | E65: 76 | F65: 0 | G65: FALSE
A66: 66 | B66: Louisiana Hot Spiced Okra | C66: 24 - 8 oz jars | D66: 17 | E66: 4 | F66: 100 | G66: FALSE
A67: 67 | B67: Laughing Lumberjack Lager | C67: 24 - 12 oz bottles | D67: 14 | E67: 52 | F67: 0 | G67: FALSE
A68: 68 | B68: Scottish Longbreads | C68: 10 boxes x 8 pieces | D68: 12.5 | E68: 6 | F68: 10 | G68: FALSE
A69: 69 | B69: Gudbrandsdalsost | C69: 10 kg pkg. | D69: 36 | E69: 26 | F69: 0 | G69: FALSE
A70: 70 | B70: Outback Lager | C70: 24 - 355 ml bottles | D70: 15 | E70: 15 | F70: 10 | G70: FALSE
A71: 71 | B71: Fløtemysost | C71: 10 - 500 g pkgs. | D71: 21.5 | E71: 26 | F71: 0 | G71: FALSE
A72: 72 | B72: Mozzarella di Giovanni | C72: 24 - 200 g pkgs. | D72: 34.8 | E72: 14 | F72: 0 | G72: FALSE
A73: 73 | B73: Röd Kaviar | C73: 24 - 150 g jars | D73: 15 | E73: 101 | F73: 0 | G73: FALSE
A74: 74 | B74: Longlife Tofu | C74: 5 kg pkg. | D74: 10 | E74: 4 | F74: 20 | G74: FALSE
A75: 75 | B75: Rhönbräu Klosterbier | C75: 24 - 0.5 l bottles | D75: 7.75 | E75: 125 | F75: 0 | G75: FALSE
A76: 76 | B76: Lakkalikööri | C76: 500 ml | D76: 18 | E76: 57 | F76: 0 | G76: FALSE
A77: 77 | B77: Original Frankfurter grüne Soße | C77: 12 boxes | D77: 13 | E77: 32 | F77: 0 | G77: FALSE

Sheet PRODUCTS MACRO (32)
A1: 1 | B1: Chai | C1: 10 boxes x 20 bags | D1: 18 | E1: 39 | F1: 0 | G1: FALSE
A2: 2 | B2: Chang | C2: 24 - 12 oz bottles | D2: 19 | E2: 17 | F2: 40 | G2: FALSE
A3: 3 | B3: Aniseed Syrup | C3: 12 - 550 ml bottles | D3: 10 | E3: 13 | F3: 70 | G3: FALSE
A4: 4 | B4: Chef Anton's Cajun Seasoning | C4: 48 - 6 oz jars | D4: 22 | E4: 53 | F4: 0 | G4: FALSE
A5: 5 | B5: Chef Anton's Gumbo Mix | C5: 36 boxes | D5: 21.35 | E5: 0 | F5: 0 | G5: TRUE
A6: 6 | B6: Grandma's Boysenberry Spread | C6: 12 - 8 oz jars | D6: 25 | E6: 120 | F6: 0 | G6: FALSE
A7: 7 | B7: Uncle Bob's Organic Dried Pears | C7: 12 - 1 lb pkgs. | D7: 30 | E7: 15 | F7: 0 | G7: FALSE
A8: 8 | B8: Northwoods Cranberry Sauce | C8: 12 - 12 oz jars | D8: 40 | E8: 6 | F8: 0 | G8: FALSE
A9: 9 | B9: Mishi Kobe Niku | C9: 18 - 500 g pkgs. | D9: 97 | E9: 29 | F9: 0 | G9: TRUE
A10: 10 | B10: Ikura | C10: 12 - 200 ml jars | D10: 31 | E10: 31 | F10: 0 | G10: FALSE
A11: 11 | B11: Queso Cabrales | C11: 1 kg pkg. | D11: 21 | E11: 22 | F11: 30 | G11: FALSE
A12: 12 | B12: Queso Manchego La Pastora | C12: 10 - 500 g pkgs. | D12: 38 | E12: 86 | F12: 0 | G12: FALSE
A13: 13 | B13: Konbu | C13: 2 kg box | D13: 6 | E13: 24 | F13: 0 | G13: FALSE
A14: 14 | B14: Tofu | C14: 40 - 100 g pkgs. | D14: 23.25 | E14: 35 | F14: 0 | G14: FALSE
A15: 15 | B15: Genen Shouyu | C15: 24 - 250 ml bottles | D15: 15.5 | E15: 39 | F15: 0 | G15: FALSE
A16: 16 | B16: Pavlova | C16: 32 - 500 g boxes | D16: 17.45 | E16: 29 | F16: 0 | G16: FALSE
A17: 17 | B17: Alice Mutton | C17: 20 - 1 kg tins | D17: 39 | E17: 0 | F17: 0 | G17: TRUE
A18: 18 | B18: Carnarvon Tigers | C18: 16 kg pkg. | D18: 62.5 | E18: 42 | F18: 0 | G18: FALSE
A19: 19 | B19: Teatime Chocolate Biscuits | C19: 10 boxes x 12 pieces | D19: 9.2 | E19: 25 | F19: 0 | G19: FALSE
A20: 20 | B20: Sir Rodney's Marmalade | C20: 30 gift boxes | D20: 81 | E20: 40 | F20: 0 | G20: FALSE
A21: 21 | B21: Sir Rodney's Scones | C21: 24 pkgs. x 4 pieces | D21: 10 | E21: 3 | F21: 40 | G21: FALSE
A22: 22 | B22: Gustaf's Knäckebröd | C22: 24 - 500 g pkgs. | D22: 21 | E22: 104 | F22: 0 | G22: FALSE
A23: 23 | B23: Tunnbröd | C23: 12 - 250 g pkgs. | D23: 9 | E23: 61 | F23: 0 | G23: FALSE
A24: 24 | B24: Guaraná Fantástica | C24: 12 - 355 ml cans | D24: 4.5 | E24: 20 | F24: 0 | G24: TRUE
A25: 25 | B25: NuNuCa Nuß-Nougat-Creme | C25: 20 - 450 g glasses | D25: 14 | E25: 76 | F25: 0 | G25: FALSE
A26: 26 | B26: Gumbär Gummibärchen | C26: 100 - 250 g bags | D26: 31.23 | E26: 15 | F26: 0 | G26: FALSE
A27: 27 | B27: Schoggi Schokolade | C27: 100 - 100 g pieces | D27: 43.9 | E27: 49 | F27: 0 | G27: FALSE
A28: 28 | B28: Rössle Sauerkraut | C28: 25 - 825 g cans | D28: 45.6 | E28: 26 | F28: 0 | G28: TRUE
A29: 29 | B29: Thüringer Rostbratwurst | C29: 50 bags x 30 sausgs. | D29: 123.79 | E29: 0 | F29: 0 | G29: TRUE
A30: 30 | B30: Nord-Ost Matjeshering | C30: 10 - 200 g glasses | D30: 25.89 | E30: 10 | F30: 0 | G30: FALSE
A31: 31 | B31: Gorgonzola Telino | C31: 12 - 100 g pkgs | D31: 12.5 | E31: 0 | F31: 70 | G31: FALSE
A32: 32 | B32: Mascarpone Fabioli | C32: 24 - 200 g pkgs. | D32: 32 | E32: 9 | F32: 40 | G32: FALSE
A33: 33 | B33: Geitost | C33: 500 g | D33: 2.5 | E33: 112 | F33: 0 | G33: FALSE
A34: 34 | B34: Sasquatch Ale | C34: 24 - 12 oz bottles | D34: 14 | E34: 111 | F34: 0 | G34: FALSE
A35: 35 | B35: Steeleye Stout | C35: 24 - 12 oz bottles | D35: 18 | E35: 20 | F35: 0 | G35: FALSE
A36: 36 | B36: Inlagd Sill | C36: 24 - 250 g jars | D36: 19 | E36: 112 | F36: 0 | G36: FALSE
A37: 37 | B37: Gravad lax | C37: 12 - 500 g pkgs. | D37: 26 | E37: 11 | F37: 50 | G37: FALSE
A38: 38 | B38: Côte de Blaye | C38: 12 - 75 cl bottles | D38: 263.5 | E38: 17 | F38: 0 | G38: FALSE
A39: 39 | B39: Chartreuse verte | C39: 750 cc per bottle | D39: 18 | E39: 69 | F39: 0 | G39: FALSE
A40: 40 | B40: Boston Crab Meat | C40: 24 - 4 oz tins | D40: 18.4 | E40: 123 | F40: 0 | G40: FALSE
A41: 41 | B41: Jack's New England Clam Chowder | C41: 12 - 12 oz cans | D41: 9.65 | E41: 85 | F41: 0 | G41: FALSE
A42: 42 | B42: Singaporean Hokkien Fried Mee | C42: 32 - 1 kg pkgs. | D42: 14 | E42: 26 | F42: 0 | G42: TRUE
A43: 43 | B43: Ipoh Coffee | C43: 16 - 500 g tins | D43: 46 | E43: 17 | F43: 10 | G43: FALSE
A44: 44 | B44: Gula Malacca | C44: 20 - 2 kg bags | D44: 19.45 | E44: 27 | F44: 0 | G44: FALSE
A45: 45 | B45: Røgede sild | C45: 1k pkg. | D45: 9.5 | E45: 5 | F45: 70 | G45: FALSE
A46: 46 | B46: Spegesild | C46: 4 - 450 g glasses | D46: 12 | E46: 95 | F46: 0 | G46: FALSE
A47: 47 | B47: Zaanse koeken | C47: 10 - 4 oz boxes | D47: 9.5 | E47: 36 | F47: 0 | G47: FALSE
A48: 48 | B48: Chocolade | C48: 10 pkgs. | D48: 12.75 | E48: 15 | F48: 70 | G48: FALSE
A49: 49 | B49: Maxilaku | C49: 24 - 50 g pkgs. | D49: 20 | E49: 10 | F49: 60 | G49: FALSE
A50: 50 | B50: Valkoinen suklaa | C50: 12 - 100 g bars | D50: 16.25 | E50: 65 | F50: 0 | G50: FALSE
A51: 51 | B51: Manjimup Dried Apples | C51: 50 - 300 g pkgs. | D51: 53 | E51: 20 | F51: 0 | G51: FALSE
A52: 52 | B52: Filo Mix | C52: 16 - 2 kg boxes | D52: 7 | E52: 38 | F52: 0 | G52: FALSE
A53: 53 | B53: Perth Pasties | C53: 48 pieces | D53: 32.8 | E53: 0 | F53: 0 | G53: TRUE
A54: 54 | B54: Tourtière | C54: 16 pies | D54: 7.45 | E54: 21 | F54: 0 | G54: FALSE
A55: 55 | B55: Pâté chinois | C55: 24 boxes x 2 pies | D55: 24 | E55: 115 | F55: 0 | G55: FALSE
A56: 56 | B56: Gnocchi di nonna Alice | C56: 24 - 250 g pkgs. | D56: 38 | E56: 21 | F56: 10 | G56: FALSE
A57: 57 | B57: Ravioli Angelo | C57: 24 - 250 g pkgs. | D57: 19.5 | E57: 36 | F57: 0 | G57: FALSE
A58: 58 | B58: Escargots de Bourgogne | C58: 24 pieces | D58: 13.25 | E58: 62 | F58: 0 | G58: FALSE
A59: 59 | B59: Raclette Courdavault | C59: 5 kg pkg. | D59: 55 | E59: 79 | F59: 0 | G59: FALSE
A60: 60 | B60: Camembert Pierrot | C60: 15 - 300 g rounds | D60: 34 | E60: 19 | F60: 0 | G60: FALSE
A61: 61 | B61: Sirop d'érable | C61: 24 - 500 ml bottles | D61: 28.5 | E61: 113 | F61: 0 | G61: FALSE
A62: 62 | B62: Tarte au sucre | C62: 48 pies | D62: 49.3 | E62: 17 | F62: 0 | G62: FALSE
A63: 63 | B63: Vegie-spread | C63: 15 - 625 g jars | D63: 43.9 | E63: 24 | F63: 0 | G63: FALSE
A64: 64 | B64: Wimmers gute Semmelknödel | C64: 20 bags x 4 pieces | D64: 33.25 | E64: 22 | F64: 80 | G64: FALSE
A65: 65 | B65: Louisiana Fiery Hot Pepper Sauce | C65: 32 - 8 oz bottles | D65: 21.05 | E65: 76 | F65: 0 | G65: FALSE
A66: 66 | B66: Louisiana Hot Spiced Okra | C66: 24 - 8 oz jars | D66: 17 | E66: 4 | F66: 100 | G66: FALSE
A67: 67 | B67: Laughing Lumberjack Lager | C67: 24 - 12 oz bottles | D67: 14 | E67: 52 | F67: 0 | G67: FALSE
A68: 68 | B68: Scottish Longbreads | C68: 10 boxes x 8 pieces | D68: 12.5 | E68: 6 | F68: 10 | G68: FALSE
A69: 69 | B69: Gudbrandsdalsost | C69: 10 kg pkg. | D69: 36 | E69: 26 | F69: 0 | G69: FALSE
A70: 70 | B70: Outback Lager | C70: 24 - 355 ml bottles | D70: 15 | E70: 15 | F70: 10 | G70: FALSE
A71: 71 | B71: Fløtemysost | C71: 10 - 500 g pkgs. | D71: 21.5 | E71: 26 | F71: 0 | G71: FALSE
A72: 72 | B72: Mozzarella di Giovanni | C72: 24 - 200 g pkgs. | D72: 34.8 | E72: 14 | F72: 0 | G72: FALSE
A73: 73 | B73: Röd Kaviar | C73: 24 - 150 g jars | D73: 15 | E73: 101 | F73: 0 | G73: FALSE
A74: 74 | B74: Longlife Tofu | C74: 5 kg pkg. | D74: 10 | E74: 4 | F74: 20 | G74: FALSE
A75: 75 | B75: Rhönbräu Klosterbier | C75: 24 - 0.5 l bottles | D75: 7.75 | E75: 125 | F75: 0 | G75: FALSE
A76: 76 | B76: Lakkalikööri | C76: 500 ml | D76: 18 | E76: 57 | F76: 0 | G76: FALSE
A77: 77 | B77: Original Frankfurter grüne Soße | C77: 12 boxes | D77: 13 | E77: 32 | F77: 0 | G77: FALSE

Sheet PRODUCTS MACRO (33)
A1: 1 | B1: Chai | C1: 10 boxes x 20 bags | D1: 18 | E1: 39 | F1: 0 | G1: FALSE
A2: 2 | B2: Chang | C2: 24 - 12 oz bottles | D2: 19 | E2: 17 | F2: 40 | G2: FALSE
A3: 3 | B3: Aniseed Syrup | C3: 12 - 550 ml bottles | D3: 10 | E3: 13 | F3: 70 | G3: FALSE
A4: 4 | B4: Chef Anton's Cajun Seasoning | C4: 48 - 6 oz jars | D4: 22 | E4: 53 | F4: 0 | G4: FALSE
A5: 5 | B5: Chef Anton's Gumbo Mix | C5: 36 boxes | D5: 21.35 | E5: 0 | F5: 0 | G5: TRUE
A6: 6 | B6: Grandma's Boysenberry Spread | C6: 12 - 8 oz jars | D6: 25 | E6: 120 | F6: 0 | G6: FALSE
A7: 7 | B7: Uncle Bob's Organic Dried Pears | C7: 12 - 1 lb pkgs. | D7: 30 | E7: 15 | F7: 0 | G7: FALSE
A8: 8 | B8: Northwoods Cranberry Sauce | C8: 12 - 12 oz jars | D8: 40 | E8: 6 | F8: 0 | G8: FALSE
A9: 9 | B9: Mishi Kobe Niku | C9: 18 - 500 g pkgs. | D9: 97 | E9: 29 | F9: 0 | G9: TRUE
A10: 10 | B10: Ikura | C10: 12 - 200 ml jars | D10: 31 | E10: 31 | F10: 0 | G10: FALSE
A11: 11 | B11: Queso Cabrales | C11: 1 kg pkg. | D11: 21 | E11: 22 | F11: 30 | G11: FALSE
A12: 12 | B12: Queso Manchego La Pastora | C12: 10 - 500 g pkgs. | D12: 38 | E12: 86 | F12: 0 | G12: FALSE
A13: 13 | B13: Konbu | C13: 2 kg box | D13: 6 | E13: 24 | F13: 0 | G13: FALSE
A14: 14 | B14: Tofu | C14: 40 - 100 g pkgs. | D14: 23.25 | E14: 35 | F14: 0 | G14: FALSE
A15: 15 | B15: Genen Shouyu | C15: 24 - 250 ml bottles | D15: 15.5 | E15: 39 | F15: 0 | G15: FALSE
A16: 16 | B16: Pavlova | C16: 32 - 500 g boxes | D16: 17.45 | E16: 29 | F16: 0 | G16: FALSE
A17: 17 | B17: Alice Mutton | C17: 20 - 1 kg tins | D17: 39 | E17: 0 | F17: 0 | G17: TRUE
A18: 18 | B18: Carnarvon Tigers | C18: 16 kg pkg. | D18: 62.5 | E18: 42 | F18: 0 | G18: FALSE
A19: 19 | B19: Teatime Chocolate Biscuits | C19: 10 boxes x 12 pieces | D19: 9.2 | E19: 25 | F19: 0 | G19: FALSE
A20: 20 | B20: Sir Rodney's Marmalade | C20: 30 gift boxes | D20: 81 | E20: 40 | F20: 0 | G20: FALSE
A21: 21 | B21: Sir Rodney's Scones | C21: 24 pkgs. x 4 pieces | D21: 10 | E21: 3 | F21: 40 | G21: FALSE
A22: 22 | B22: Gustaf's Knäckebröd | C22: 24 - 500 g pkgs. | D22: 21 | E22: 104 | F22: 0 | G22: FALSE
A23: 23 | B23: Tunnbröd | C23: 12 - 250 g pkgs. | D23: 9 | E23: 61 | F23: 0 | G23: FALSE
A24: 24 | B24: Guaraná Fantástica | C24: 12 - 355 ml cans | D24: 4.5 | E24: 20 | F24: 0 | G24: TRUE
A25: 25 | B25: NuNuCa Nuß-Nougat-Creme | C25: 20 - 450 g glasses | D25: 14 | E25: 76 | F25: 0 | G25: FALSE
A26: 26 | B26: Gumbär Gummibärchen | C26: 100 - 250 g bags | D26: 31.23 | E26: 15 | F26: 0 | G26: FALSE
A27: 27 | B27: Schoggi Schokolade | C27: 100 - 100 g pieces | D27: 43.9 | E27: 49 | F27: 0 | G27: FALSE
A28: 28 | B28: Rössle Sauerkraut | C28: 25 - 825 g cans | D28: 45.6 | E28: 26 | F28: 0 | G28: TRUE
A29: 29 | B29: Thüringer Rostbratwurst | C29: 50 bags x 30 sausgs. | D29: 123.79 | E29: 0 | F29: 0 | G29: TRUE
A30: 30 | B30: Nord-Ost Matjeshering | C30: 10 - 200 g glasses | D30: 25.89 | E30: 10 | F30: 0 | G30: FALSE
A31: 31 | B31: Gorgonzola Telino | C31: 12 - 100 g pkgs | D31: 12.5 | E31: 0 | F31: 70 | G31: FALSE
A32: 32 | B32: Mascarpone Fabioli | C32: 24 - 200 g pkgs. | D32: 32 | E32: 9 | F32: 40 | G32: FALSE
A33: 33 | B33: Geitost | C33: 500 g | D33: 2.5 | E33: 112 | F33: 0 | G33: FALSE
A34: 34 | B34: Sasquatch Ale | C34: 24 - 12 oz bottles | D34: 14 | E34: 111 | F34: 0 | G34: FALSE
A35: 35 | B35: Steeleye Stout | C35: 24 - 12 oz bottles | D35: 18 | E35: 20 | F35: 0 | G35: FALSE
A36: 36 | B36: Inlagd Sill | C36: 24 - 250 g jars | D36: 19 | E36: 112 | F36: 0 | G36: FALSE
A37: 37 | B37: Gravad lax | C37: 12 - 500 g pkgs. | D37: 26 | E37: 11 | F37: 50 | G37: FALSE
A38: 38 | B38: Côte de Blaye | C38: 12 - 75 cl bottles | D38: 263.5 | E38: 17 | F38: 0 | G38: FALSE
A39: 39 | B39: Chartreuse verte | C39: 750 cc per bottle | D39: 18 | E39: 69 | F39: 0 | G39: FALSE
A40: 40 | B40: Boston Crab Meat | C40: 24 - 4 oz tins | D40: 18.4 | E40: 123 | F40: 0 | G40: FALSE
A41: 41 | B41: Jack's New England Clam Chowder | C41: 12 - 12 oz cans | D41: 9.65 | E41: 85 | F41: 0 | G41: FALSE
A42: 42 | B42: Singaporean Hokkien Fried Mee | C42: 32 - 1 kg pkgs. | D42: 14 | E42: 26 | F42: 0 | G42: TRUE
A43: 43 | B43: Ipoh Coffee | C43: 16 - 500 g tins | D43: 46 | E43: 17 | F43: 10 | G43: FALSE
A44: 44 | B44: Gula Malacca | C44: 20 - 2 kg bags | D44: 19.45 | E44: 27 | F44: 0 | G44: FALSE
A45: 45 | B45: Røgede sild | C45: 1k pkg. | D45: 9.5 | E45: 5 | F45: 70 | G45: FALSE
A46: 46 | B46: Spegesild | C46: 4 - 450 g glasses | D46: 12 | E46: 95 | F46: 0 | G46: FALSE
A47: 47 | B47: Zaanse koeken | C47: 10 - 4 oz boxes | D47: 9.5 | E47: 36 | F47: 0 | G47: FALSE
A48: 48 | B48: Chocolade | C48: 10 pkgs. | D48: 12.75 | E48: 15 | F48: 70 | G48: FALSE
A49: 49 | B49: Maxilaku | C49: 24 - 50 g pkgs. | D49: 20 | E49: 10 | F49: 60 | G49: FALSE
A50: 50 | B50: Valkoinen suklaa | C50: 12 - 100 g bars | D50: 16.25 | E50: 65 | F50: 0 | G50: FALSE
A51: 51 | B51: Manjimup Dried Apples | C51: 50 - 300 g pkgs. | D51: 53 | E51: 20 | F51: 0 | G51: FALSE
A52: 52 | B52: Filo Mix | C52: 16 - 2 kg boxes | D52: 7 | E52: 38 | F52: 0 | G52: FALSE
A53: 53 | B53: Perth Pasties | C53: 48 pieces | D53: 32.8 | E53: 0 | F53: 0 | G53: TRUE
A54: 54 | B54: Tourtière | C54: 16 pies | D54: 7.45 | E54: 21 | F54: 0 | G54: FALSE
A55: 55 | B55: Pâté chinois | C55: 24 boxes x 2 pies | D55: 24 | E55: 115 | F55: 0 | G55: FALSE
A56: 56 | B56: Gnocchi di nonna Alice | C56: 24 - 250 g pkgs. | D56: 38 | E56: 21 | F56: 10 | G56: FALSE
A57: 57 | B57: Ravioli Angelo | C57: 24 - 250 g pkgs. | D57: 19.5 | E57: 36 | F57: 0 | G57: FALSE
A58: 58 | B58: Escargots de Bourgogne | C58: 24 pieces | D58: 13.25 | E58: 62 | F58: 0 | G58: FALSE
A59: 59 | B59: Raclette Courdavault | C59: 5 kg pkg. | D59: 55 | E59: 79 | F59: 0 | G59: FALSE
A60: 60 | B60: Camembert Pierrot | C60: 15 - 300 g rounds | D60: 34 | E60: 19 | F60: 0 | G60: FALSE
A61: 61 | B61: Sirop d'érable | C61: 24 - 500 ml bottles | D61: 28.5 | E61: 113 | F61: 0 | G61: FALSE
A62: 62 | B62: Tarte au sucre | C62: 48 pies | D62: 49.3 | E62: 17 | F62: 0 | G62: FALSE
A63: 63 | B63: Vegie-spread | C63: 15 - 625 g jars | D63: 43.9 | E63: 24 | F63: 0 | G63: FALSE
A64: 64 | B64: Wimmers gute Semmelknödel | C64: 20 bags x 4 pieces | D64: 33.25 | E64: 22 | F64: 80 | G64: FALSE
A65: 65 | B65: Louisiana Fiery Hot Pepper Sauce | C65: 32 - 8 oz bottles | D65: 21.05 | E65: 76 | F65: 0 | G65: FALSE
A66: 66 | B66: Louisiana Hot Spiced Okra | C66: 24 - 8 oz jars | D66: 17 | E66: 4 | F66: 100 | G66: FALSE
A67: 67 | B67: Laughing Lumberjack Lager | C67: 24 - 12 oz bottles | D67: 14 | E67: 52 | F67: 0 | G67: FALSE
A68: 68 | B68: Scottish Longbreads | C68: 10 boxes x 8 pieces | D68: 12.5 | E68: 6 | F68: 10 | G68: FALSE
A69: 69 | B69: Gudbrandsdalsost | C69: 10 kg pkg. | D69: 36 | E69: 26 | F69: 0 | G69: FALSE
A70: 70 | B70: Outback Lager | C70: 24 - 355 ml bottles | D70: 15 | E70: 15 | F70: 10 | G70: FALSE
A71: 71 | B71: Fløtemysost | C71: 10 - 500 g pkgs. | D71: 21.5 | E71: 26 | F71: 0 | G71: FALSE
A72: 72 | B72: Mozzarella di Giovanni | C72: 24 - 200 g pkgs. | D72: 34.8 | E72: 14 | F72: 0 | G72: FALSE
A73: 73 | B73: Röd Kaviar | C73: 24 - 150 g jars | D73: 15 | E73: 101 | F73: 0 | G73: FALSE
A74: 74 | B74: Longlife Tofu | C74: 5 kg pkg. | D74: 10 | E74: 4 | F74: 20 | G74: FALSE
A75: 75 | B75: Rhönbräu Klosterbier | C75: 24 - 0.5 l bottles | D75: 7.75 | E75: 125 | F75: 0 | G75: FALSE
A76: 76 | B76: Lakkalikööri | C76: 500 ml | D76: 18 | E76: 57 | F76: 0 | G76: FALSE
A77: 77 | B77: Original Frankfurter grüne Soße | C77: 12 boxes | D77: 13 | E77: 32 | F77: 0 | G77: FALSE

Sheet PASTE SPECIAL (4)
A1: First Name | B1: Last Name | C1: Hire Date | D1: SS # | E1: Department | F1: Position | G1: Current Salary | H1: Raise | I1: Perf Rating | J1: Mgmt Level
A2: tyrone | B2: anderson | C2: 1995-12-02 | D2: 146902472 | E2: Corporate Staff | F2: Division Manager | G2: 51051.2625 | H2: 1.05 | I2: 3 | J2: 3
A3: james | B3: bruce | C3: 2000-05-29 | D3: 248944357 | E3: Section Manager | F3: Dir. Of Shipping | G3: 66852.84375 | I3: 1 | J3: 3
A4: stuart | B4: klein | C4: 1999-05-28 | D4: 345005582 | E4: Corporate Staff | F4: Accounting Staff | G4: 66852.84375 | I4: 4 | J4: 2
A5: brad | B5: turner | C5: 1997-09-17 | D5: 345035237 | E5: Management Staff | F5: Accounting Staff | G5: 79007.90625 | I5: 3 | J5: 3
A6: catherine | B6: forest | C6: 2000-06-14 | D6: 368370245 | E6: Corporate Manager | F6: Director of Advertising | G6: 55913.2875 | I6: 3 | J6: 2
A7: mechell | B7: clese | C7: 1995-05-09 | D7: 456080278 | E7: Corporate Staff | F7: Copy Writer | G7: 70499.3625 | I7: 3 | J7: 4
A8: elizabeth | B8: ridenhauer | C8: 1997-04-29 | D8: 459306733 | E8: Corporate Manager | F8: Vice President | G8: 79007.90625 | I8: 5 | J8: 1
A9: william | B9: martin | C9: 1952-07-01 | D9: 469440032 | E9: Retail | F9: Product Manager | G9: 67460.59688 | I9: 2 | J9: 3
A10: kate | B10: jones | C10: 2000-07-25 | D10: 481349363 | E10: Corporate Staff | F10: Accounting Staff | G10: 54697.78125 | I10: 2 | J10: 3
A11: ellen | B11: spinnaker | C11: 1993-04-07 | D11: 570286844 | E11: Corporate Staff | F11: Circulation Manager | G11: 85085.4375 | I11: 4 | J11: 3
A12: will | B12: mullen | C12: 1999-06-08 | D12: 611048942 | E12: Corporate Staff | F12: Division Manager | G12: 65029.58437 | I12: 4 | J12: 3
A13: jim | B13: kirney | C13: 1995-10-28 | D13: 618035383 | E13: Retail | F13: Product Manager | G13: 57736.54688 | I13: 3 | J13: 3
A14: ty | B14: simmons | C14: 1999-05-14 | D14: 679694534 | E14: Retail | F14: Product Manager | G14: 69891.60938 | I14: 3 | J14: 3
A15: michelle | B15: campbell | C15: 1998-05-05 | D15: 681302482 | E15: Management Staff | F15: Accounting Staff | G15: 51051.2625 | I15: 3 | J15: 2
A16: eileen | B16: wilson | C16: 1995-07-29 | D16: 682110774 | E16: Retail | F16: Product Manager | G16: 58344.3 | I16: 4 | J16: 3
A17: dennis | B17: denton | C17: 1987-07-04 | D17: 692241314 | E17: Section Manager | F17: Director of Training | G17: 54697.78125 | I17: 4 | J17: 3
A18: michael | B18: gapner | C18: 1961-08-20 | D18: 706670481 | E18: Management Staff | F18: Payroll Manager | G18: 58344.3 | I18: 3 | J18: 3
A19: alice | B19: wortman | C19: 1998-04-03 | D19: 707942310 | E19: Corporate Manager | F19: Marketing Manager | G19: 103318.0312 | I19: 4 | J19: 2
A20: george | B20: fernandez | C20: 1997-03-30 | D20: 781041004 | E20: Corporate Manager | F20: Office Manager | G20: 58344.3 | I20: 5 | J20: 2
A21: mark | B21: macdowell | C21: 2000-05-06 | D21: 820015532 | E21: Management Staff | F21: Web Manager | G21: 66852.84375 | I21: 2 | J21: 3
A22: marcia | B22: smith | C22: 1995-01-14 | D22: 931026545 | E22: Corporate Manager | F22: General Sales Manager | G22: 51051.2625 | I22: 2 | J22: 2

Sheet CONSOLIDATED (18)
A1: Consolidated

Sheet STORE 1 (18)
A1: Store One
A2: Product ID | B2: January | C2: February | D2: March
A3: ALP-701 | B3: 1861.26 | C3: 1876 | D3: 1676.34
A4: ALP-702 | B4: 1398.96 | C4: 1354.74 | D4: 1776.84
A5: ALP-704 | B5: 1656.24 | C5: 1541 | D5: 1353.4
A6: ALP-708 | B6: 1522.24 | C6: 1551.72 | D6: 1947.02
A7: ALP-715 | B7: 1737.98 | C7: 1428.44 | D7: 1890.74
A8: ALP-790 | B8: 1444.52 | C8: 1977.84 | D8: 1416.38
A9: ALP-802 | B9: 1910.84 | C9: 1764.78 | D9: 1827.76
A10: ALP-803 | B10: 1737.98 | C10: 1392.26 | D10: 1538.32
A11: ALP-811 | B11: 1573.16 | C11: 1523.58 | D11: 1665.62
A12: ALP-823 | B12: 1871.98 | C12: 1566.46 | D12: 1511.52
A13: ALP-836 | B13: 1811.68 | C13: 1488.74 | D13: 1967.12

Sheet STORE 2 (18)
A1: Store Two
A2: Product ID | B2: January | C2: February | D2: March
A3: ALP-701 | B3: 1990.04 | C3: 1947.32 | D3: 2139.56
A4: ALP-703 | B4: 2114.64 | C4: 2356.72 | D4: 2200.08
A5: ALP-704 | B5: 2157.36 | C5: 1783.56 | D5: 1812.04
A6: ALP-709 | B6: 2087.94 | C6: 1986.48 | D6: 1975.8
A7: ALP-712 | B7: 2310.44 | C7: 2168.04 | D7: 2611.26
A8: ALP-715 | B8: 2166.26 | C8: 2395.88 | D8: 1790.68
A9: ALP-803 | B9: 2287.3 | C9: 1876.12 | D9: 2310.44
A10: ALP-811 | B10: 2121.76 | C10: 2506.24 | D10: 1797.8

Sheet STORE 3 (18)
A1: Store Three
A2: Product ID | B2: January | C2: February | D2: March
A3: ALP-702 | B3: 1825.55 | C3: 1806.7 | D3: 2031.45
A4: ALP-703 | B4: 2106.85 | C4: 2143.1 | D4: 1886.45
A5: ALP-704 | B5: 1858.9 | C5: 1819.75 | D5: 1831.35
A6: ALP-705 | B6: 1506.55 | C6: 1770.45 | D6: 1883.55
A7: ALP-803 | B7: 1924.15 | C7: 1815.4 | D7: 2098.15
A8: ALP-811 | B8: 1766.1 | C8: 1764.65 | D8: 1483.35
A9: ALP-814 | B9: 1706.65 | C9: 1484.8 | D9: 1465.95
A10: ALP-823 | B10: 1954.6 | C10: 2148.9 | D10: 1753.05
A11: ALP-835 | B11: 2067.7 | C11: 1487.7 | D11: 1557.3
A12: ALP-836 | B12: 1747.25 | C12: 1576.15 | D12: 2159.05

Sheet LOAN PMT (23)
A1: Loan Payment
E3: 24 | F3: 36 | G3: 48 | H3: 60 | I3: 72 | J3: 84
A4: Loan Amount | B4: 12000 | D4: 0.02
A5: Annual Interest Rate | B5: 0.05 | D5: 0.025
A6: Term in months | B6: 48 | D6: 0.03
D7: 0.035
D8: 0.04
A9: Monthly Payment: | B9: =PMT(Annual_Interest_Rate/12,Term_in_months,-Loan_Amount) -> 276.3515228 | D9: 0.045
A10: Total Payments: | B10: =Monthly_Payment*Term_in_months -> 13264.8731 | D10: 0.05
A11: Total Interest: | B11: =Total_Payments-Loan_Amount -> 1264.873097 | D11: 0.055
D12: 0.06

Sheet GOAL SEEK RETIRE (28)
B4: Retirement Planning
B5: Monthly Investment | C5: 350
B6: Interest Rate | C6: 0.06
B7: Number of Years | C7: 15
B9: Future Value | C9: =FV(C6/12,(C7*12),-C5,,1) -> 102295.4821

Sheet SOLVER ROB
H1: Time per unit | K1: Machine Hours
D2: Price | E2: Cost | F2: Margin | G2: Hours Per | H2: M1 | I2: M2 | J2: M3 | K2: M1 | L2: M2 | M2: M3 | N2: QTY | O2: Revenue | P2: COGS | Q2: Margin | R2: Hours
C3: Product A | D3: 10 | E3: 4 | F3: =D3-E3 -> 6 | G3: 0.5 | H3: 0.1 | I3: 0.2 | J3: 0.5 | K3: =H3*N3 -> 431.9 | L3: =N3*I3 -> 863.8 | M3: =N3*J3 -> 2159.5 | N3: 4319 | O3: =N3*D3 -> 43190 | P3: =N3*E3 -> 17276 | Q3: =O3-P3 -> 25914 | R3: =N3*G3 -> 2159.5
C4: Product B | D4: 6 | E4: 2 | F4: =D4-E4 -> 4 | G4: 0.25 | H4: 0.3 | I4: 0.5 | J4: 0.1 | K4: =H4*N4 -> 8448.6 | L4: =N4*I4 -> 14081 | M4: =N4*J4 -> 2816.2 | N4: 28162 | O4: =N4*D4 -> 168972 | P4: =N4*E4 -> 56324 | Q4: =O4-P4 -> 112648 | R4: =N4*G4 -> 7040.5
C5: Product C | D5: 2000 | E5: 1000 | F5: 1000 | G5: 100 | H5: 1.5 | I5: 2 | J5: 2.1 | K5: 12 | L5: 16 | M5: 16.8 | N5: 8 | O5: 16000 | P5: 8000 | Q5: 8000 | R5: 800
K6: =SUM(K3:K5) -> 8892.5 | L6: =SUM(L3:L5) -> 14960.8 | M6: 4992.5 | Q6: =SUM(Q3:Q5) -> 146562 | R6: =SUM(R3:R5) -> 10000

Sheet SOLVER (28)
A1: Annual Interest Rate | B1: 0.1
A2: Term in months | B2: 48
B4: Van | C4: Sedan | D4: Compact
A5: Price | B5: 24000 | C5: 21000 | D5: 16000
A6: Passengers | B6: 9 | C6: 6 | D6: 4
A7: Quantity to Purchase | B7: 2 | C7: 2 | D7: 2
A9: Loan Amount | B9: =B7*B5 -> 48000 | C9: =C7*C5 -> 42000 | D9: =D7*D5 -> 32000
A10: Monthly Payment | B10: =PMT($B$1/12,$B$2,-B9) -> 1217.404005 | C10: =PMT($B$1/12,$B$2,-C9) -> 1065.228504 | D10: =PMT($B$1/12,$B$2,-D9) -> 811.6026699
A11: Total Passengers | B11: =B7*B6 -> 18 | C11: =C7*C6 -> 12 | D11: =D7*D6 -> 8
A13: TOTAL LOAN AMOUNTS | B13: =B9+C9+D9 -> 122000
A14: TOTAL MONTHLY PAYMENTS | B14: =B10+C10+D10 -> 3094.235179
A15: TOTAL PASSENGERS | B15: =B11+C11+D11 -> 38
A18: Max Monthly Payments | B18: 3700
A19: Goal Passengers | B19: 44

Sheet SOLVER WIERD
B2: Units | C2: Price | D2: Value
B3: 10 | C3: 10.19 | D3: =C3*B3 -> 101.9
B4: 82.98901099 | C4: 4.55 | D4: =C4*B4 -> 377.6
D5: =SUM(D3:D4) -> 479.5

Sheet Pesky Penny Problem
B1: Full Tuition | C1: Student % | D1: Student Charge | E1: Round Function | F1: Combined
B2: 3869.97 | C2: 0.890654 | D2: =C2*B2 -> 3446.80426 | E2: =ROUND(D2,2) -> 3446.8 | F2: =ROUND(B2*C2,2) -> 3446.8
B3: 4000 | C3: 0.397765 | D3: =C3*B3 -> 1591.06 | E3: =ROUND(D3,2) -> 1591.06 | F3: =ROUND(B3*C3,2) -> 1591.06
B4: 5000 | C4: 0.43 | D4: 2150 | E4: 2150 | F4: 2150
B5: 2345 | C5: 0.9876987 | D5: 2316.153452 | E5: 2316.15 | F5: 2316.15
B6: 6789 | C6: 0.12 | D6: 814.68 | E6: 814.68 | F6: 814.68
B7: 1232 | C7: 0.56 | D7: 689.92 | E7: 689.92 | F7: 689.92
B8: 8976 | C8: 0.45 | D8: 4039.2 | E8: 4039.2 | F8: 4039.2
A10: Total | B10: =SUM(B2:B8) -> 32211.97 | D10: =SUM(D2:D8) -> 15047.81771 | E10: =SUM(E2:E8) -> 15047.81 | F10: =SUM(F2:F8) -> 15047.81

Sheet Screwed Up Phone Numbers
A1: First Name | B1: Last Name | C1: Phone Number
A2: elizabeth | B2: ridenhauer | C2: 541-333-6789
A3: alice | B3: wortman | C3: (541)-444-6791
A4: tyrone | B4: anderson | C4: 541 999-9878
A5: stuart | B5: klein | C5: (541) 222-1212
A6: catherine | B6: forest | C6: 541-333-6790
A7: mechell | B7: clese | C7: (541)-444-6792
A8: kate | B8: jones | C8: 542 999-9878
A9: ellen | B9: spinnaker | C9: (541) 222-1213
A10: will | B10: mullen | C10: 541-333-6791
A11: brad | B11: turner | C11: (541)-444-6793
A12: mark | B12: macdowell | C12: 543 999-9878
A13: william | B13: martin | C13: (541) 222-1214
A14: jim | B14: kirney | C14: 541-333-6792
A15: michelle | B15: campbell | C15: (541)-444-6794
A16: ty | B16: simmons | C16: 544 999-9878
A17: dennis | B17: denton | C17: (541) 222-1215
A18: michael | B18: gapner | C18: 541-333-6793
A19: eileen | B19: wilson | C19: (541)-444-6795
A20: george | B20: fernandez | C20: 545 999-9878
A21: james | B21: bruce | C21: (541) 222-1216
A22: marcia | B22: smith | C22: 541-333-6794

Sheet MATCH CLEAN INDEX
A1: First Name | B1: First Name
A2: elizabeth | B2: elizabeth | C2: =MATCH(B2,First_Name,0) -> 1 | D2: =CLEAN(B2) -> elizabeth | E2: elizabeth elizabeth | F2: =TRIM(E2) -> elizabeth elizabeth | G2: =clean ->  | H2: =INDEX(First_Name,3,1) -> alice
A3: elizabeth | B3: catherine | C3: 6 | E3: elizabeth catherine | F3: =TRIM(E3) -> elizabeth catherine
A4: alice | B4: mechell | C4: 7 | E4: alice mechell | F4: alice mechell
A5: tyrone | B5: kate | C5: 8 | E5: tyrone kate | F5: tyrone kate
A6: stuart | B6: ellen | C6: 9 | E6: stuart ellen | F6: stuart ellen
A7: catherine | B7: will | C7: 10 | E7: catherine will | F7: catherine will
A8: mechell | B8: brad | C8: 11 | E8: mechell brad | F8: mechell brad
A9: kate | B9: mark | C9: 12 | E9: kate mark | F9: kate mark
A10: ellen | B10: william | C10: 13 | E10: ellen william | F10: ellen william
A11: will | B11: jim | C11: 14 | E11: will jim | F11: will jim
A12: brad | B12: michelle | C12: 15 | E12: brad michelle | F12: brad michelle
A13: mark | B13: ty | C13: 16 | E13: mark ty | F13: mark ty
A14: william | B14: dennis | C14: 17 | E14: william dennis | F14: william dennis
A15: jim | B15: michael | C15: 18 | E15: jim michael | F15: jim michael
A16: michelle | B16: eileen | C16: 19 | E16: michelle eileen | F16: michelle eileen
A17: ty | B17: george | C17: 20 | E17: ty george | F17: ty george
A18: dennis | B18: james | C18: 21 | E18: dennis james | F18: dennis james
A19: michael | B19: marcia | C19: 22 | E19: michael marcia | F19: michael marcia
A20: eileen | E20: eileen | F20: eileen
A21: george | E21: george | F21: george
A22: james | E22: james | F22: james
A23: marcia | E23: marcia | F23: marcia

Sheet SUMIFS
A1: Passenger Name | B1: Type | C1: Vendor | D1: Depart | E1: Return | F1: Daily Rate | G1: Total Fare | H1: Itinerary | I1: Invoice # | J1: rand | K1: Passenger | L1: Vendor | M1: Travel Amount
A2: Adams/Donna | B2: Dom. Air | C2: Delta Air Lines | D2: 2000-05-15 | E2: 2000-05-20 | F2: 113.87 | G2: 569.36 | H2: ATLPHXATL | I2: 110125S | J2: =RAND() -> 0.5484877109 | K2: Conelly/Doug | L2: Delta Air Lines | M2: =SUMIFS(Total_Fare,Passenger_Name,K2,Vendor,L2) -> 253
A3: Adams/Donna | B3: TRANS FEE | C3: ARC | D3: 2000-05-15 | F3: 10 | G3: 10 | H3: ARC | I3: 110125S | J3: 0.4245413237
A4: Adams/Jim | B4: Dom. Air | C4: Delta Air Lines | D4: 2000-05-15 | E4: 2000-05-20 | F4: 113.87 | G4: 569.36 | H4: ATLPHXATL | I4: 110124S | J4: 0.9718032305
A5: Adams/Jim | B5: TRANS FEE | C5: ARC | D5: 2000-01-27 | F5: 10 | G5: 10 | H5: ARC | I5: 109555S | J5: 0.1530153691
A6: Adams/Jim | B6: TRANS FEE | C6: ARC | D6: 2000-05-15 | F6: 10 | G6: 10 | H6: ARC | I6: 110124S | J6: 0.3120487687
A7: Atkins/Ron | B7: Dom. Air | C7: Northwest Airlines | D7: 2000-02-23 | E7: 2000-02-24 | F7: 522 | G7: 522 | H7: OKCMEMTPAMEMOKC | I7: 110175S | J7: 0.9210884899
A8: Atkins/Ron | B8: Car | C8: Hertz | D8: 2000-02-23 | E8: 2000-02-24 | F8: 82 | G8: 82 | H8: TPA | I8: 110175S | J8: 0.6688861158
A9: Atkins/Ron | B9: TRANS FEE | C9: ARC | D9: 2000-02-23 | F9: 10 | G9: 10 | H9: ARC | I9: 110175S | J9: 0.6525406868
A10: Carrey/Barry | B10: Dom. Air | C10: Delta Air Lines | D10: 2000-05-12 | E10: 2000-05-19 | F10: 78.85 | G10: 552 | H10: MGMATLDAYATLPHXATLMGM | I10: 110802S | J10: 0.5264214195
A11: Carrey/Barry | B11: TRANS FEE | C11: ARC | D11: 2000-05-12 | F11: 10 | G11: 10 | H11: ARC | I11: 110802S | J11: 0.9595251924
A12: Carrey/Pam | B12: Dom. Air | C12: Delta Air Lines | D12: 2000-05-12 | E12: 2000-05-19 | F12: 78.85 | G12: 552 | H12: MGMATLDAYATLPHXATLMGM | I12: 110803S | J12: 0.2480196126
A13: Carrey/Pam | B13: TRANS FEE | C13: ARC | D13: 2000-05-12 | F13: 10 | G13: 10 | H13: ARC | I13: 110803S | J13: 0.01059508102
A14: Chile/Juan | B14: Dom. Air | C14: America West Airlines | D14: 2000-05-11 | E14: 2000-05-18 | F14: 53.21 | G14: 372.5 | H14: FLLLASPHXFLL | I14: 110583S | J14: 0.8678794868
A15: Chile/Juan | B15: TRANS FEE | C15: ARC | D15: 2000-05-11 | F15: 10 | G15: 10 | H15: ARC | I15: 110583S | J15: 0.4192126726
A16: Conelly/Doug | B16: Hotel | C16: Raintree Plaza Hotel | D16: 2000-04-17 | E16: 2000-04-20 | F16: 152 | G16: 456 | H16: DEN | I16: 111088S | J16: 0.1861211789
A17: Conelly/Doug | B17: Dom. Air | C17: Delta Air Lines | D17: 2000-03-06 | E17: 2000-03-06 | F17: 253 | G17: 253 | H17: TPAATLPHL | I17: 110447S | J17: 0.5276142865
A18: Conelly/Doug | B18: Dom. Air | C18: Continental Airlines | D18: 2000-03-08 | E18: 2000-03-08 | F18: 166.5 | G18: 166.5 | H18: MDTCLETPA | I18: 110449S | J18: 0.7762868073
A19: Conelly/Doug | B19: Dom. Air | C19: USAir | D19: 2000-03-07 | E19: 2000-03-07 | F19: 148.5 | G19: 148.5 | H19: PHLMDT | I19: 110448S | J19: 0.6317661956
A20: Conelly/Doug | B20: Car | C20: Alamo | D20: 2000-04-17 | E20: 2000-04-20 | F20: 48.39 | G20: 145.17 | H20: DEN | I20: 111088S | J20: 0.5869695058
A21: Conelly/Doug | B21: Car | C21: Alamo | D21: 2000-03-07 | E21: 2000-03-08 | F21: 88 | G21: 88 | H21: MDT | I21: 110448S | J21: 0.4452855818
A22: Conelly/Doug | B22: Hotel | C22: RADISSON | D22: 2000-03-07 | E22: 2000-03-08 | F22: 79 | G22: 79 | H22: MDT | I22: 110448S | J22: 0.9288897089
A23: Conelly/Doug | B23: Hotel | C23: COURTYARD BY MARRIOTT | D23: 2000-03-06 | E23: 2000-03-07 | F23: 75 | G23: 75 | H23: PHL | I23: 110447S | J23: 0.4179772787
A24: Conelly/Doug | B24: Car | C24: Alamo | D24: 2000-03-06 | E24: 2000-03-07 | F24: 51 | G24: 51 | H24: PHL | I24: 110447S | J24: 0.2597500791
A25: Conelly/Doug | B25: TRANS FEE | C25: ARC | D25: 2000-04-17 | F25: 10 | G25: 10 | H25: ARC | I25: 111088S | J25: 0.9271017277
A26: Conelly/Doug | B26: TRANS FEE | C26: ARC | D26: 2000-03-06 | F26: 10 | G26: 10 | H26: ARC | I26: 110447S | J26: 0.4071339177
A27: Couto/Terry | B27: Hotel | C27: Holiday Inn Express | D27: 2000-01-31 | E27: 2000-02-14 | F27: 109 | G27: 1526 | H27: CLW | I27: 109640S | J27: 0.06823955459
A28: Couto/Terry | B28: Dom. Air | C28: Delta Air Lines | D28: 2000-04-30 | E28: 2000-05-02 | F28: 282 | G28: 564 | H28: TPAATLORDATLTPA | I28: 111269S | J28: 0.9872573049
A29: Couto/Terry | B29: Dom. Air | C29: Southwest Airlines | D29: 2000-03-23 | F29: 194 | G29: 194 | H29: TPAMSYTPA | I29: 110766S | J29: 0.7353928386
A30: Couto/Terry | B30: Car | C30: Hertz | D30: 2000-02-04 | E30: 2000-02-07 | F30: 38.39 | G30: 115.17 | H30: EWR | I30: 109756S | J30: 0.003896041452
A31: Couto/Terry | B31: TRANS FEE | C31: ARC | D31: 2000-04-30 | F31: 10 | G31: 10 | H31: ARC | I31: 111269S | J31: 0.3012380678
A32: Couto/Terry | B32: TRANS FEE | C32: ARC | D32: 2000-03-23 | F32: 10 | G32: 10 | H32: ARC | I32: 110766S | J32: 0.3234900063
A33: Cox/Becky | B33: Dom. Air | C33: Delta Air Lines | D33: 2000-05-15 | E33: 2000-05-19 | F33: 105.92 | G33: 423.68 | H33: MGMATLPHXATLTPA | I33: 110349S | J33: 0.1036494121
A34: Cox/Becky | B34: TRANS FEE | C34: ARC | D34: 2000-05-15 | F34: 10 | G34: 10 | H34: ARC | I34: 110349S | J34: 0.1225686301
A35: Cox/Becky | B35: Dom. Air | C35: Delta Air Lines | D35: 2000-05-15 | E35: 2000-05-19 | F35: 0 | G35: 0 | H35: MGMATLPHXATLMGM | I35: 110794S | J35: 0.9887966211
A36: Cox/William G | B36: Dom. Air | C36: Delta Air Lines | D36: 2000-05-15 | E36: 2000-05-19 | F36: 105.92 | G36: 423.68 | H36: MGMATLPHXATLTPA | I36: 110348S | J36: 0.8956061096
A37: Cox/William G | B37: TRANS FEE | C37: ARC | D37: 2000-05-15 | F37: 10 | G37: 10 | H37: ARC | I37: 110348S | J37: 0.2623177238
A38: Cox/William G | B38: Dom. Air | C38: Delta Air Lines | D38: 2000-05-15 | E38: 2000-05-19 | F38: 0 | G38: 0 | H38: MGMATLPHXATLMGM | I38: 110793S | J38: 0.5099551847
A39: Coyle/Marcus | B39: Dom. Air | C39: Delta Air Lines | D39: 2000-05-15 | E39: 2000-05-19 | F39: 142.34 | G39: 569.36 | H39: ATLPHXATL | I39: 110742S | J39: 0.5187859608
A40: Coyle/Marcus | B40: TRANS FEE | C40: ARC | D40: 2000-05-15 | F40: 10 | G40: 10 | H40: ARC | I40: 110742S | J40: 0.6024581157
A41: Coyle/Mary | B41: Dom. Air | C41: Delta Air Lines | D41: 2000-05-15 | E41: 2000-05-19 | F41: 142.34 | G41: 569.36 | H41: ATLPHXATL | I41: 110743S | J41: 0.4276598066
A42: Coyle/Mary | B42: TRANS FEE | C42: ARC | D42: 2000-05-15 | F42: 10 | G42: 10 | H42: ARC | I42: 110743S | J42: 0.3420518217
A43: Dain/Phyllis | B43: Dom. Air | C43: United Airlines | D43: 2000-04-10 | E43: 2000-04-14 | F43: 119.75 | G43: 479 | H43: ATWORDTPAORDATW | I43: 110939S | J43: 0.8231461414
A44: Dain/Phyllis | B44: TRANS FEE | C44: ARC | D44: 2000-04-10 | F44: 10 | G44: 10 | H44: ARC | I44: 110939S | J44: 0.42691599
A45: Deitz/Michele | B45: Dom. Air | C45: Delta Air Lines | D45: 2000-02-15 | E45: 2000-02-16 | F45: 300 | G45: 300 | H45: STLATLTPAATLSTL | I45: 109811S | J45: 0.7591078237
A46: Deitz/Michele | B46: TRANS FEE | C46: ARC | D46: 2000-02-15 | F46: 10 | G46: 10 | H46: ARC | I46: 109811S | J46: 0.04610805857
A47: Douglas/Jay | B47: Dom. Air | C47: Delta Air Lines | D47: 2000-05-15 | E47: 2000-05-19 | F47: 142.34 | G47: 569.36 | H47: ATLPHXATL | I47: 110372S | J47: 0.04530311669
A48: Douglas/Jay | B48: Dom. Air | C48: Delta Air Lines | D48: 2000-01-27 | E48: 2000-01-28 | F48: 175.5 | G48: 175.5 | H48: ATLDTWATL | I48: 109285S | J48: 0.6618904622
A49: Douglas/Jay | B49: TRANS FEE | C49: ARC | D49: 2000-01-27 | F49: 10 | G49: 10 | H49: ARC | I49: 109285S | J49: 0.485497563
A50: Douglas/Jay | B50: TRANS FEE | C50: ARC | D50: 2000-05-15 | F50: 10 | G50: 10 | H50: ARC | I50: 110372S | J50: 0.3100615389
A51: Douglas/Steve | B51: Dom. Air | C51: Delta Air Lines | D51: 2000-05-15 | E51: 2000-05-19 | F51: 142.34 | G51: 569.36 | H51: ATLPHXATL | I51: 110373S | J51: 0.2017798498
A52: Douglas/Steve | B52: TRANS FEE | C52: ARC | D52: 2000-05-15 | F52: 10 | G52: 10 | H52: ARC | I52: 110373S | J52: 0.6869346355
A53: Drake/Deborah | B53: Dom. Air | C53: Delta Air Lines | D53: 2000-05-15 | E53: 2000-05-19 | F53: 50.5 | G53: 202 | H53: TPADFWPHXATLTPA | I53: 109890S | J53: 0.214217328
A54: Drake/Deborah | B54: Dom. Air | C54: ARC | D54: 2000-05-15 | E54: 2000-05-19 | F54: 2.5 | G54: 10 | H54: TPADFWPHXATLTPA | I54: 109890S | J54: 0.7660787957
A55: Dulla/Katie | B55: Dom. Air | C55: America West Airlines | D55: 2000-05-16 | E55: 2000-05-19 | F55: 123.06 | G55: 369.19 | H55: ORDPHXORD | I55: 110957S | J55: 0.09310143741
A56: Dulla/Katie | B56: TRANS FEE | C56: ARC | D56: 2000-05-16 | F56: 10 | G56: 10 | H56: ARC | I56: 110957S | J56: 0.6783462026
A57: Dulla/Michael | B57: Dom. Air | C57: America West Airlines | D57: 2000-05-16 | E57: 2000-05-19 | F57: 123.06 | G57: 369.19 | H57: ORDPHXORD | I57: 110956S | J57: 0.1777525571
A58: Dulla/Michael | B58: TRANS FEE | C58: ARC | D58: 2000-05-16 | F58: 10 | G58: 10 | H58: ARC | I58: 110956S | J58: 0.02390626459
A59: Dunaway/Mary | B59: Dom. Air | C59: Delta Air Lines | D59: 2000-05-15 | E59: 2000-05-19 | F59: 145.09 | G59: 580.36 | H59: PNSATLPHXATLPNS | I59: 110229S | J59: 0.8643220747
A60: Dunaway/Mary | B60: TRANS FEE | C60: ARC | D60: 2000-05-15 | F60: 10 | G60: 10 | H60: ARC | I60: 110229S | J60: 0.539863772
A61: Dunaway/Roger | B61: Dom. Air | C61: Delta Air Lines | D61: 2000-05-15 | E61: 2000-05-19 | F61: 145.09 | G61: 580.36 | H61: PNSATLPHXATLPNS | I61: 110228S | J61: 0.3942764311
A62: Dunaway/Roger | B62: TRANS FEE | C62: ARC | D62: 2000-05-15 | F62: 10 | G62: 10 | H62: ARC | I62: 110228S | J62: 0.9017837267
A63: Glass/Helen | B63: Dom. Air | C63: United Airlines | D63: 2000-02-15 | E63: 2000-02-16 | F63: 377 | G63: 377 | H63: IADTPAIAD | I63: 109817S | J63: 0.9053262713
A64: Glass/Helen | B64: TRANS FEE | C64: ARC | D64: 2000-02-15 | F64: 10 | G64: 10 | H64: ARC | I64: 109817S | J64: 0.2261479457
A65: Griffin/Linda | B65: Dom. Air | C65: America West Airlines | D65: 2000-05-11 | E65: 2000-05-18 | F65: 53.21 | G65: 372.5 | H65: FLLLASPHXFLL | I65: 110584S | J65: 0.8392100776
A66: Griffin/Linda | B66: TRANS FEE | C66: ARC | D66: 2000-05-11 | F66: 10 | G66: 10 | H66: ARC | I66: 110584S | J66: =RAND() -> 0.8742674247
A67: Hargett/Judy | B67: Dom. Air | C67: Delta Air Lines | D67: 2000-05-15 | E67: 2000-05-19 | F67: 142.34 | G67: 569.36 | H67: ATLPHXATL | I67: 110374S | J67: 0.9746528733
A68: Hargett/Judy | B68: TRANS FEE | C68: ARC | D68: 2000-05-15 | F68: 10 | G68: 10 | H68: ARC | I68: 110374S | J68: 0.04033155103
A69: Hawks/Tammy | B69: Dom. Air | C69: Delta Air Lines | D69: 2000-05-15 | E69: 2000-05-19 | F69: 142.34 | G69: 569.36 | H69: ATLPHXATL | I69: 110375S | J69: 0.9634866867
A70: Hawks/Tammy | B70: Dom. Air | C70: Delta Air Lines | D70: 2000-01-27 | E70: 2000-01-28 | F70: 175.5 | G70: 175.5 | H70: ATLDTWATL | I70: 109286S | J70: 0.3425596096
A71: Hawks/Tammy | B71: TRANS FEE | C71: ARC | D71: 2000-05-15 | F71: 10 | G71: 10 | H71: ARC | I71: 110375S | J71: 0.3500474054
A72: Hawks/Tammy | B72: TRANS FEE | C72: ARC | D72: 2000-01-27 | F72: 10 | G72: 10 | H72: ARC | I72: 109286S | J72: 0.7180871397
A73: Hill/Joseph | B73: Dom. Air | C73: Delta Air Lines | D73: 2000-03-15 | E73: 2000-03-20 | F73: 85 | G73: 425 | H73: TPADFWRNODFWTPA | I73: 110435S | J73: 0.4130122408
A74: Hill/Joseph | B74: TRANS FEE | C74: ARC | D74: 2000-03-15 | F74: 10 | G74: 10 | H74: ARC | I74: 110435S | J74: 0.4805337425
A75: Hill/Vicki | B75: Dom. Air | C75: Continental Airlines | D75: 2000-02-13 | E75: 2000-02-18 | F75: 129.5 | G75: 647.5 | H75: TPAIAHDFWIAHTPA | I75: 109835S | J75: 0.3241699043
A76: Hill/Vicki | B76: Dom. Air | C76: Trans World Airlines | D76: 2000-03-27 | E76: 2000-03-31 | F76: 101 | G76: 404 | H76: TPASTLMCISTLTPA | I76: 110782S | J76: 0.4688057344
A77: Hill/Vicki | B77: Dom. Air | C77: Delta Air Lines | D77: 2000-03-15 | E77: 2000-03-23 | F77: 40 | G77: 320 | H77: TPADFWRNODFWTPA | I77: 110434S | J77: 0.3652777048
A78: Hill/Vicki | B78: Car | C78: Hertz | D78: 2000-02-27 | E78: 2000-03-03 | F78: 53 | G78: 265 | H78: DFW | I78: 110019S | J78: 0.6949087026
A79: Hill/Vicki | B79: Car | C79: Hertz | D79: 2000-02-27 | E79: 2000-03-03 | F79: 53 | G79: 265 | H79: DFW | I79: 110018S | J79: 0.3179923683
A80: Hill/Vicki | B80: Car | C80: Hertz | D80: 2000-02-13 | E80: 2000-02-18 | F80: 53 | G80: 265 | H80: DFW | I80: 109835S | J80: 0.8657919318
A81: Hill/Vicki | B81: Car | C81: Alamo | D81: 2000-03-27 | E81: 2000-03-31 | F81: 42.23 | G81: 168.92 | H81: MCI | I81: 110782S | J81: 0.6203104956
A82: Hill/Vicki | B82: Dom. Air | C82: Continental Airlines | D82: 2000-02-27 | E82: 2000-03-03 | F82: 15 | G82: 75 | H82: TPAIAHDFWIAHTPA | I82: 110019S | J82: 0.2531602508
A83: Hill/Vicki | B83: Hotel | C83: FAIRFIELD INN | D83: 2000-03-30 | E83: 2000-03-31 | F83: 64 | G83: 64 | H83: MCI | I83: 110782S | J83: 0.07067367828
A84: Hill/Vicki | B84: TRANS FEE | C84: ARC | D84: 2000-02-27 | F84: 10 | G84: 10 | H84: ARC | I84: 110018S | J84: 0.5666801364
A85: Hill/Vicki | B85: TRANS FEE | C85: ARC | D85: 2000-02-13 | F85: 10 | G85: 10 | H85: ARC | I85: 109835S | J85: 0.8650241385
A86: Hill/Vicki | B86: TRANS FEE | C86: ARC | D86: 2000-03-15 | F86: 10 | G86: 10 | H86: ARC | I86: 110434S | J86: 0.3811808206
A87: Hill/Vicki | B87: TRANS FEE | C87: ARC | D87: 2000-03-27 | F87: 10 | G87: 10 | H87: ARC | I87: 110782S | J87: 0.6227429349
A88: Hill/Vickki | B88: Dom. Air | C88: Continental Airlines | D88: 2000-02-27 | E88: 2000-03-03 | F88: 0 | G88: 0 | H88: DFW | I88: 110019S | J88: 0.8410220761
A89: Hopson/Marie | B89: Dom. Air | C89: Delta Air Lines | D89: 2000-02-15 | E89: 2000-02-16 | F89: 749 | G89: 749 | H89: DENATLTPAATLDEN | I89: 109814S | J89: 0.3459533965
A90: Hopson/Marie | B90: TRANS FEE | C90: ARC | D90: 2000-02-15 | F90: 10 | G90: 10 | H90: ARC | I90: 109814S | J90: 0.4449003356
A91: Hosek/Sybil | B91: Dom. Air | C91: America West Airlines | D91: 2000-05-15 | E91: 2000-05-21 | F91: 50.69 | G91: 304.18 | H91: ORDPHXORD | I91: 110188S | J91: 0.9464744368
A92: Hosek/Sybil | B92: TRANS FEE | C92: ARC | D92: 2000-05-15 | F92: 10 | G92: 10 | H92: ARC | I92: 110188S | J92: 0.8043451262
A93: Jernigan/Debbie | B93: TRANS FEE | C93: ARC | D93: 2000-01-27 | F93: 10 | G93: 10 | H93: ARC | I93: 109556S | J93: 0.2595078904
A94: Jernigan/Deborah | B94: Dom. Air | C94: Delta Air Lines | D94: 2000-05-15 | E94: 2000-05-20 | F94: 113.87 | G94: 569.36 | H94: ATLPHXATL | I94: 110134S | J94: 0.2595075325
A95: Jernigan/Deborah | B95: TRANS FEE | C95: ARC | D95: 2000-05-15 | F95: 10 | G95: 10 | H95: ARC | I95: 110134S
A96: Jernigan/Tyrus | B96: Dom. Air | C96: Delta Air Lines | D96: 2000-05-15 | E96: 2000-05-20 | F96: 113.87 | G96: 569.36 | H96: ATLPHXATL | I96: 110135S
A97: Jernigan/Tyrus | B97: TRANS FEE | C97: ARC | D97: 2000-05-15 | F97: 10 | G97: 10 | H97: ARC | I97: 110135S
A98: Jiles.randall | B98: Dom. Air | C98: Southwest Airlines | D98: 2000-03-02 | F98: 388 | G98: 388 | I98: 110559S
A99: Jiles/Frances | B99: Dom. Air | C99: USAir | D99: 2000-04-14 | E99: 2000-04-16 | F99: 158.5 | G99: 317 | H99: PVDPHLJAXPHLPVD | I99: 110581S
A100: Jiles/Frances | B100: Dom. Air | C100: Southwest Airlines | D100: 2000-02-11 | F100: 238.5 | G100: 238.5 | H100: PVDTPAPVD | I100: 109723S
A101: Jiles/Frances | B101: TRANS FEE | C101: ARC | D101: 2000-02-11 | F101: 10 | G101: 10 | H101: ARC | I101: 109723S
A102: Jiles/Frances | B102: TRANS FEE | C102: ARC | D102: 2000-03-08 | F102: 10 | G102: 10 | H102: ARC | I102: 110214S
A103: Jiles/Frances | B103: TRANS FEE | C103: ARC | D103: 2000-04-14 | F103: 10 | G103: 10 | H103: ARC | I103: 110581S
A104: Jiles/Helvey | B104: Dom. Air | C104: Southwest Airlines | D104: 2000-03-03 | F104: 393 | G104: 393 | H104: TPASTLTPA | I104: 110491S
A105: Jiles/Helvey | B105: Car | C105: Hertz | D105: 2000-03-03 | E105: 2000-03-12 | F105: 34.12 | G105: 307.13 | H105: STL | I105: 110491S
A106: Jiles/Helvey | B106: TRANS FEE | C106: ARC | D106: 2000-03-03 | F106: 10 | G106: 10 | H106: ARC | I106: 110491S
A107: Jiles/Paul | B107: Dom. Air | C107: Delta Air Lines | D107: 2000-03-17 | E107: 2000-03-19 | F107: 195.25 | G107: 390.5 | H107: MSYATLCHSATLMSY | I107: 110393S
A108: Jiles/Paul | B108: TRANS FEE | C108: ARC | D108: 2000-03-17 | F108: 10 | G108: 10 | H108: ARC | I108: 110393S
A109: Jiles/Randall | B109: Hotel | C109: Marriott Lincolnshire | D109: 2000-04-06 | E109: 2000-04-09 | F109: 218 | G109: 654 | H109: MSY | I109: 110185S
A110: Jiles/Randall | B110: Dom. Air | C110: Delta Air Lines | D110: 2000-05-15 | E110: 2000-05-18 | F110: 183.01 | G110: 549.04 | H110: PVDATLPHXCVGPVD | I110: 110478S
A111: Jiles/Randall | B111: Dom. Air | C111: Delta Air Lines | D111: 2000-01-26 | E111: 2000-01-28 | F111: 236 | G111: 472 | H111: TPACVGDTWATLTPA | I111: 109246S
A112: Jiles/Randall | B112: Dom. Air | C112: United Airlines | D112: 2000-04-30 | E112: 2000-05-09 | F112: 52.22 | G112: 470 | H112: PVDORDTPAIADPVD | I112: 111140S
A113: Jiles/Randall | B113: Dom. Air | C113: Delta Air Lines | D113: 2000-02-24 | E113: 2000-02-27 | F113: 126.33 | G113: 379 | H113: TPAATLDCAPVDATLTPA | I113: 110179S
A114: Jiles/Randall | B114: Dom. Air | C114: Delta Air Lines | D114: 2000-03-31 | E114: 2000-04-02 | F114: 181.5 | G114: 363 | H114: TPAATLPVDATLTPA | I114: 110165S
A115: Jiles/Randall | B115: Dom. Air | C115: Delta Air Lines | D115: 2000-03-10 | E115: 2000-03-12 | F115: 180 | G115: 360 | H115: TPAPVDATLTPA | I115: 110168S
A116: Jiles/Randall | B116: Dom. Air | C116: Delta Air Lines | D116: 2000-03-17 | E116: 2000-03-19 | F116: 180 | G116: 360 | H116: TPAPVDATLTPA | I116: 110167S
A117: Jiles/Randall | B117: Dom. Air | C117: Delta Air Lines | D117: 2000-03-24 | E117: 2000-03-26 | F117: 180 | G117: 360 | H117: TPAPVDATLTPA | I117: 110166S
A118: Jiles/Randall | B118: Dom. Air | C118: Delta Air Lines | D118: 2000-05-12 | E118: 2000-05-22 | F118: 36 | G118: 360 | H118: TPAPVDATLTPA | I118: 110470S
A119: Jiles/Randall | B119: Dom. Air | C119: Northwest Airlines | D119: 2000-01-28 | E119: 2000-02-02 | F119: 66.2 | G119: 331 | H119: DTWTPADTW | I119: 109678S
A120: Jiles/Randall | B120: Dom. Air | C120: Delta Air Lines | D120: 2000-03-02 | E120: 2000-03-07 | F120: 56.8 | G120: 284 | H120: TPACVGPVDDCAATLTPA | I120: 110176S
A121: Jiles/Randall | B121: Dom. Air | C121: USAir | D121: 2000-03-06 | E121: 2000-03-06 | F121: 272.5 | G121: 272.5 | H121: PVDDCA | I121: 110178S
A122: Jiles/Randall | B122: Dom. Air | C122: Delta Air Lines | D122: 2000-03-03 | E122: 2000-03-05 | F122: 130.5 | G122: 261 | H122: TPAPVDATLTPA | I122: 109090S
A123: Jiles/Randall | B123: Dom. Air | C123: Southwest Airlines | D123: 2000-04-06 | F123: 194 | G123: 194 | H123: TPAMSYTPA | I123: 110185S
A124: Jiles/Randall | B124: Dom. Air | C124: Delta Air Lines | D124: 2000-01-29 | E124: 2000-01-31 | F124: 96 | G124: 192 | H124: TPAATLTPA | I124: 109245S
A125: Jiles/Randall | B125: Dom. Air | C125: Delta Air Lines | D125: 2000-04-21 | E125: 2000-04-23 | F125: 88 | G125: 176 | H125: TPAPVDATLTPA | I125: 110192S
A126: Jiles/Randall | B126: Dom. Air | C126: United Airlines | D126: 2000-06-28 | E126: 2000-06-30 | F126: 86.5 | G126: 173 | H126: TPAIADTPA | I126: 111093S
A127: Jiles/Randall | B127: Dom. Air | C127: Delta Air Lines | D127: 2000-05-05 | E127: 2000-05-07 | F127: 59 | G127: 118 | H127: TPAPVDATLTPA | I127: 111102S
A128: Jiles/Randall | B128: Car | C128: Hertz | D128: 2000-04-06 | E128: 2000-04-09 | F128: 35.09 | G128: 105.27 | H128: MSY | I128: 110185S
A129: Jiles/Randall | B129: Dom. Air | C129: USAir | D129: 2000-02-25 | E129: 2000-02-25 | F129: 104.5 | G129: 104.5 | H129: BWIPVD | I129: 110177S
A130: Jiles/Randall | B130: Dom. Air | C130: Delta Air Lines | D130: 2000-04-28 | E130: 2000-04-30 | F130: 43 | G130: 86 | H130: TPAATLPVDATLTPA | I130: 110196S
A131: Jiles/Randall | B131: Dom. Air | C131: Delta Air Lines | D131: 2000-01-27 | E131: 2000-01-28 | F131: 75 | G131: 75 | H131: TPAATLDTWATLTPA | I131: 109606S
A132: Jiles/Randall | B132: Car | C132: Hertz | D132: 2000-01-27 | E132: 2000-01-28 | F132: 63 | G132: 63 | H132: DTW | I132: 109606S
A133: Jiles/Randall | B133: TRANS FEE | C133: ARC | D133: 2000-01-26 | F133: 10 | G133: 10 | H133: ARC | I133: 109246S
A134: Jiles/Randall | B134: TRANS FEE | C134: ARC | D134: 2000-01-27 | F134: 10 | G134: 10 | H134: ARC | I134: 109619S
A135: Jiles/Randall | B135: TRANS FEE | C135: ARC | D135: 2000-01-28 | F135: 10 | G135: 10 | H135: ARC | I135: 109678S
A136: Jiles/Randall | B136: TRANS FEE | C136: ARC | D136: 2000-01-29 | F136: 10 | G136: 10 | H136: ARC | I136: 109245S
A137: Jiles/Randall | B137: TRANS FEE | C137: ARC | D137: 2000-02-24 | F137: 10 | G137: 10 | H137: ARC | I137: 110179S
A138: Jiles/Randall | B138: TRANS FEE | C138: ARC | D138: 2000-03-02 | F138: 10 | G138: 10 | H138: ARC | I138: 110176S
A139: Jiles/Randall | B139: TRANS FEE | C139: ARC | D139: 2000-03-02 | F139: 10 | G139: 10 | H139: ARC | I139: 110559S
A140: Jiles/Randall | B140: TRANS FEE | C140: ARC | D140: 2000-03-03 | F140: 10 | G140: 10 | H140: ARC | I140: 109090S
A141: Jiles/Randall | B141: TRANS FEE | C141: ARC | D141: 2000-03-10 | F141: 10 | G141: 10 | H141: ARC | I141: 110168S
A142: Jiles/Randall | B142: TRANS FEE | C142: ARC | D142: 2000-03-17 | F142: 10 | G142: 10 | H142: ARC | I142: 110167S
A143: Jiles/Randall | B143: TRANS FEE | C143: ARC | D143: 2000-03-24 | F143: 10 | G143: 10 | H143: ARC | I143: 110166S
A144: Jiles/Randall | B144: TRANS FEE | C144: ARC | D144: 2000-03-31 | F144: 10 | G144: 10 | H144: ARC | I144: 110165S
A145: Jiles/Randall | B145: TRANS FEE | C145: ARC | D145: 2000-04-06 | F145: 10 | G145: 10 | H145: ARC | I145: 110185S
A146: Jiles/RANDALL | B146: Dom. Air | C146: ARC | D146: 2000-04-21 | E146: 2000-04-23 | F146: 5 | G146: 10 | H146: TPAPVDATLTPA | I146: 110192S
A147: Jiles/Randall | B147: TRANS FEE | C147: ARC | D147: 2000-04-28 | F147: 10 | G147: 10 | H147: ARC | I147: 110187S
A148: Jiles/Randall | B148: TRANS FEE | C148: ARC | D148: 2000-04-30 | F148: 10 | G148: 10 | H148: ARC | I148: 111140S
A149: Jiles/Randall | B149: TRANS FEE | C149: ARC | D149: 2000-05-05 | F149: 10 | G149: 10 | H149: ARC | I149: 111100S
A150: Jiles/Randall | B150: TRANS FEE | C150: ARC | D150: 2000-05-12 | F150: 10 | G150: 10 | H150: ARC | I150: 110470S
A151: Jiles/Randall | B151: TRANS FEE | C151: ARC | D151: 2000-05-15 | F151: 10 | G151: 10 | H151: ARC | I151: 110478S
A152: Jiles/Randall | B152: TRANS FEE | C152: ARC | D152: 2000-06-28 | F152: 10 | G152: 10 | H152: ARC | I152: 111093S
A153: Jiles/Randall | B153: Car | C153: Hertz | D153: 2000-01-27 | E153: 2000-01-28 | F153: 0 | G153: 0 | H153: DTW | I153: 109619S
A154: Jiles/Randall | B154: Dom. Air | C154: USAir | D154: 2000-03-06 | E154: 2000-03-06 | F154: -272.5 | G154: -272.5 | H154: PVDDCA | I154: 110178R
A155: Jiles/Tyler | B155: Dom. Air | C155: Delta Air Lines | D155: 2000-02-18 | E155: 2000-02-22 | F155: 171.75 | G155: 687 | H155: PVDCVGTPAMCOPVD | I155: 110006S
A156: Jiles/Tyler | B156: Dom. Air | C156: USAir | D156: 2000-04-14 | E156: 2000-04-16 | F156: 158.5 | G156: 317 | H156: PVDPHLJAXPHLPVD | I156: 110582S
A157: Jiles/Tyler | B157: TRANS FEE | C157: ARC | D157: 2000-02-11 | F157: 10 | G157: 10 | H157: ARC | I157: 109723S
A158: Jiles/Tyler | B158: TRANS FEE | C158: ARC | D158: 2000-02-18 | F158: 10 | G158: 10 | H158: ARC | I158: 110006S
A159: Jiles/Tyler | B159: TRANS FEE | C159: ARC | D159: 2000-03-08 | F159: 10 | G159: 10 | H159: ARC | I159: 110215S
A160: Jiles/Tyler | B160: TRANS FEE | C160: ARC | D160: 2000-04-14 | F160: 10 | G160: 10 | H160: ARC | I160: 110582S
A161: JilesTyler | B161: Dom. Air | C161: Southwest Airlines | D161: 2000-02-11 | F161: 238.5 | G161: 238.5 | H161: PVDTPAPVD | I161: 109723S
A162: Kaufman/Jeff | B162: Dom. Air | C162: America West Airlines | D162: 2000-05-13 | E162: 2000-05-19 | F162: 56.33 | G162: 338 | H162: FLLLASPHXFLL | I162: 110597S
A163: Kaufman/Jeff | B163: TRANS FEE | C163: ARC | D163: 2000-05-13 | F163: 10 | G163: 10 | H163: ARC | I163: 110597S
A164: Kaufman/Tracy | B164: Dom. Air | C164: America West Airlines | D164: 2000-05-13 | E164: 2000-05-19 | F164: 56.33 | G164: 338 | H164: FLLLASPHXFLL | I164: 110598S
A165: Kaufman/Tracy | B165: TRANS FEE | C165: ARC | D165: 2000-05-13 | F165: 10 | G165: 10 | H165: ARC | I165: 110598S
A166: Komar/Gary | B166: Dom. Air | C166: America West Airlines | D166: 2000-05-15 | E166: 2000-05-21 | F166: 50.69 | G166: 304.18 | H166: ORDPHXORD | I166: 110189S
A167: Komar/Gary | B167: TRANS FEE | C167: ARC | D167: 2000-05-15 | F167: 10 | G167: 10 | H167: ARC | I167: 110189S
A168: Lawson/Robert | B168: Dom. Air | C168: Delta Air Lines | D168: 2000-02-25 | E168: 2000-02-28 | F168: 360.66 | G168: 1082 | H168: DAYCVGTPACVGDAY | I168: 110324S
A169: Lawson/Robert | B169: TRANS FEE | C169: ARC | D169: 2000-02-25 | F169: 10 | G169: 10 | H169: ARC | I169: 110324S
A170: Lipman/Rick | B170: Dom. Air | C170: Delta Air Lines | D170: 2000-05-15 | E170: 2000-05-19 | F170: 242.97 | G170: 971.88 | H170: RSWATLPHXATLRSW | I170: 110519S
A171: Lipman/Rick | B171: TRANS FEE | C171: ARC | D171: 2000-05-15 | F171: 10 | G171: 10 | H171: ARC | I171: 110519S
A172: Lostroh/Barry | B172: Dom. Air | C172: America West Airlines | D172: 2000-05-15 | E172: 2000-05-19 | F172: 79.43 | G172: 317.72 | H172: DENPHXDEN | I172: 110088S
A173: Lostroh/Barry | B173: TRANS FEE | C173: ARC | D173: 2000-05-15 | F173: 10 | G173: 10 | H173: ARC | I173: 110088S
A174: Lostroh/Joshua | B174: Dom. Air | C174: America West Airlines | D174: 2000-05-15 | E174: 2000-05-19 | F174: 79.43 | G174: 317.72 | H174: DENPHXDEN | I174: 110089S
A175: Lostroh/Joshua | B175: TRANS FEE | C175: ARC | D175: 2000-05-15 | F175: 10 | G175: 10 | H175: ARC | I175: 110089S
A176: Manning/Connie | B176: Dom. Air | C176: Delta Air Lines | D176: 2000-05-15 | E176: 2000-05-19 | F176: 109.5 | G176: 438 | H176: TPAATLPHXATLTPA | I176: 110152S
A177: Manning/Connie | B177: TRANS FEE | C177: ARC | D177: 2000-05-15 | F177: 10 | G177: 10 | H177: ARC | I177: 110152S
A178: Maxwell/Lauren | B178: Dom. Air | C178: Delta Air Lines | D178: 2000-05-15 | E178: 2000-05-19 | F178: 242.97 | G178: 971.88 | H178: RSWATLPHXATLRSW | I178: 110520S
A179: Maxwell/Lauren | B179: TRANS FEE | C179: ARC | D179: 2000-05-15 | F179: 10 | G179: 10 | H179: ARC | I179: 110520S
A180: Mcnulty/Margaret | B180: Dom. Air | C180: American Airlines | D180: 2000-05-10 | E180: 2000-05-19 | F180: 34.88 | G180: 314 | H180: ORDPHXORD | I180: 110121S
A181: Mcnulty/Margaret | B181: TRANS FEE | C181: ARC | D181: 2000-05-10 | F181: 10 | G181: 10 | H181: ARC | I181: 110121S
A182: Mcnulty/Tom | B182: Dom. Air | C182: American Airlines | D182: 2000-05-10 | E182: 2000-05-19 | F182: 34.88 | G182: 314 | H182: ORDPHXORD | I182: 110120S
A183: Mcnulty/Tom | B183: TRANS FEE | C183: ARC | D183: 2000-05-10 | F183: 10 | G183: 10 | H183: ARC | I183: 110120S
A184: Munch/Rick | B184: Dom. Air | C184: Delta Air Lines | D184: 2000-05-16 | E184: 2000-05-19 | F184: 182.01 | G184: 546.04 | H184: IADPHXATLIAD | I184: 110775S
A185: Munch/Rick | B185: TRANS FEE | C185: ARC | D185: 2000-05-16 | F185: 10 | G185: 10 | H185: ARC | I185: 110775S
A186: Munch/William | B186: Dom. Air | C186: Delta Air Lines | D186: 2000-05-16 | E186: 2000-05-19 | F186: 182.01 | G186: 546.04 | H186: IADPHXATLIAD | I186: 110776S
A187: Munch/William | B187: TRANS FEE | C187: ARC | D187: 2000-05-16 | F187: 10 | G187: 10 | H187: ARC | I187: 110776S
A188: Murphy/Niki | B188: Dom. Air | C188: Delta Air Lines | D188: 2000-02-03 | E188: 2000-02-06 | F188: 81.66 | G188: 245 | H188: TPAATLTPA | I188: 109637S
A189: Murphy/Niki | B189: Car | C189: Hertz | D189: 2000-02-03 | E189: 2000-02-06 | F189: 38.94 | G189: 116.82 | H189: ATL | I189: 109637S
A190: Murphy/Niki | B190: TRANS FEE | C190: ARC | D190: 2000-02-03 | F190: 10 | G190: 10 | H190: ARC | I190: 109637S
A191: Newberry/Dayla | B191: Dom. Air | C191: America West Airlines | D191: 2000-05-15 | E191: 2000-05-19 | F191: 79.43 | G191: 317.72 | H191: DENPHXDEN | I191: 110221S
A192: Newberry/Dayla | B192: TRANS FEE | C192: ARC | D192: 2000-05-15 | F192: 10 | G192: 10 | H192: ARC | I192: 110221S
A193: Newberry/Tye | B193: Dom. Air | C193: America West Airlines | D193: 2000-05-15 | E193: 2000-05-19 | F193: 79.43 | G193: 317.72 | H193: DENPHXDEN | I193: 110220S
A194: Newberry/Tye | B194: TRANS FEE | C194: ARC | D194: 2000-05-15 | F194: 10 | G194: 10 | H194: ARC | I194: 110220S
A195: Newell/Patricia | B195: Dom. Air | C195: America West Airlines | D195: 2000-05-14 | E195: 2000-05-20 | F195: 52.95 | G195: 317.72 | H195: DENPHXDEN | I195: 110190S
A196: Newell/Patricia | B196: Dom. Air | C196: United Airlines | D196: 2000-01-27 | E196: 2000-01-30 | F196: 99.66 | G196: 299 | H196: DENDTWDEN | I196: 109343S
A197: Newell/Patricia | B197: Car | C197: Budget | D197: 2000-01-27 | E197: 2000-01-30 | F197: 24.99 | G197: 74.97 | H197: DTW | I197: 109483S
A198: Newell/Patricia | B198: TRANS FEE | C198: ARC | D198: 2000-01-27 | F198: 10 | G198: 10 | H198: ARC | I198: 109343S
A199: Newell/Patricia | B199: TRANS FEE | C199: ARC | D199: 2000-05-14 | F199: 10 | G199: 10 | H199: ARC | I199: 110190S
A200: Newell/Steve | B200: Dom. Air | C200: America West Airlines | D200: 2000-05-14 | E200: 2000-05-20 | F200: 52.95 | G200: 317.72 | H200: DENPHXDEN | I200: 110191S
... 96 more rows

Sheet TRUCK STOP
C1: Time of day
C2: 8 | D2: 9 | E2: 10 | F2: 11 | G2: 12 | H2: 1 | I2: 2 | J2: 3 | K2: 4 | L2: 5 | N2: Stopped
B3: Truck 1 | C3: A | D3: B | E3: C | F3: D | G3: A | H3: B | I3: C | J3: D | K3: A | L3: A | N3: =IF(D3<>C3,0,1)+IF(E3<>D3,0,1)+IF(F3<>E3,0,1)+IF(G3<>F3,0,1)+IF(H3<>G3,0,1)+IF(I3<>H3,0,1)+IF(J3<>I3,0,1)+IF(K3<>J3,0,1)+IF(L3<>K3,0,1) -> 1
B4: Truck 2 | C4: A | D4: A | E4: A | F4: A | G4: A | H4: C | I4: D | J4: D | K4: B | L4: A | N4: =IF(D4<>C4,0,1)+IF(E4<>D4,0,1)+IF(F4<>E4,0,1)+IF(G4<>F4,0,1)+IF(H4<>G4,0,1)+IF(I4<>H4,0,1)+IF(J4<>I4,0,1)+IF(K4<>J4,0,1)+IF(L4<>K4,0,1) -> 5
B5: Truck 3 | C5: A | D5: A | E5: A | F5: A | G5: A | H5: A | I5: A | J5: A | K5: A | L5: A | N5: 9
B6: Truck 4 | C6: A | D6: B | E6: C | F6: B | G6: A | H6: B | I6: C | J6: D | K6: E | L6: A | N6: 0
B7: Truck 5 | C7: A | D7: B | E7: C | F7: A | G7: A | H7: A | I7: A | J7: A | K7: A | L7: A | N7: 6

Sheet VLOOKUP MATCH
A1: Store One
A2: Product ID | B2: January | C2: February | D2: March | F2: Product ID | G2: ALP-715
A3: ALP-701 | B3: 1861.26 | C3: 1876 | D3: 1676.34 | F3: Month | G3: January
A4: ALP-702 | B4: 1398.96 | C4: 1354.74 | D4: 1776.84 | F4: Sales | G4: =VLOOKUP(G2,store1sales,MATCH(G3,store1months,0),0) -> 1737.98
A5: ALP-704 | B5: 1656.24 | C5: 1541 | D5: 1353.4
A6: ALP-708 | B6: 1522.24 | C6: 1551.72 | D6: 1947.02
A7: ALP-715 | B7: 1737.98 | C7: 1428.44 | D7: 1890.74
A8: ALP-790 | B8: 1444.52 | C8: 1977.84 | D8: 1416.38
A9: ALP-802 | B9: 1910.84 | C9: 1764.78 | D9: 1827.76
A10: ALP-803 | B10: 1737.98 | C10: 1392.26 | D10: 1538.32
A11: ALP-811 | B11: 1573.16 | C11: 1523.58 | D11: 1665.62
A12: ALP-823 | B12: 1871.98 | C12: 1566.46 | D12: 1511.52
A13: ALP-836 | B13: 1811.68 | C13: 1488.74 | D13: 1967.12

Sheet INDEX MATCH
A1: First Name | B1: Last Name | C1: Hire Date | D1: SS # | E1: Department | F1: Position | G1: Annual Salary | H1: Perf Rating | I1: Mgmt Level | K1: SS # | L1: First Name | M1: Last Name | N1: Annual Salary
A2: elizabeth | B2: ridenhauer | C2: 1997-04-29 | D2: 459306733 | E2: Corporate Manager | F2: Vice President | G2: 65000 | H2: 5 | I2: 1 | K2: 611048942 | L2: =PROPER(INDEX(matchdata,MATCH($K$2,socialsec,0),1)) -> Will | M2: =PROPER(INDEX(matchdata,MATCH($K2,socialsec,0),2)) -> Mullen | N2: =INDEX(matchdata,MATCH($K2,socialsec,0),7) -> 53500
A3: elizabeth | B3: ridenhauer | C3: 1997-04-29 | D3: 459306733 | E3: Corporate Manager | F3: Vice President | G3: 65000 | H3: 5 | I3: 1 | K3: =MATCH($K$2,socialsec,0) -> 10
A4: alice | B4: wortman | C4: 1998-04-03 | D4: 707942310 | E4: Corporate Manager | F4: Marketing Manager | G4: 85000 | H4: 4 | I4: 2
A5: tyrone | B5: anderson | C5: 1995-12-02 | D5: 146902472 | E5: Corporate Staff | F5: Division Manager | G5: 42000 | H5: 3 | I5: 3
A6: stuart | B6: klein | C6: 1999-05-28 | D6: 345005582 | E6: Corporate Staff | F6: Accounting Staff | G6: 55000 | H6: 4 | I6: 2
A7: catherine | B7: forest | C7: 2000-06-14 | D7: 368370245 | E7: Corporate Manager | F7: Director of Advertising | G7: 46000 | H7: 3 | I7: 2
A8: mechell | B8: clese | C8: 1995-05-09 | D8: 456080278 | E8: Corporate Staff | F8: Copy Writer | G8: 58000 | H8: 3 | I8: 4
A9: kate | B9: jones | C9: 2000-07-25 | D9: 481349363 | E9: Corporate Staff | F9: Accounting Staff | G9: 45000 | H9: 2 | I9: 3
A10: ellen | B10: spinnaker | C10: 1993-04-07 | D10: 570286844 | E10: Corporate Staff | F10: Circulation Manager | G10: 70000 | H10: 4 | I10: 3
A11: will | B11: mullen | C11: 1999-06-08 | D11: 611048942 | E11: Corporate Staff | F11: Division Manager | G11: 53500 | H11: 4 | I11: 3
A12: brad | B12: turner | C12: 1997-09-17 | D12: 345035237 | E12: Management Staff | F12: Accounting Staff | G12: 65000 | H12: 3 | I12: 3
A13: mark | B13: macdowell | C13: 2000-05-06 | D13: 820015532 | E13: Management Staff | F13: Web Manager | G13: 55000 | H13: 2 | I13: 3
A14: william | B14: martin | C14: 1952-07-01 | D14: 469440032 | E14: Retail | F14: Product Manager | G14: 55500 | H14: 2 | I14: 3
A15: jim | B15: kirney | C15: 1995-10-28 | D15: 618035383 | E15: Retail | F15: Product Manager | G15: 47500 | H15: 3 | I15: 3
A16: michelle | B16: campbell | C16: 1998-05-05 | D16: 681302482 | E16: Management Staff | F16: Accounting Staff | G16: 42000 | H16: 3 | I16: 2
A17: ty | B17: simmons | C17: 1999-05-14 | D17: 679694534 | E17: Retail | F17: Product Manager | G17: 57500 | H17: 3 | I17: 3
A18: dennis | B18: denton | C18: 1987-07-04 | D18: 692241314 | E18: Section Manager | F18: Director of Training | G18: 45000 | H18: 4 | I18: 3
A19: michael | B19: gapner | C19: 1961-08-20 | D19: 706670481 | E19: Management Staff | F19: Payroll Manager | G19: 48000 | H19: 3 | I19: 3
A20: eileen | B20: wilson | C20: 1995-07-29 | D20: 682110774 | E20: Retail | F20: Product Manager | G20: 48000 | H20: 4 | I20: 3
A21: george | B21: fernandez | C21: 1997-03-30 | D21: 781041004 | E21: Corporate Manager | F21: Office Manager | G21: 48000 | H21: 5 | I21: 2
A22: james | B22: bruce | C22: 2000-05-29 | D22: 248944357 | E22: Section Manager | F22: Dir. Of Shipping | G22: 55000 | H22: 1 | I22: 3
A23: marcia | B23: smith | C23: 1995-01-14 | D23: 931026545 | E23: Corporate Manager | F23: General Sales Manager | G23: 42000 | H23: 2 | I23: 2

Sheet MAIL MERGE
A1: Company Name | B1: First Name | C1: Last Name | D1: Address | E1: Street Address | F1: City | G1: State | H1: Country | I1: Postal Code | J1: Annual Sales | K1: DOLLAR | L1: LEN | M1: Merge | N1: 4 | O1: 5 | P1: 6 | Q1: 7 | R1: 8 | S1: 9 | T1: 10
A2: Pure Shade | B2: Phil | C2: Birthisel | D2: =(E2&", "&F2&", "&G2) -> 115 Exbourne Avenue, Sydney, NSW | E2: 115 Exbourne Avenue | F2: Sydney | G2: NSW | H2: AU | I2: 2112 | J2: 10001 | K2: =DOLLAR(J2,0) -> $10,001 | L2: =HLOOKUP(LEN(sales),digits,ROW()) -> $10,001 | M2: $10,001 | N2: =CONCATENATE("$",LEFT(sales,1),",",RIGHT(sales,3)) -> $1,001 | O2: =CONCATENATE("$",LEFT(sales,2),",",RIGHT(sales,3)) -> $10,001 | P2: =CONCATENATE("$",LEFT(sales,3),",",RIGHT(sales,3)) -> $100,001 | Q2: =CONCATENATE("$",LEFT(sales,1),",",MID(sales,2,3),",",RIGHT(sales,3)) -> $1,000,001 | R2: =CONCATENATE("$",LEFT(sales,2),",",MID(sales,2,3),",",RIGHT(sales,3)) -> $10,000,001 | S2: =CONCATENATE("$",LEFT(sales,3),",",MID(sales,2,3),",",RIGHT(sales,3)) -> $100,000,001 | T2: =CONCATENATE("$",LEFT(sales,1),",",MID(sales,2,3),",",MID(sales,5,3),",",RIGHT(sales,3)) -> $1,000,1,001
A3: Ding Now | B3: Micky | C3: Denig | D3: 382293 Spillway Drive, Scranton, PA | E3: 382293 Spillway Drive | F3: Scranton | G3: PA | H3: USA | I3: 18466 | J3: 30001 | K3: =DOLLAR(J3,0) -> $30,001 | L3: $30,001 | M3: $30,001 | N3: $3,001 | O3: $30,001 | P3: $300,001 | Q3: $3,000,001 | R3: $30,000,001 | S3: $300,000,001 | T3: $3,000,1,001
A4: Wait A Minute | B4: Rob | C4: Melick | D4: 9033 10th Street, Philadelphia, PA | E4: 9033 10th Street | F4: Philadelphia | G4: PA | H4: USA | I4: 19128 | J4: 555000 | K4: $555,000 | L4: $555,000 | M4: $555,000 | N4: $5,000 | O4: $55,000 | P4: $555,000 | Q4: $5,550,000 | R4: $55,550,000 | S4: $555,550,000 | T4: $5,550,00,000
A5: Fly's Now | B5: Glynn | C5: Lavendar | D5: 1705 Peach Tree Circle, Melbourne, VIC | E5: 1705 Peach Tree Circle | F5: Melbourne | G5: VIC | H5: AU | I5: 3150 | J5: 555000 | K5: $555,000 | L5: $555,000 | M5: $555,000 | N5: $5,000 | O5: $55,000 | P5: $555,000 | Q5: $5,550,000 | R5: $55,550,000 | S5: $555,550,000 | T5: $5,550,00,000
A6: Penninsula | B6: Julie | C6: Wesolek | D6: 4587 Erebe Place, Palo Alto, CA | E6: 4587 Erebe Place | F6: Palo Alto | G6: CA | H6: USA | I6: 94070 | J6: 555000 | K6: $555,000 | L6: $555,000 | M6: $555,000 | N6: $5,000 | O6: $55,000 | P6: $555,000 | Q6: $5,550,000 | R6: $55,550,000 | S6: $555,550,000 | T6: $5,550,00,000
A7: WHOISDMPY | B7: Steve | C7: Schmoyer | D7: P. O. Box 147, Phoenix, AZ | E7: P. O. Box 147 | F7: Phoenix | G7: AZ | H7: USA | I7: 85001 | J7: 555000 | K7: $555,000 | L7: $555,000 | M7: $555,000 | N7: $5,000 | O7: $55,000 | P7: $555,000 | Q7: $5,550,000 | R7: $55,550,000 | S7: $555,550,000 | T7: $5,550,00,000
A8: Rooter | B8: Bob | C8: Straus | D8: P. O. Box 1715, Allentown, PA | E8: P. O. Box 1715 | F8: Allentown | G8: PA | H8: USA | I8: 18103 | J8: 555000 | K8: $555,000 | L8: $555,000 | M8: $555,000 | N8: $5,000 | O8: $55,000 | P8: $555,000 | Q8: $5,550,000 | R8: $55,550,000 | S8: $555,550,000 | T8: $5,550,00,000
A9: Dagwood Sandwiches | B9: Freida | C9: Shisslak | D9: 5800 Sly Fox Place, Allentown, PA | E9: 5800 Sly Fox Place | F9: Allentown | G9: PA | H9: USA | I9: 18103 | J9: 555000 | K9: $555,000 | L9: $555,000 | M9: $555,000 | N9: $5,000 | O9: $55,000 | P9: $555,000 | Q9: $5,550,000 | R9: $55,550,000 | S9: $555,550,000 | T9: $5,550,00,000
A10: AREUFIT | B10: Jane | C10: O'Brien | D10: 67 Bouleva Road, Manasass, VA | E10: 67 Bouleva Road | F10: Manasass | G10: VA | H10: USA | I10: 22112 | J10: 555000 | K10: $555,000 | L10: $555,000 | M10: $555,000 | N10: $5,000 | O10: $55,000 | P10: $555,000 | Q10: $5,550,000 | R10: $55,550,000 | S10: $555,550,000 | T10: $5,550,00,000
A11: The Bone | B11: Joe | C11: Stinner | D11: 5417 21st Street, Allentown, PA | E11: 5417 21st Street | F11: Allentown | G11: PA | H11: USA | I11: 18103 | J11: 555000 | K11: $555,000 | L11: $555,000 | M11: $555,000 | N11: $5,000 | O11: $55,000 | P11: $555,000 | Q11: $5,550,000 | R11: $55,550,000 | S11: $555,550,000 | T11: $5,550,00,000
A12: CarMan, South | B12: Rob | C12: Stineberg | D12: 8371 Carpet Road, Woodbridge, VA | E12: 8371 Carpet Road | F12: Woodbridge | G12: VA | H12: USA | I12: 22194 | J12: 555000 | K12: $555,000 | L12: $555,000 | M12: $555,000 | N12: $5,000 | O12: $55,000 | P12: $555,000 | Q12: $5,550,000 | R12: $55,550,000 | S12: $555,550,000 | T12: $5,550,00,000
A13: Whoppy Looks | B13: Kim | C13: Tenant | D13: 3901 Valley Avenue, Detroit, MI | E13: 3901 Valley Avenue | F13: Detroit | G13: MI | H13: USA | I13: 48219 | J13: 555000 | K13: $555,000 | L13: $555,000 | M13: $555,000 | N13: $5,000 | O13: $55,000 | P13: $555,000 | Q13: $5,550,000 | R13: $55,550,000 | S13: $555,550,000 | T13: $5,550,00,000
A14: L.B.Stop | B14: Karen | C14: Lewis | D14: 4232 William Flynn Highway, Allentown, PA | E14: 4232 William Flynn Highway | F14: Allentown | G14: PA | H14: USA | I14: 18103 | J14: 3400000 | K14: $3,400,000 | L14: $3,400,000 | M14: $3,400,000 | N14: $3,000 | O14: $34,000 | P14: $340,000 | Q14: $3,400,000 | R14: $34,400,000 | S14: $340,400,000 | T14: $3,400,000,000
A15: ASAP | B15: Patrick | C15: Murray | D15: 1806 Rudolph Lane, Washington, DC | E15: 1806 Rudolph Lane | F15: Washington | G15: DC | H15: USA | I15: 20001 | J15: 3400000 | K15: $3,400,000 | L15: $3,400,000 | M15: $3,400,000 | N15: $3,000 | O15: $34,000 | P15: $340,000 | Q15: $3,400,000 | R15: $34,400,000 | S15: $340,400,000 | T15: $3,400,000,000
A16: Little House | B16: Vera | C16: Chandler | D16: 27 Blackburn Court, Washington, DC | E16: 27 Blackburn Court | F16: Washington | G16: DC | H16: USA | I16: 20001 | J16: 3400000 | K16: $3,400,000 | L16: $3,400,000 | M16: $3,400,000 | N16: $3,000 | O16: $34,000 | P16: $340,000 | Q16: $3,400,000 | R16: $34,400,000 | S16: $340,400,000 | T16: $3,400,000,000
A17: Hot Dogs For All | B17: James | C17: Zickafoose | D17: 12501 King Street, Allentown, PA | E17: 12501 King Street | F17: Allentown | G17: PA | H17: USA | I17: 18103 | J17: 3400000 | K17: $3,400,000 | L17: $3,400,000 | M17: $3,400,000 | N17: $3,000 | O17: $34,000 | P17: $340,000 | Q17: $3,400,000 | R17: $34,400,000 | S17: $340,400,000 | T17: $3,400,000,000
A18: Ipkack Today | B18: Gary | C18: Smith | D18: 2 Pine Drive, Reading, PA | E18: 2 Pine Drive | F18: Reading | G18: PA | H18: USA | I18: 19608 | J18: 3400000 | K18: $3,400,000 | L18: $3,400,000 | M18: $3,400,000 | N18: $3,000 | O18: $34,000 | P18: $340,000 | Q18: $3,400,000 | R18: $34,400,000 | S18: $340,400,000 | T18: $3,400,000,000
A19: Macro | B19: Marc | C19: Warren | D19: 101 Main Street, Newark, NJ | E19: 101 Main Street | F19: Newark | G19: NJ | H19: USA | I19: 7101 | J19: 3400000 | K19: $3,400,000 | L19: $3,400,000 | M19: $3,400,000 | N19: $3,000 | O19: $34,000 | P19: $340,000 | Q19: $3,400,000 | R19: $34,400,000 | S19: $340,400,000 | T19: $3,400,000,000
A20: The Law | B20: Charles | C20: Geschickter | D20: Box 2838, Fairfax, VA | E20: Box 2838 | F20: Fairfax | G20: VA | H20: USA | I20: 20151 | J20: 3400000 | K20: $3,400,000 | L20: $3,400,000 | M20: $3,400,000 | N20: $3,000 | O20: $34,000 | P20: $340,000 | Q20: $3,400,000 | R20: $34,400,000 | S20: $340,400,000 | T20: $3,400,000,000
A21: WebStreet | B21: John | C21: Henderson | D21: 1301 New Jersey Avenue, Louisville, KY | E21: 1301 New Jersey Avenue | F21: Louisville | G21: KY | H21: USA | I21: 40201 | J21: 3400000 | K21: $3,400,000 | L21: $3,400,000 | M21: $3,400,000 | N21: $3,000 | O21: $34,000 | P21: $340,000 | Q21: $3,400,000 | R21: $34,400,000 | S21: $340,400,000 | T21: $3,400,000,000
A22: Jiggle One | B22: Harold | C22: Schappell | D22: 3610 Hamilton Street, Reading, PA | E22: 3610 Hamilton Street | F22: Reading | G22: PA | H22: USA | I22: 19608 | J22: 10000000 | K22: $10,000,000 | L22: $10,000,000 | M22: $10,000,000 | N22: $1,000 | O22: $10,000 | P22: $100,000 | Q22: $1,000,000 | R22: $10,000,000 | S22: $100,000,000 | T22: $1,000,000,000
A23: My WABIYWAB | B23: Jerry | C23: Barber | D23: 105 Duane Street, Frederick, MD | E23: 105 Duane Street | F23: Frederick | G23: MD | H23: USA | I23: 21701 | J23: 10000000 | K23: $10,000,000 | L23: $10,000,000 | M23: $10,000,000 | N23: $1,000 | O23: $10,000 | P23: $100,000 | Q23: $1,000,000 | R23: $10,000,000 | S23: $100,000,000 | T23: $1,000,000,000
A24: Coach Jim, LLC | B24: James | C24: Haines | D24: 425 South 15th Street, Allentown, PA | E24: 425 South 15th Street | F24: Allentown | G24: PA | H24: USA | I24: 18103 | J24: 10000000 | K24: $10,000,000 | L24: $10,000,000 | M24: $10,000,000 | N24: $1,000 | O24: $10,000 | P24: $100,000 | Q24: $1,000,000 | R24: $10,000,000 | S24: $100,000,000 | T24: $1,000,000,000
A25: LBS | B25: Rod | C25: Urand | D25: 2426 Vintage Circle, Annapolis, MD | E25: 2426 Vintage Circle | F25: Annapolis | G25: MD | H25: USA | I25: 21041 | J25: 10000000 | K25: $10,000,000 | L25: $10,000,000 | M25: $10,000,000 | N25: $1,000 | O25: $10,000 | P25: $100,000 | Q25: $1,000,000 | R25: $10,000,000 | S25: $100,000,000 | T25: $1,000,000,000
A26: Town Juice | B26: Clem | C26: West | D26: 319 East Street, Allentown, PA | E26: 319 East Street | F26: Allentown | G26: PA | H26: USA | I26: 18103 | J26: 10000000 | K26: $10,000,000 | L26: $10,000,000 | M26: $10,000,000 | N26: $1,000 | O26: $10,000 | P26: $100,000 | Q26: $1,000,000 | R26: $10,000,000 | S26: $100,000,000 | T26: $1,000,000,000
A27: TexSpeak | B27: Michael | C27: Goforth | D27: 1413 NW 63 Road, Dallas, TX | E27: 1413 NW 63 Road | F27: Dallas | G27: TX | H27: USA | I27: 75010 | J27: 10000000 | K27: $10,000,000 | L27: $10,000,000 | M27: $10,000,000 | N27: $1,000 | O27: $10,000 | P27: $100,000 | Q27: $1,000,000 | R27: $10,000,000 | S27: $100,000,000 | T27: $1,000,000,000
A28: Doug Fresh Inc. | B28: Doug | C28: Busey | D28: 908 South Armour Street, Dallas, TX | E28: 908 South Armour Street | F28: Dallas | G28: TX | H28: USA | I28: 75010 | J28: 10000000 | K28: $10,000,000 | L28: $10,000,000 | M28: $10,000,000 | N28: $1,000 | O28: $10,000 | P28: $100,000 | Q28: $1,000,000 | R28: $10,000,000 | S28: $100,000,000 | T28: $1,000,000,000
A29: YourCoach, LLC | B29: Jackie | C29: Sapp | D29: 19231 Sherman Way, #45, Los Angeles, CA | E29: 19231 Sherman Way, #45 | F29: Los Angeles | G29: CA | H29: USA | I29: 91766 | J29: 10000000 | K29: $10,000,000 | L29: $10,000,000 | M29: $10,000,000 | N29: $1,000 | O29: $10,000 | P29: $100,000 | Q29: $1,000,000 | R29: $10,000,000 | S29: $100,000,000 | T29: $1,000,000,000
A30: BuyQick | B30: Brett | C30: Hayes | D30: 343 Village Walk Drive, Richmond, VA | E30: 343 Village Walk Drive | F30: Richmond | G30: VA | H30: USA | I30: 23173 | J30: 10000000 | K30: $10,000,000 | L30: $10,000,000 | M30: $10,000,000 | N30: $1,000 | O30: $10,000 | P30: $100,000 | Q30: $1,000,000 | R30: $10,000,000 | S30: $100,000,000 | T30: $1,000,000,000
A31: Ever Thrifty | B31: Nancy | C31: Strimple | D31: 6040 Token Forest Drive, Annapolis, MD | E31: 6040 Token Forest Drive | F31: Annapolis | G31: MD | H31: USA | I31: 21041 | J31: 10000000 | K31: $10,000,000 | L31: $10,000,000 | M31: $10,000,000 | N31: $1,000 | O31: $10,000 | P31: $100,000 | Q31: $1,000,000 | R31: $10,000,000 | S31: $100,000,000 | T31: $1,000,000,000
A32: Mechanic Man | B32: Joe | C32: Ford | D32: 6823 Old Waterloo Road, Denver, CO | E32: 6823 Old Waterloo Road | F32: Denver | G32: CO | H32: USA | I32: 80002 | J32: 10000000 | K32: $10,000,000 | L32: $10,000,000 | M32: $10,000,000 | N32: $1,000 | O32: $10,000 | P32: $100,000 | Q32: $1,000,000 | R32: $10,000,000 | S32: $100,000,000 | T32: $1,000,000,000
A33: Pool time | B33: Judi | C33: Wagner | D33: Box 420B, Road, Tampa, FL | E33: Box 420B, Road | F33: Tampa | G33: FL | H33: USA | I33: 34684 | J33: 230000000 | K33: $230,000,000 | L33: $230,300,000 | M33: $230,300,000 | N33: $2,000 | O33: $23,000 | P33: $230,000 | Q33: $2,300,000 | R33: $23,300,000 | S33: $230,300,000 | T33: $2,300,000,000
A34: End of Chat | B34: Robb | C34: Wilmot | D34: P. O. Box 5355, Annapolis, MD | E34: P. O. Box 5355 | F34: Annapolis | G34: MD | H34: USA | I34: 21041 | J34: 230000000 | K34: $230,000,000 | L34: $230,300,000 | M34: $230,300,000 | N34: $2,000 | O34: $23,000 | P34: $230,000 | Q34: $2,300,000 | R34: $23,300,000 | S34: $230,300,000 | T34: $2,300,000,000
A35: Cookie Company | B35: Sophie | C35: Altvater | D35: 450 North Grove Street, Stroudsburg, PA | E35: 450 North Grove Street | F35: Stroudsburg | G35: PA | H35: USA | I35: 18301 | J35: 230000000 | K35: $230,000,000 | L35: $230,300,000 | M35: $230,300,000 | N35: $2,000 | O35: $23,000 | P35: $230,000 | Q35: $2,300,000 | R35: $23,300,000 | S35: $230,300,000 | T35: $2,300,000,000
A36: Amazing Grace | B36: Amy | C36: Reinert | D36: 3150 West Street, Allentown, PA | E36: 3150 West Street | F36: Allentown | G36: PA | H36: USA | I36: 18103 | J36: 230000000 | K36: $230,000,000 | L36: $230,300,000 | M36: $230,300,000 | N36: $2,000 | O36: $23,000 | P36: $230,000 | Q36: $2,300,000 | R36: $23,300,000 | S36: $230,300,000 | T36: $2,300,000,000
A37: Little Italy Restaurant | B37: Celeste | C37: Egidio | D37: 467 Kenny Drive, Stroudsburg, PA | E37: 467 Kenny Drive | F37: Stroudsburg | G37: PA | H37: USA | I37: 18301 | J37: 230000000 | K37: $230,000,000 | L37: $230,300,000 | M37: $230,300,000 | N37: $2,000 | O37: $23,000 | P37: $230,000 | Q37: $2,300,000 | R37: $23,300,000 | S37: $230,300,000 | T37: $2,300,000,000
A38: Wiener, Inc. | B38: Chris | C38: Jenkins | D38: 4050 Dillingersville Road, Columbia, MD | E38: 4050 Dillingersville Road | F38: Columbia | G38: MD | H38: USA | I38: 21044 | J38: 230000000 | K38: $230,000,000 | L38: $230,300,000 | M38: $230,300,000 | N38: $2,000 | O38: $23,000 | P38: $230,000 | Q38: $2,300,000 | R38: $23,300,000 | S38: $230,300,000 | T38: $2,300,000,000
A39: Little Marty LLC | B39: Marty | C39: Burke | D39: 1030 South 7th Street, Baltimore, MD | E39: 1030 South 7th Street | F39: Baltimore | G39: MD | H39: USA | I39: 21206 | J39: 230000000 | K39: $230,000,000 | L39: $230,300,000 | M39: $230,300,000 | N39: $2,000 | O39: $23,000 | P39: $230,000 | Q39: $2,300,000 | R39: $23,300,000 | S39: $230,300,000 | T39: $2,300,000,000
A40: TrumpStreet | B40: Dan | C40: Rogers | D40: 425 South 15th Street, Baltimore, MD | E40: 425 South 15th Street | F40: Baltimore | G40: MD | H40: USA | I40: 21206 | J40: 230000000 | K40: $230,000,000 | L40: $230,300,000 | M40: $230,300,000 | N40: $2,000 | O40: $23,000 | P40: $230,000 | Q40: $2,300,000 | R40: $23,300,000 | S40: $230,300,000 | T40: $2,300,000,000
A41: Shrink Time, Inc. | B41: Harold | C41: Pascal | D41: 819 Wynonah Drive, Stroudsburg, PA | E41: 819 Wynonah Drive | F41: Stroudsburg | G41: PA | H41: USA | I41: 18301 | J41: 230000000 | K41: $230,000,000 | L41: $230,300,000 | M41: $230,300,000 | N41: $2,000 | O41: $23,000 | P41: $230,000 | Q41: $2,300,000 | R41: $23,300,000 | S41: $230,300,000 | T41: $2,300,000,000
A42: The Kitchen Lady | B42: Wilma | C42: Bentley | D42: 3932 Blacksmith Road, Washington, DC | E42: 3932 Blacksmith Road | F42: Washington | G42: DC | H42: USA | I42: 20001 | J42: 230000000 | K42: $230,000,000 | L42: $230,300,000 | M42: $230,300,000 | N42: $2,000 | O42: $23,000 | P42: $230,000 | Q42: $2,300,000 | R42: $23,300,000 | S42: $230,300,000 | T42: $2,300,000,000
A43: BigGuys | B43: Dan | C43: Benish | D43: 1426 Prince Street, Atlanta, GA | E43: 1426 Prince Street | F43: Atlanta | G43: GA | H43: USA | I43: 30247 | J43: 230000000 | K43: $230,000,000 | L43: $230,300,000 | M43: $230,300,000 | N43: $2,000 | O43: $23,000 | P43: $230,000 | Q43: $2,300,000 | R43: $23,300,000 | S43: $230,300,000 | T43: $2,300,000,000
A44: Club Run | B44: Catherine | C44: Matthews | D44: 634 Buckingham Lane, Melbourne, VIC | E44: 634 Buckingham Lane | F44: Melbourne | G44: VIC | H44: AU | I44: 3150 | J44: 230000000 | K44: $230,000,000 | L44: $230,300,000 | M44: $230,300,000 | N44: $2,000 | O44: $23,000 | P44: $230,000 | Q44: $2,300,000 | R44: $23,300,000 | S44: $230,300,000 | T44: $2,300,000,000
A45: My Inside Hammer | B45: Becky | C45: Purdin | D45: 5866-H Po Street, Annapolis, MD | E45: 5866-H Po Street | F45: Annapolis | G45: MD | H45: USA | I45: 21041 | J45: 230000000 | K45: $230,000,000 | L45: $230,300,000 | M45: $230,300,000 | N45: $2,000 | O45: $23,000 | P45: $230,000 | Q45: $2,300,000 | R45: $23,300,000 | S45: $230,300,000 | T45: $2,300,000,000
A46: Shipping Plus | B46: Arthur | C46: Henry | D46: 6941 Weest Street, Newark, NJ | E46: 6941 Weest Street | F46: Newark | G46: NJ | H46: USA | I46: 7101 | J46: 230000000 | K46: $230,000,000 | L46: $230,300,000 | M46: $230,300,000 | N46: $2,000 | O46: $23,000 | P46: $230,000 | Q46: $2,300,000 | R46: $23,300,000 | S46: $230,300,000 | T46: $2,300,000,000
A47: Wild Wild Wild Inc. | B47: Lindee | C47: Brauer | D47: 2645 Nazareth Road, Denver, CO | E47: 2645 Nazareth Road | F47: Denver | G47: CO | H47: USA | I47: 80002 | J47: 230000000 | K47: $230,000,000 | L47: $230,300,000 | M47: $230,300,000 | N47: $2,000 | O47: $23,000 | P47: $230,000 | Q47: $2,300,000 | R47: $23,300,000 | S47: $230,300,000 | T47: $2,300,000,000
J48: 2300000000 | K48: $2,300,000,000 | L48: $2,300,000,000 | M48: $230,300,001 | N48: $2,000 | O48: $23,000 | P48: $230,000 | Q48: $2,300,000 | R48: $23,300,000 | S48: $230,300,000 | T48: $2,300,000,000
J50: =LEN(J48) -> 10
